Workbook

Sheet Main
B10: 2018-08-10
B12: Sheet No. | C12: Template Name | D12: Summary
B13: 1 | C13: Future Intra | D13: For Intraday trading in F&O segment
B14: 2 | C14: Cash Intra | D14: For Intraday trading in cash market segment
B15: 3 | C15: Mid-cap Intra | D15: For Intraday trading in Mid-cap stocks
B16: 4 | C16: Bulk Deals | D16: Reveals Bulk Deals carried on NSE & BSE
B17: 5 | C17: Call Tracker

Sheet Future Intra
M5: Back to Main Page
A6: FOR INTRA DAY TRADING | L6: =Main!B10 -> 2018-08-10
A9: Sr.no | B9: Sector | C9: Scrip | D9: CLOSE RATE | E9: Pivot Point | F9: Supports | I9: Resistances
B10: Sector | D10: Point | E10: Point | F10: S1 | G10: S2 | H10: S3 | I10: R1 | J10: R2 | K10: R3 | L10: HIGH | M10: LOW | N10: OI | O10: % Change in OI
A11: 1 | B11: Index | C11: BANKNIFTY | D11: 28351.70 | E11: 28305.18 | F11: 28224.37 | G11: 28097.03 | H11: 28016.22 | I11: 28432.52 | J11: 28513.33 | K11: 28640.67 | L11: 28386 | M11: 28177.85 | N11: 3020440 | O11: 6.99%
A12: 2 | B12: Index | C12: NIFTY | D12: 11487.55 | E12: 11486.42 | F12: 11468.13 | G12: 11448.72 | H12: 11430.43 | I12: 11505.83 | J12: 11524.12 | K12: 11543.53 | L12: 11504.7 | M12: 11467 | N12: 29665125 | O12: 2.39%
A13: 3 | B13: Index | C13: NIFTYCPSE | D13: 2472.95 | E13: 824.32 | F13: 1648.63 | G13: 824.32 | H13: 1648.63 | I13: 1648.63 | J13: 824.32 | K13: 1648.63 | L13: 0 | M13: 0 | N13: 0 | O13: 0.00%
A14: 4 | B14: Index | C14: NIFTYINFRA | D14: 3400.05 | E14: 1133.35 | F14: 2266.70 | G14: 1133.35 | H14: 2266.70 | I14: 2266.70 | J14: 1133.35 | K14: 2266.70 | L14: 0 | M14: 0 | N14: 0 | O14: 0.00%
A15: 5 | B15: Index | C15: NIFTYIT | D15: 14646.00 | E15: 14656.33 | F15: 14622.67 | G15: 14599.33 | H15: 14565.67 | I15: 14679.67 | J15: 14713.33 | K15: 14736.67 | L15: 14690 | M15: 14633 | N15: 25150 | O15: -1.76%
A16: 6 | B16: Index | C16: NIFTYMID50 | D16: 5030.00 | E16: 5030.00 | F16: 5030.00 | G16: 5030.00 | H16: 5030.00 | I16: 5030.00 | J16: 5030.00 | K16: 5030.00 | L16: 5030 | M16: 5030 | N16: 592020 | O16: 0.00%
A17: 7 | B17: Index | C17: NIFTYPSE | D17: 3925.45 | E17: 1308.48 | F17: 2616.97 | G17: 1308.48 | H17: 2616.97 | I17: 2616.97 | J17: 1308.48 | K17: 2616.97 | L17: 0 | M17: 0 | N17: 0 | O17: 0.00%
A18: 8 | B18: Cement | C18: ACC | D18: 1579.70 | E18: 1568.53 | F18: 1553.17 | G18: 1526.63 | H18: 1511.27 | I18: 1595.07 | J18: 1610.43 | K18: 1636.97 | L18: 1583.9 | M18: 1542 | N18: 1931600 | O18: 14.27%
A19: 9 | B19: Others | C19: ADANIENT | D19: 200.95 | E19: 202.33 | F19: 197.12 | G19: 193.28 | H19: 188.07 | I19: 206.17 | J19: 211.38 | K19: 215.22 | L19: 207.55 | M19: 198.5 | N19: 37740000 | O19: -2.72%
A20: 10 | B20: Others | C20: ADANIPORTS | D20: 379.80 | E20: 378.68 | F20: 374.87 | G20: 369.93 | H20: 366.12 | I20: 383.62 | J20: 387.43 | K20: 392.37 | L20: 382.5 | M20: 373.75 | N20: 11860000 | O20: -4.20%
A21: 11 | B21: Power | C21: ADANIPOWER | D21: 32.85 | E21: 32.98 | F21: 32.22 | G21: 31.58 | H21: 30.82 | I21: 33.62 | J21: 34.38 | K21: 35.02 | L21: 33.75 | M21: 32.35 | N21: 146280000 | O21: -0.99%
A22: 12 | B22: Pharma | C22: AJANTPHARM | D22: 1159.70 | E22: 1173.40 | F22: 1139.85 | G22: 1120.00 | H22: 1086.45 | I22: 1193.25 | J22: 1226.80 | K22: 1246.65 | L22: 1206.95 | M22: 1153.55 | N22: 833500 | O22: -2.06%
A23: 13 | B23: Banking | C23: ALBK | D23: 46.05 | E23: 45.65 | F23: 44.80 | G23: 43.55 | H23: 42.70 | I23: 46.90 | J23: 47.75 | K23: 49.00 | L23: 46.5 | M23: 44.4 | N23: 14828000 | O23: 2.43%
A24: 14 | B24: Automobile | C24: AMARAJABAT | D24: 817.85 | E24: 818.72 | F24: 811.43 | G24: 805.02 | H24: 797.73 | I24: 825.13 | J24: 832.42 | K24: 838.83 | L24: 826 | M24: 812.3 | N24: 1166900 | O24: 1.96%
A25: 15 | B25: Cement | C25: AMBUJACEM | D25: 233.35 | E25: 232.85 | F25: 231.20 | G25: 229.05 | H25: 227.40 | I25: 235.00 | J25: 236.65 | K25: 238.80 | L25: 234.5 | M25: 230.7 | N25: 13905000 | O25: 3.54%
A26: 16 | B26: Banking | C26: ANDHRABANK | D26: 34.70 | E26: 34.62 | F26: 34.03 | G26: 33.37 | H26: 32.78 | I26: 35.28 | J26: 35.87 | K26: 36.53 | L26: 35.2 | M26: 33.95 | N26: 21346000 | O26: -1.74%
A27: 17 | B27: Others | C27: APOLLOHOSP | D27: 967.15 | E27: 971.02 | F27: 959.23 | G27: 951.32 | H27: 939.53 | I27: 978.93 | J27: 990.72 | K27: 998.63 | L27: 982.8 | M27: 963.1 | N27: 1148500 | O27: -0.69%
A28: 18 | B28: Automobile | C28: APOLLOTYRE | D28: 272.90 | E28: 273.65 | F28: 270.30 | G28: 267.70 | H28: 264.35 | I28: 276.25 | J28: 279.60 | K28: 282.20 | L28: 277 | M28: 271.05 | N28: 11217000 | O28: 6.43%
A29: 19 | B29: Textile | C29: ARVIND | D29: 395.75 | E29: 396.13 | F29: 391.67 | G29: 387.58 | H29: 383.12 | I29: 400.22 | J29: 404.68 | K29: 408.77 | L29: 400.6 | M29: 392.05 | N29: 10468000 | O29: 3.97%
A30: 20 | B30: Automobile | C30: ASHOKLEY | D30: 129.45 | E30: 128.05 | F30: 126.25 | G30: 123.05 | H30: 121.25 | I30: 131.25 | J30: 133.05 | K30: 136.25 | L30: 129.85 | M30: 124.85 | N30: 70604000 | O30: -2.29%
A31: 21 | B31: FMCG | C31: ASIANPAINT | D31: 1422.00 | E31: 1425.93 | F31: 1415.07 | G31: 1408.13 | H31: 1397.27 | I31: 1432.87 | J31: 1443.73 | K31: 1450.67 | L31: 1436.8 | M31: 1419 | N31: 5153400 | O31: 0.70%
A32: 22 | B32: Pharma | C32: AUROPHARMA | D32: 602.80 | E32: 604.97 | F32: 593.03 | G32: 583.27 | H32: 571.33 | I32: 614.73 | J32: 626.67 | K32: 636.43 | L32: 616.9 | M32: 595.2 | N32: 20434000 | O32: 3.41%
A33: 23 | B33: Banking | C33: AXISBANK | D33: 622.05 | E33: 614.50 | F33: 604.00 | G33: 585.95 | H33: 575.45 | I33: 632.55 | J33: 643.05 | K33: 661.10 | L33: 625 | M33: 596.45 | N33: 47324400 | O33: 7.84%
A34: 24 | B34: Automobile | C34: BAJAJ-AUTO | D34: 2672.70 | E34: 2674.92 | F34: 2651.13 | G34: 2629.57 | H34: 2605.78 | I34: 2696.48 | J34: 2720.27 | K34: 2741.83 | L34: 2698.7 | M34: 2653.35 | N34: 3639500 | O34: -1.81%
A35: 25 | B35: Others | C35: BAJAJFINSV | D35: 7106.10 | E35: 7095.02 | F35: 7036.08 | G35: 6966.07 | H35: 6907.13 | I35: 7165.03 | J35: 7223.97 | K35: 7293.98 | L35: 7153.95 | M35: 7025 | N35: 711125 | O35: 2.23%
A36: 26 | B36: Finance | C36: BAJFINANCE | D36: 2833.15 | E36: 2832.45 | F36: 2812.70 | G36: 2792.25 | H36: 2772.50 | I36: 2852.90 | J36: 2872.65 | K36: 2893.10 | L36: 2852.2 | M36: 2812 | N36: 5707500 | O36: 1.13%
A37: 27 | B37: Others | C37: BALKRISIND | D37: 1257.70 | E37: 1256.65 | F37: 1241.30 | G37: 1224.90 | H37: 1209.55 | I37: 1273.05 | J37: 1288.40 | K37: 1304.80 | L37: 1272 | M37: 1240.25 | N37: 1134400 | O37: 12.27%
A38: 28 | B38: Others | C38: BALRAMCHIN | D38: 73.55 | E38: 73.43 | F38: 72.12 | G38: 70.68 | H38: 69.37 | I38: 74.87 | J38: 76.18 | K38: 77.62 | L38: 74.75 | M38: 72 | N38: 11788000 | O38: 6.85%
A39: 29 | B39: Banking | C39: BANKBARODA | D39: 155.35 | E39: 154.38 | F39: 150.42 | G39: 145.48 | H39: 141.52 | I39: 159.32 | J39: 163.28 | K39: 168.22 | L39: 158.35 | M39: 149.45 | N39: 70120000 | O39: 0.10%
A40: 30 | B40: Banking | C40: BANKINDIA | D40: 98.60 | E40: 97.73 | F40: 96.07 | G40: 93.53 | H40: 91.87 | I40: 100.27 | J40: 101.93 | K40: 104.47 | L40: 99.4 | M40: 95.2 | N40: 25302000 | O40: 3.41%
A41: 31 | B41: FMCG | C41: BATAINDIA | D41: 955.90 | E41: 953.17 | F41: 945.83 | G41: 935.77 | H41: 928.43 | I41: 963.23 | J41: 970.57 | K41: 980.63 | L41: 960.5 | M41: 943.1 | N41: 2450800 | O41: -2.02%
A42: 32 | B42: Capital_Goods | C42: BEL | D42: 121.45 | E42: 122.20 | F42: 118.05 | G42: 114.65 | H42: 110.50 | I42: 125.60 | J42: 129.75 | K42: 133.15 | L42: 126.35 | M42: 118.8 | N42: 28997100 | O42: 3.92%
A43: 33 | B43: Infrastructure | C43: BEML | D43: 815.05 | E43: 818.75 | F43: 800.30 | G43: 785.55 | H43: 767.10 | I43: 833.50 | J43: 851.95 | K43: 866.70 | L43: 837.2 | M43: 804 | N43: 2025000 | O43: 4.27%
A44: 34 | B44: Others | C44: BERGEPAINT | D44: 316.25 | E44: 316.50 | F44: 313.25 | G44: 310.25 | H44: 307.00 | I44: 319.50 | J44: 322.75 | K44: 325.75 | L44: 319.75 | M44: 313.5 | N44: 1975600 | O44: 0.22%
A45: 35 | B45: Finance | C45: BHARATFIN | D45: 1212.90 | E45: 1213.52 | F45: 1204.73 | G45: 1196.57 | H45: 1187.78 | I45: 1221.68 | J45: 1230.47 | K45: 1238.63 | L45: 1222.3 | M45: 1205.35 | N45: 4484000 | O45: -0.33%
A46: 36 | B46: Automobile | C46: BHARATFORG | D46: 635.05 | E46: 638.70 | F46: 622.45 | G46: 609.85 | H46: 593.60 | I46: 651.30 | J46: 667.55 | K46: 680.15 | L46: 654.95 | M46: 626.1 | N46: 8623200 | O46: 6.62%
A47: 37 | B47: Telecom | C47: BHARTIARTL | D47: 369.00 | E47: 373.93 | F47: 361.37 | G47: 353.73 | H47: 341.17 | I47: 381.57 | J47: 394.13 | K47: 401.77 | L47: 386.5 | M47: 366.3 | N47: 50631100 | O47: 3.39%
A48: 38 | B48: Capital_Goods | C48: BHEL | D48: 74.90 | E48: 74.62 | F48: 73.73 | G48: 72.57 | H48: 71.68 | I48: 75.78 | J48: 76.67 | K48: 77.83 | L48: 75.5 | M48: 73.45 | N48: 40305000 | O48: 0.11%
A49: 39 | B49: Pharma | C49: BIOCON | D49: 573.15 | E49: 572.62 | F49: 567.33 | G49: 561.52 | H49: 556.23 | I49: 578.43 | J49: 583.72 | K49: 589.53 | L49: 577.9 | M49: 566.8 | N49: 8408700 | O49: 0.47%
A50: 40 | B50: Automobile | C50: BOSCHLTD | D50: 19208.60 | E50: 19247.82 | F50: 18986.93 | G50: 18765.27 | H50: 18504.38 | I50: 19469.48 | J50: 19730.37 | K50: 19952.03 | L50: 19508.7 | M50: 19026.15 | N50: 134580 | O50: 0.18%
A51: 41 | B51: Oil_Gas | C51: BPCL | D51: 391.05 | E51: 392.18 | F51: 386.32 | G51: 381.58 | H51: 375.72 | I51: 396.92 | J51: 402.78 | K51: 407.52 | L51: 398.05 | M51: 387.45 | N51: 8280000 | O51: 4.33%
A52: 42 | B52: FMCG | C52: BRITANNIA | D52: 6358.25 | E52: 6352.73 | F52: 6316.57 | G52: 6274.88 | H52: 6238.72 | I52: 6394.42 | J52: 6430.58 | K52: 6472.27 | L52: 6388.9 | M52: 6311.05 | N52: 1379800 | O52: -0.90%
A53: 43 | B53: Pharma | C53: CADILAHC | D53: 379.50 | E53: 379.45 | F53: 375.90 | G53: 372.30 | H53: 368.75 | I53: 383.05 | J53: 386.60 | K53: 390.20 | L53: 383 | M53: 375.85 | N53: 11857600 | O53: 0.22%
A54: 44 | B54: Banking | C54: CANBK | D54: 297.25 | E54: 297.22 | F54: 290.58 | G54: 283.92 | H54: 277.28 | I54: 303.88 | J54: 310.52 | K54: 317.18 | L54: 303.85 | M54: 290.55 | N54: 11412000 | O54: -3.58%
A55: 45 | B55: Others | C55: CANFINHOME | D55: 328.20 | E55: 329.45 | F55: 324.95 | G55: 321.70 | H55: 317.20 | I55: 332.70 | J55: 337.20 | K55: 340.45 | L55: 333.95 | M55: 326.2 | N55: 4516250 | O55: 1.49%
A56: 46 | B56: Finance | C56: CAPF | D56: 582.50 | E56: 575.63 | F56: 564.27 | G56: 546.03 | H56: 534.67 | I56: 593.87 | J56: 605.23 | K56: 623.47 | L56: 587 | M56: 557.4 | N56: 7099200 | O56: 0.07%
A57: 47 | B57: Oil_Gas | C57: CASTROLIND | D57: 157.35 | E57: 157.90 | F57: 156.15 | G57: 154.95 | H57: 153.20 | I57: 159.10 | J57: 160.85 | K57: 162.05 | L57: 159.65 | M57: 156.7 | N57: 11379200 | O57: 3.38%
A58: 48 | B58: Automobile | C58: CEATLTD | D58: 1403.55 | E58: 1405.90 | F58: 1389.65 | G58: 1375.75 | H58: 1359.50 | I58: 1419.80 | J58: 1436.05 | K58: 1449.95 | L58: 1422.15 | M58: 1392 | N58: 1337350 | O58: 0.82%
A59: 49 | B59: Textile | C59: CENTURYTEX | D59: 913.95 | E59: 911.05 | F59: 903.90 | G59: 893.85 | H59: 886.70 | I59: 921.10 | J59: 928.25 | K59: 938.30 | L59: 918.2 | M59: 901 | N59: 5757400 | O59: 1.70%
A60: 50 | B60: Power | C60: CESC | D60: 920.85 | E60: 923.12 | F60: 912.23 | G60: 903.62 | H60: 892.73 | I60: 931.73 | J60: 942.62 | K60: 951.23 | L60: 934 | M60: 914.5 | N60: 5218400 | O60: 1.56%
A61: 51 | B61: Power | C61: CGPOWER | D61: 61.50 | E61: 60.25 | F61: 58.30 | G61: 55.10 | H61: 53.15 | I61: 63.45 | J61: 65.40 | K61: 68.60 | L61: 62.2 | M61: 57.05 | N61: 34104000 | O61: -1.56%
A62: 52 | B62: Others | C62: CHENNPETRO | D62: 330.30 | E62: 330.50 | F62: 327.80 | G62: 325.30 | H62: 322.60 | I62: 333.00 | J62: 335.70 | K62: 338.20 | L62: 333.2 | M62: 328 | N62: 1756500 | O62: 2.27%
A63: 53 | B63: Others | C63: CHOLAFIN | D63: 1450.75 | E63: 1457.38 | F63: 1440.57 | G63: 1430.38 | H63: 1413.57 | I63: 1467.57 | J63: 1484.38 | K63: 1494.57 | L63: 1474.2 | M63: 1447.2 | N63: 1099000 | O63: 0.41%
A64: 54 | B64: Pharma | C64: CIPLA | D64: 619.55 | E64: 632.92 | F64: 603.88 | G64: 588.22 | H64: 559.18 | I64: 648.58 | J64: 677.62 | K64: 693.28 | L64: 661.95 | M64: 617.25 | N64: 9947000 | O64: -7.12%
A65: 55 | B65: Others | C65: COALINDIA | D65: 279.55 | E65: 280.05 | F65: 275.50 | G65: 271.45 | H65: 266.90 | I65: 284.10 | J65: 288.65 | K65: 292.70 | L65: 284.6 | M65: 276 | N65: 18088400 | O65: 5.10%
A66: 56 | B66: FMCG | C66: COLPAL | D66: 1141.05 | E66: 1147.57 | F66: 1131.33 | G66: 1121.62 | H66: 1105.38 | I66: 1157.28 | J66: 1173.52 | K66: 1183.23 | L66: 1163.8 | M66: 1137.85 | N66: 2034200 | O66: -1.42%
A67: 57 | B67: Others | C67: CONCOR | D67: 644.90 | E67: 650.85 | F67: 636.70 | G67: 628.50 | H67: 614.35 | I67: 659.05 | J67: 673.20 | K67: 681.40 | L67: 665 | M67: 642.65 | N67: 2248750 | O67: 2.33%
A68: 58 | B68: Capital_Goods | C68: CUMMINSIND | D68: 653.85 | E68: 671.28 | F68: 630.57 | G68: 607.28 | H68: 566.57 | I68: 694.57 | J68: 735.28 | K68: 758.57 | L68: 712 | M68: 648 | N68: 1117900 | O68: 52.82%
A69: 59 | B69: FMCG | C69: DABUR | D69: 446.70 | E69: 445.50 | F69: 443.70 | G69: 440.70 | H69: 438.90 | I69: 448.50 | J69: 450.30 | K69: 453.30 | L69: 447.3 | M69: 442.5 | N69: 17327500 | O69: -3.35%
A70: 60 | B70: Cement | C70: DALMIABHA | D70: 2673.05 | E70: 2672.63 | F70: 2647.47 | G70: 2621.88 | H70: 2596.72 | I70: 2698.22 | J70: 2723.38 | K70: 2748.97 | L70: 2697.8 | M70: 2647.05 | N70: 475500 | O70: 1.47%
A71: 61 | B71: Banking | C71: DCBBANK | D71: 171.40 | E71: 170.38 | F71: 168.07 | G71: 164.73 | H71: 162.42 | I71: 173.72 | J71: 176.03 | K71: 179.37 | L71: 172.7 | M71: 167.05 | N71: 4963500 | O71: -0.99%
A72: 62 | B72: Finance | C72: DHFL | D72: 619.60 | E72: 620.58 | F72: 613.77 | G72: 607.93 | H72: 601.12 | I72: 626.42 | J72: 633.23 | K72: 639.07 | L72: 627.4 | M72: 614.75 | N72: 28273500 | O72: 2.23%
A73: 63 | B73: Media | C73: DISHTV | D73: 68.55 | E73: 68.28 | F73: 67.77 | G73: 66.98 | H73: 66.47 | I73: 69.07 | J73: 69.58 | K73: 70.37 | L73: 68.8 | M73: 67.5 | N73: 52808000 | O73: 0.58%
A74: 64 | B74: Pharma | C74: DIVISLAB | D74: 1121.25 | E74: 1127.82 | F74: 1108.63 | G74: 1096.02 | H74: 1076.83 | I74: 1140.43 | J74: 1159.62 | K74: 1172.23 | L74: 1147 | M74: 1115.2 | N74: 2848000 | O74: 2.33%
A75: 65 | B75: Realty | C75: DLF | D75: 201.20 | E75: 198.40 | F75: 192.40 | G75: 183.60 | H75: 177.60 | I75: 207.20 | J75: 213.20 | K75: 222.00 | L75: 204.4 | M75: 189.6 | N75: 29815000 | O75: -4.52%
A76: 66 | B76: Pharma | C76: DRREDDY | D76: 2247.35 | E76: 2243.17 | F76: 2217.28 | G76: 2187.22 | H76: 2161.33 | I76: 2273.23 | J76: 2299.12 | K76: 2329.18 | L76: 2269.05 | M76: 2213.1 | N76: 4277000 | O76: -0.30%
A77: 67 | B77: Automobile | C77: EICHERMOT | D77: 27537.70 | E77: 27555.25 | F77: 27321.40 | G77: 27105.10 | H77: 26871.25 | I77: 27771.55 | J77: 28005.40 | K77: 28221.70 | L77: 27789.1 | M77: 27338.95 | N77: 272200 | O77: 0.03%
A78: 68 | B78: Infrastructure | C78: ENGINERSIN | D78: 128.05 | E78: 130.62 | F78: 124.13 | G78: 120.22 | H78: 113.73 | I78: 134.53 | J78: 141.02 | K78: 144.93 | L78: 137.1 | M78: 126.7 | N78: 8795500 | O78: 16.72%
A79: 69 | B79: Finance | C79: EQUITAS | D79: 147.30 | E79: 146.93 | F79: 145.52 | G79: 143.73 | H79: 142.32 | I79: 148.72 | J79: 150.13 | K79: 151.92 | L79: 148.35 | M79: 145.15 | N79: 21596000 | O79: 0.06%
A80: 70 | B80: Automobile | C80: ESCORTS | D80: 883.15 | E80: 881.48 | F80: 875.67 | G80: 868.18 | H80: 862.37 | I80: 888.97 | J80: 894.78 | K80: 902.27 | L80: 887.3 | M80: 874 | N80: 5044600 | O80: 1.42%
A81: 71 | B81: Automobile | C81: EXIDEIND | D81: 284.75 | E81: 286.23 | F81: 282.27 | G81: 279.78 | H81: 275.82 | I81: 288.72 | J81: 292.68 | K81: 295.17 | L81: 290.2 | M81: 283.75 | N81: 8152000 | O81: -0.10%
A82: 72 | B82: Banking | C82: FEDERALBNK | D82: 89.95 | E82: 89.72 | F82: 88.23 | G82: 86.52 | H82: 85.03 | I82: 91.43 | J82: 92.92 | K82: 94.63 | L82: 91.2 | M82: 88 | N82: 58982000 | O82: 0.55%
A83: 73 | B83: Oil_Gas | C83: GAIL | D83: 376.15 | E83: 376.48 | F83: 373.27 | G83: 370.38 | H83: 367.17 | I83: 379.37 | J83: 382.58 | K83: 385.47 | L83: 379.7 | M83: 373.6 | N83: 14895195 | O83: 1.56%
A84: 74 | B84: Pharma | C84: GLENMARK | D84: 594.20 | E84: 592.02 | F84: 587.73 | G84: 581.27 | H84: 576.98 | I84: 598.48 | J84: 602.77 | K84: 609.23 | L84: 596.3 | M84: 585.55 | N84: 4410000 | O84: -1.47%
A85: 75 | B85: Infrastructure | C85: GMRINFRA | D85: 18.70 | E85: 18.55 | F85: 18.05 | G85: 17.40 | H85: 16.90 | I85: 19.20 | J85: 19.70 | K85: 20.35 | L85: 19.05 | M85: 17.9 | N85: 226170000 | O85: 6.39%
A86: 76 | B86: Others | C86: GODFRYPHLP | D86: 846.05 | E86: 844.87 | F86: 836.83 | G86: 827.62 | H86: 819.58 | I86: 854.08 | J86: 862.12 | K86: 871.33 | L86: 852.9 | M86: 835.65 | N86: 508900 | O86: -0.68%
A87: 77 | B87: FMCG | C87: GODREJCP | D87: 1305.60 | E87: 1307.52 | F87: 1299.48 | G87: 1293.37 | H87: 1285.33 | I87: 1313.63 | J87: 1321.67 | K87: 1327.78 | L87: 1315.55 | M87: 1301.4 | N87: 2223200 | O87: 0.91%
A88: 78 | B88: FMCG | C88: GODREJIND | D88: 621.95 | E88: 622.00 | F88: 613.65 | G88: 605.35 | H88: 597.00 | I88: 630.30 | J88: 638.65 | K88: 646.95 | L88: 630.35 | M88: 613.7 | N88: 2221500 | O88: 0.34%
A89: 79 | B89: Pharma | C89: GRANULES | D89: 107.60 | E89: 106.15 | F89: 103.85 | G89: 100.10 | H89: 97.80 | I89: 109.90 | J89: 112.20 | K89: 115.95 | L89: 108.45 | M89: 102.4 | N89: 12435000 | O89: 3.71%
A90: 80 | B90: Cement | C90: GRASIM | D90: 1002.00 | E90: 1004.33 | F90: 994.67 | G90: 987.33 | H90: 977.67 | I90: 1011.67 | J90: 1021.33 | K90: 1028.67 | L90: 1014 | M90: 997 | N90: 5837250 | O90: 2.02%
A91: 81 | B91: Others | C91: GSFC | D91: 117.80 | E91: 117.15 | F91: 115.40 | G91: 113.00 | H91: 111.25 | I91: 119.55 | J91: 121.30 | K91: 123.70 | L91: 118.9 | M91: 114.75 | N91: 14404500 | O91: 1.30%
A92: 82 | B92: Others | C92: HAVELLS | D92: 687.45 | E92: 684.37 | F92: 678.73 | G92: 670.02 | H92: 664.38 | I92: 693.08 | J92: 698.72 | K92: 707.43 | L92: 690 | M92: 675.65 | N92: 4164000 | O92: -0.02%
A93: 83 | B93: Others | C93: HCC | D93: 13.10 | E93: 12.47 | F93: 11.63 | G93: 10.17 | H93: 9.33 | I93: 13.93 | J93: 14.77 | K93: 16.23 | L93: 13.3 | M93: 11 | N93: 39780000 | O93: 7.07%
A94: 84 | B94: Technology | C94: HCLTECH | D94: 961.90 | E94: 962.88 | F94: 959.02 | G94: 956.13 | H94: 952.27 | I94: 965.77 | J94: 969.63 | K94: 972.52 | L94: 966.75 | M94: 960 | N94: 9818200 | O94: 1.67%
A95: 85 | B95: Finance | C95: HDFC | D95: 1977.80 | E95: 1979.33 | F95: 1965.22 | G95: 1952.63 | H95: 1938.52 | I95: 1991.92 | J95: 2006.03 | K95: 2018.62 | L95: 1993.45 | M95: 1966.75 | N95: 25372500 | O95: -0.27%
A96: 86 | B96: Banking | C96: HDFCBANK | D96: 2124.25 | E96: 2124.02 | F96: 2100.73 | G96: 2077.22 | H96: 2053.93 | I96: 2147.53 | J96: 2170.82 | K96: 2194.33 | L96: 2147.3 | M96: 2100.5 | N96: 25527500 | O96: 5.16%
A97: 88 | B97: Automobile | C97: HEROMOTOCO | D97: 3281.40 | E97: 3300.50 | F97: 3252.10 | G97: 3222.80 | H97: 3174.40 | I97: 3329.80 | J97: 3378.20 | K97: 3407.50 | L97: 3348.9 | M97: 3271.2 | N97: 1622000 | O97: -3.81%
A98: 89 | B98: Technology | C98: HEXAWARE | D98: 465.40 | E98: 470.78 | F98: 458.22 | G98: 451.03 | H98: 438.47 | I98: 477.97 | J98: 490.53 | K98: 497.72 | L98: 483.35 | M98: 463.6 | N98: 3361500 | O98: -0.36%
A99: 90 | B99: Metals | C99: HINDALCO | D99: 228.70 | E99: 227.08 | F99: 224.77 | G99: 220.83 | H99: 218.52 | I99: 231.02 | J99: 233.33 | K99: 237.27 | L99: 229.4 | M99: 223.15 | N99: 45108000 | O99: 2.79%
A100: 91 | B100: Oil_Gas | C100: HINDPETRO | D100: 281.95 | E100: 284.62 | F100: 275.68 | G100: 269.42 | H100: 260.48 | I100: 290.88 | J100: 299.82 | K100: 306.08 | L100: 293.55 | M100: 278.35 | N100: 23176125 | O100: 7.67%
A101: 92 | B101: FMCG | C101: HINDUNILVR | D101: 1753.90 | E101: 1752.97 | F101: 1740.93 | G101: 1727.97 | H101: 1715.93 | I101: 1765.93 | J101: 1777.97 | K101: 1790.93 | L101: 1765 | M101: 1740 | N101: 9544800 | O101: 0.41%
A102: 93 | B102: Metals | C102: HINDZINC | D102: 285.20 | E102: 284.40 | F102: 282.30 | G102: 279.40 | H102: 277.30 | I102: 287.30 | J102: 289.40 | K102: 292.30 | L102: 286.5 | M102: 281.5 | N102: 10512000 | O102: 2.37%
A103: 94 | B103: Finance | C103: IBULHSGFIN | D103: 1347.05 | E103: 1353.57 | F103: 1335.63 | G103: 1324.22 | H103: 1306.28 | I103: 1364.98 | J103: 1382.92 | K103: 1394.33 | L103: 1371.5 | M103: 1342.15 | N103: 13825000 | O103: -0.52%
A104: 95 | B104: Banking | C104: ICICIBANK | D104: 331.95 | E104: 332.00 | F104: 319.45 | G104: 306.95 | H104: 294.40 | I104: 344.50 | J104: 357.05 | K104: 369.55 | L104: 344.55 | M104: 319.5 | N104: 129426000 | O104: 4.48%
A105: 96 | B105: Others | C105: ICICIPRULI | D105: 416.40 | E105: 416.32 | F105: 413.43 | G105: 410.47 | H105: 407.58 | I105: 419.28 | J105: 422.17 | K105: 425.13 | L105: 419.2 | M105: 413.35 | N105: 3476200 | O105: -4.29%
A106: 97 | B106: Banking | C106: IDBI | D106: 63.50 | E106: 63.35 | F106: 62.50 | G106: 61.50 | H106: 60.65 | I106: 64.35 | J106: 65.20 | K106: 66.20 | L106: 64.2 | M106: 62.35 | N106: 60010000 | O106: 0.22%
A107: 98 | B107: Telecom | C107: IDEA | D107: 56.65 | E107: 56.37 | F107: 55.33 | G107: 54.02 | H107: 52.98 | I107: 57.68 | J107: 58.72 | K107: 60.03 | L107: 57.4 | M107: 55.05 | N107: 139195000 | O107: -0.93%
A108: 99 | B108: Finance | C108: IDFC | D108: 49.75 | E108: 49.60 | F108: 49.00 | G108: 48.25 | H108: 47.65 | I108: 50.35 | J108: 50.95 | K108: 51.70 | L108: 50.2 | M108: 48.85 | N108: 127604400 | O108: 1.81%
A109: 100 | B109: Banking | C109: IDFCBANK | D109: 43.05 | E109: 42.48 | F109: 41.62 | G109: 40.18 | H109: 39.32 | I109: 43.92 | J109: 44.78 | K109: 46.22 | L109: 43.35 | M109: 41.05 | N109: 151591000 | O109: 3.24%
A110: 101 | B110: Finance | C110: IFCI | D110: 17.15 | E110: 16.98 | F110: 16.57 | G110: 15.98 | H110: 15.57 | I110: 17.57 | J110: 17.98 | K110: 18.57 | L110: 17.4 | M110: 16.4 | N110: 62425000 | O110: 2.71%
A111: 102 | B111: Oil_Gas | C111: IGL | D111: 304.60 | E111: 301.07 | F111: 296.63 | G111: 288.67 | H111: 284.23 | I111: 309.03 | J111: 313.47 | K111: 321.43 | L111: 305.5 | M111: 293.1 | N111: 4543000 | O111: 4.10%
A112: 103 | B112: Cement | C112: INDIACEM | D112: 120.30 | E112: 119.20 | F112: 117.60 | G112: 114.90 | H112: 113.30 | I112: 121.90 | J112: 123.50 | K112: 126.20 | L112: 120.8 | M112: 116.5 | N112: 19880000 | O112: -0.66%
A113: 104 | B113: Banking | C113: INDIANB | D113: 360.10 | E113: 365.93 | F113: 352.87 | G113: 345.63 | H113: 332.57 | I113: 373.17 | J113: 386.23 | K113: 393.47 | L113: 379 | M113: 358.7 | N113: 5104000 | O113: 16.42%
A114: 105 | B114: Others | C114: INDIGO | D114: 1060.45 | E114: 1055.02 | F114: 1033.48 | G114: 1006.52 | H114: 984.98 | I114: 1081.98 | J114: 1103.52 | K114: 1130.48 | L114: 1076.55 | M114: 1028.05 | N114: 4820400 | O114: -4.03%
A115: 106 | B115: Banking | C115: INDUSINDBK | D115: 1984.25 | E115: 1985.95 | F115: 1966.30 | G115: 1948.35 | H115: 1928.70 | I115: 2003.90 | J115: 2023.55 | K115: 2041.50 | L115: 2005.6 | M115: 1968 | N115: 6536100 | O115: 4.23%
A116: 107 | B116: Technology | C116: INFIBEAM | D116: 192.35 | E116: 191.48 | F116: 189.12 | G116: 185.88 | H116: 183.52 | I116: 194.72 | J116: 197.08 | K116: 200.32 | L116: 193.85 | M116: 188.25 | N116: 45900000 | O116: 0.72%
A117: 108 | B117: Telecom | C117: INFRATEL | D117: 293.65 | E117: 293.57 | F117: 289.63 | G117: 285.62 | H117: 281.68 | I117: 297.58 | J117: 301.52 | K117: 305.53 | L117: 297.5 | M117: 289.55 | N117: 6652100 | O117: -1.66%
A118: 109 | B118: Technology | C118: INFY | D118: 1385.55 | E118: 1386.43 | F118: 1378.17 | G118: 1370.78 | H118: 1362.52 | I118: 1393.82 | J118: 1402.08 | K118: 1409.47 | L118: 1394.7 | M118: 1379.05 | N118: 25132200 | O118: 1.57%
A119: 110 | B119: Oil_Gas | C119: IOC | D119: 164.40 | E119: 164.97 | F119: 162.58 | G119: 160.77 | H119: 158.38 | I119: 166.78 | J119: 169.17 | K119: 170.98 | L119: 167.35 | M119: 163.15 | N119: 26544000 | O119: 3.06%
A120: 111 | B120: Infrastructure | C120: IRB | D120: 200.70 | E120: 199.77 | F120: 196.03 | G120: 191.37 | H120: 187.63 | I120: 204.43 | J120: 208.17 | K120: 212.83 | L120: 203.5 | M120: 195.1 | N120: 15942500 | O120: -0.33%
A121: 112 | B121: FMCG | C121: ITC | D121: 303.35 | E121: 303.28 | F121: 301.07 | G121: 298.78 | H121: 296.57 | I121: 305.57 | J121: 307.78 | K121: 310.07 | L121: 305.5 | M121: 301 | N121: 79233600 | O121: 1.16%
A122: 113 | B122: Others | C122: JETAIRWAYS | D122: 303.90 | E122: 299.98 | F122: 289.27 | G122: 274.63 | H122: 263.92 | I122: 314.62 | J122: 325.33 | K122: 339.97 | L122: 310.7 | M122: 285.35 | N122: 5731200 | O122: -8.85%
A123: 114 | B123: Metals | C123: JINDALSTEL | D123: 217.80 | E123: 219.58 | F123: 213.22 | G123: 208.63 | H123: 202.27 | I123: 224.17 | J123: 230.53 | K123: 235.12 | L123: 225.95 | M123: 215 | N123: 31326750 | O123: 1.81%
A124: 115 | B124: Others | C124: JISLJALEQS | D124: 86.35 | E124: 85.92 | F124: 85.03 | G124: 83.72 | H124: 82.83 | I124: 87.23 | J124: 88.12 | K124: 89.43 | L124: 86.8 | M124: 84.6 | N124: 43650000 | O124: -1.20%
A125: 116 | B125: Realty | C125: JPASSOCIAT | D125: 14.15 | E125: 14.65 | F125: 12.95 | G125: 11.75 | H125: 10.05 | I125: 15.85 | J125: 17.55 | K125: 18.75 | L125: 16.35 | M125: 13.45 | N125: 182478000 | O125: -1.56%
A126: 117 | B126: Metals | C126: JSWSTEEL | D126: 344.65 | E126: 344.38 | F126: 342.27 | G126: 339.88 | H126: 337.77 | I126: 346.77 | J126: 348.88 | K126: 351.27 | L126: 346.5 | M126: 342 | N126: 63267000 | O126: 0.32%
A127: 118 | B127: Others | C127: JUBLFOOD | D127: 1498.05 | E127: 1502.52 | F127: 1485.53 | G127: 1473.02 | H127: 1456.03 | I127: 1515.03 | J127: 1532.02 | K127: 1544.53 | L127: 1519.5 | M127: 1490 | N127: 3098500 | O127: -0.59%
A128: 119 | B128: Others | C128: JUSTDIAL | D128: 576.60 | E128: 577.07 | F128: 572.18 | G128: 567.77 | H128: 562.88 | I128: 581.48 | J128: 586.37 | K128: 590.78 | L128: 581.95 | M128: 572.65 | N128: 2940000 | O128: -1.45%
A129: 120 | B129: Others | C129: KAJARIACER | D129: 438.65 | E129: 438.27 | F129: 430.83 | G129: 423.02 | H129: 415.58 | I129: 446.08 | J129: 453.52 | K129: 461.33 | L129: 445.7 | M129: 430.45 | N129: 2366000 | O129: 4.51%
A130: 121 | B130: Banking | C130: KOTAKBANK | D130: 1279.55 | E130: 1282.05 | F130: 1270.10 | G130: 1260.65 | H130: 1248.70 | I130: 1291.50 | J130: 1303.45 | K130: 1312.90 | L130: 1294 | M130: 1272.6 | N130: 14356800 | O130: 5.89%
A131: 122 | B131: Technology | C131: KPIT | D131: 293.65 | E131: 296.90 | F131: 288.80 | G131: 283.95 | H131: 275.85 | I131: 301.75 | J131: 309.85 | K131: 314.70 | L131: 305 | M131: 292.05 | N131: 5805000 | O131: 10.16%
A132: 123 | B132: Others | C132: KSCL | D132: 621.25 | E132: 615.72 | F132: 605.63 | G132: 590.02 | H132: 579.93 | I132: 631.33 | J132: 641.42 | K132: 657.03 | L132: 625.8 | M132: 600.1 | N132: 1419000 | O132: -5.87%
A133: 124 | B133: Banking | C133: KTKBANK | D133: 124.25 | E133: 124.58 | F133: 122.02 | G133: 119.78 | H133: 117.22 | I133: 126.82 | J133: 129.38 | K133: 131.62 | L133: 127.15 | M133: 122.35 | N133: 18558000 | O133: 1.70%
A134: 125 | B134: Finance | C134: L&TFH | D134: 180.70 | E134: 179.55 | F134: 176.70 | G134: 172.70 | H134: 169.85 | I134: 183.55 | J134: 186.40 | K134: 190.40 | L134: 182.4 | M134: 175.55 | N134: 31149000 | O134: 2.38%
A135: 126 | B135: Finance | C135: LICHSGFIN | D135: 560.30 | E135: 557.20 | F135: 551.85 | G135: 543.40 | H135: 538.05 | I135: 565.65 | J135: 571.00 | K135: 579.45 | L135: 562.55 | M135: 548.75 | N135: 10564400 | O135: -0.10%
A136: 127 | B136: Capital_Goods | C136: LT | D136: 1274.85 | E136: 1279.63 | F136: 1268.57 | G136: 1262.28 | H136: 1251.22 | I136: 1285.92 | J136: 1296.98 | K136: 1303.27 | L136: 1290.7 | M136: 1273.35 | N136: 15462000 | O136: 3.14%
A137: 128 | B137: Pharma | C137: LUPIN | D137: 821.00 | E137: 823.18 | F137: 802.87 | G137: 784.73 | H137: 764.42 | I137: 841.32 | J137: 861.63 | K137: 879.77 | L137: 843.5 | M137: 805.05 | N137: 12789000 | O137: 5.25%
A138: 129 | B138: Automobile | C138: M&M | D138: 936.75 | E138: 936.85 | F138: 930.80 | G138: 924.85 | H138: 918.80 | I138: 942.80 | J138: 948.85 | K138: 954.80 | L138: 942.9 | M138: 930.9 | N138: 16516000 | O138: -1.77%
A139: 130 | B139: Finance | C139: M&MFIN | D139: 496.95 | E139: 498.38 | F139: 494.07 | G139: 491.18 | H139: 486.87 | I139: 501.27 | J139: 505.58 | K139: 508.47 | L139: 502.7 | M139: 495.5 | N139: 8932500 | O139: 0.68%
A140: 131 | B140: Others | C140: MANAPPURAM | D140: 112.60 | E140: 112.27 | F140: 110.43 | G140: 108.27 | H140: 106.43 | I140: 114.43 | J140: 116.27 | K140: 118.43 | L140: 114.1 | M140: 110.1 | N140: 13122000 | O140: -4.33%
A141: 132 | B141: FMCG | C141: MARICO | D141: 364.50 | E141: 364.42 | F141: 361.33 | G141: 358.17 | H141: 355.08 | I141: 367.58 | J141: 370.67 | K141: 373.83 | L141: 367.5 | M141: 361.25 | N141: 7290400 | O141: -2.47%
A142: 133 | B142: Automobile | C142: MARUTI | D142: 9109.00 | E142: 9113.72 | F142: 9027.48 | G142: 8945.97 | H142: 8859.73 | I142: 9195.23 | J142: 9281.47 | K142: 9362.98 | L142: 9199.95 | M142: 9032.2 | N142: 2530425 | O142: 7.22%
A143: 134 | B143: FMCG | C143: MCDOWELL-N | D143: 611.95 | E143: 609.37 | F143: 604.33 | G143: 596.72 | H143: 591.68 | I143: 616.98 | J143: 622.02 | K143: 629.63 | L143: 614.4 | M143: 601.75 | N143: 10286250 | O143: -1.03%
A144: 135 | B144: Others | C144: MCX | D144: 867.05 | E144: 866.03 | F144: 857.27 | G144: 847.48 | H144: 838.72 | I144: 875.82 | J144: 884.58 | K144: 894.37 | L144: 874.8 | M144: 856.25 | N144: 4375000 | O144: -0.62%
A145: 136 | B145: Finance | C145: MFSL | D145: 502.75 | E145: 504.25 | F145: 498.00 | G145: 493.25 | H145: 487.00 | I145: 509.00 | J145: 515.25 | K145: 520.00 | L145: 510.5 | M145: 499.5 | N145: 2504400 | O145: -0.95%
A146: 137 | B146: Others | C146: MGL | D146: 956.00 | E146: 955.05 | F146: 946.25 | G146: 936.50 | H146: 927.70 | I146: 964.80 | J146: 973.60 | K146: 983.35 | L146: 963.85 | M146: 945.3 | N146: 1124400 | O146: 4.40%
A147: 138 | B147: Technology | C147: MINDTREE | D147: 950.90 | E147: 953.02 | F147: 938.88 | G147: 926.87 | H147: 912.73 | I147: 965.03 | J147: 979.17 | K147: 991.18 | L147: 967.15 | M147: 941 | N147: 4129200 | O147: 1.44%
A148: 139 | B148: Automobile | C148: MOTHERSUMI | D148: 305.40 | E148: 306.50 | F148: 302.55 | G148: 299.70 | H148: 295.75 | I148: 309.35 | J148: 313.30 | K148: 316.15 | L148: 310.45 | M148: 303.65 | N148: 14601600 | O148: 0.90%
A149: 140 | B149: Automobile | C149: MRF | D149: 76308.25 | E149: 76444.75 | F149: 75364.50 | G149: 74420.75 | H149: 73340.50 | I149: 77388.50 | J149: 78468.75 | K149: 79412.50 | L149: 77525 | M149: 75501 | N149: 34140 | O149: 6.06%
A150: 141 | B150: Others | C150: MRPL | D150: 84.45 | E150: 83.55 | F150: 82.10 | G150: 79.75 | H150: 78.30 | I150: 85.90 | J150: 87.35 | K150: 89.70 | L150: 85 | M150: 81.2 | N150: 5409000 | O150: 0.75%
A151: 142 | B151: Finance | C151: MUTHOOTFIN | D151: 428.65 | E151: 426.80 | F151: 423.35 | G151: 418.05 | H151: 414.60 | I151: 432.10 | J151: 435.55 | K151: 440.85 | L151: 430.25 | M151: 421.5 | N151: 2310000 | O151: 2.53%
A152: 143 | B152: Others | C152: NATIONALUM | D152: 71.70 | E152: 71.47 | F152: 70.23 | G152: 68.77 | H152: 67.53 | I152: 72.93 | J152: 74.17 | K152: 75.63 | L152: 72.7 | M152: 70 | N152: 53000000 | O152: 0.21%
A153: 144 | B153: Others | C153: NBCC | D153: 77.75 | E153: 76.97 | F153: 75.88 | G153: 74.02 | H153: 72.93 | I153: 78.83 | J153: 79.92 | K153: 81.78 | L153: 78.05 | M153: 75.1 | N153: 21642000 | O153: -2.09%
A154: 145 | B154: Infrastructure | C154: NCC | D154: 100.65 | E154: 99.33 | F154: 97.57 | G154: 94.48 | H154: 92.72 | I154: 102.42 | J154: 104.18 | K154: 107.27 | L154: 101.1 | M154: 96.25 | N154: 47304000 | O154: 2.87%
A155: 146 | B155: Others | C155: NESTLEIND | D155: 10879.30 | E155: 10895.45 | F155: 10805.85 | G155: 10732.40 | H155: 10642.80 | I155: 10968.90 | J155: 11058.50 | K155: 11131.95 | L155: 10985.05 | M155: 10822 | N155: 283900 | O155: -4.67%
A156: 147 | B156: Power | C156: NHPC | D156: 24.60 | E156: 24.58 | F156: 24.52 | G156: 24.43 | H156: 24.37 | I156: 24.67 | J156: 24.73 | K156: 24.82 | L156: 24.65 | M156: 24.5 | N156: 24840000 | O156: 0.33%
A157: 148 | B157: Technology | C157: NIITTECH | D157: 1271.55 | E157: 1280.83 | F157: 1256.72 | G157: 1241.88 | H157: 1217.77 | I157: 1295.67 | J157: 1319.78 | K157: 1334.62 | L157: 1304.95 | M157: 1266 | N157: 1008000 | O157: -7.31%
A158: 149 | B158: Metals | C158: NMDC | D158: 107.35 | E158: 108.42 | F158: 103.43 | G158: 99.52 | H158: 94.53 | I158: 112.33 | J158: 117.32 | K158: 121.23 | L158: 113.4 | M158: 104.5 | N158: 29070000 | O158: -3.12%
A159: 150 | B159: Power | C159: NTPC | D159: 160.30 | E159: 159.35 | F159: 158.05 | G159: 155.80 | H159: 154.50 | I159: 161.60 | J159: 162.90 | K159: 165.15 | L159: 160.65 | M159: 157.1 | N159: 35208000 | O159: 0.42%
A160: 151 | B160: Technology | C160: OFSS | D160: 3950.75 | E160: 3939.87 | F160: 3919.73 | G160: 3888.72 | H160: 3868.58 | I160: 3970.88 | J160: 3991.02 | K160: 4022.03 | L160: 3960 | M160: 3908.85 | N160: 85500 | O160: 3.83%
A161: 152 | B161: Oil_Gas | C161: OIL | D161: 215.40 | E161: 216.00 | F161: 213.95 | G161: 212.50 | H161: 210.45 | I161: 217.45 | J161: 219.50 | K161: 220.95 | L161: 218.05 | M161: 214.55 | N161: 3463581 | O161: 0.89%
A162: 153 | B162: Oil_Gas | C162: ONGC | D162: 169.65 | E162: 170.37 | F162: 167.98 | G162: 166.32 | H162: 163.93 | I162: 172.03 | J162: 174.42 | K162: 176.08 | L162: 172.75 | M162: 168.7 | N162: 41921250 | O162: 0.85%
A163: 154 | B163: Banking | C163: ORIENTBANK | D163: 81.55 | E163: 80.82 | F163: 79.18 | G163: 76.82 | H163: 75.18 | I163: 83.18 | J163: 84.82 | K163: 87.18 | L163: 82.45 | M163: 78.45 | N163: 12978000 | O163: 0.05%
A164: 155 | B164: Textile | C164: PAGEIND | D164: 32291.30 | E164: 31523.77 | F164: 30517.53 | G164: 28743.77 | H164: 27737.53 | I164: 33297.53 | J164: 34303.77 | K164: 36077.53 | L164: 32530 | M164: 29750 | N164: 58150 | O164: 14.19%
A165: 156 | B165: Others | C165: PCJEWELLER | D165: 101.80 | E165: 98.80 | F165: 93.80 | G165: 85.80 | H165: 80.80 | I165: 106.80 | J165: 111.80 | K165: 119.80 | L165: 103.8 | M165: 90.8 | N165: 11790000 | O165: 20.90%
A166: 157 | B166: Pharma | C166: PEL | D166: 2887.80 | E166: 2893.47 | F166: 2866.93 | G166: 2846.07 | H166: 2819.53 | I166: 2914.33 | J166: 2940.87 | K166: 2961.73 | L166: 2920 | M166: 2872.6 | N166: 1965718 | O166: 0.51%
A167: 158 | B167: Oil_Gas | C167: PETRONET | D167: 230.95 | E167: 230.35 | F167: 228.90 | G167: 226.85 | H167: 225.40 | I167: 232.40 | J167: 233.85 | K167: 235.90 | L167: 231.8 | M167: 228.3 | N167: 18906000 | O167: 1.74%
A168: 159 | B168: Finance | C168: PFC | D168: 87.45 | E168: 85.78 | F168: 83.82 | G168: 80.18 | H168: 78.22 | I168: 89.42 | J168: 91.38 | K168: 95.02 | L168: 87.75 | M168: 82.15 | N168: 79302000 | O168: 0.59%
A169: 160 | B169: FMCG | C169: PIDILITIND | D169: 1123.60 | E169: 1126.35 | F169: 1116.25 | G169: 1108.90 | H169: 1098.80 | I169: 1133.70 | J169: 1143.80 | K169: 1151.15 | L169: 1136.45 | M169: 1119 | N169: 3605000 | O169: -2.33%
A170: 161 | B170: Banking | C170: PNB | D170: 83.70 | E170: 83.07 | F170: 81.93 | G170: 80.17 | H170: 79.03 | I170: 84.83 | J170: 85.97 | K170: 87.73 | L170: 84.2 | M170: 81.3 | N170: 126478000 | O170: -5.08%
A171: 162 | B171: Power | C171: POWERGRID | D171: 192.05 | E171: 190.57 | F171: 188.78 | G171: 185.52 | H171: 183.73 | I171: 193.83 | J171: 195.62 | K171: 198.88 | L171: 192.35 | M171: 187.3 | N171: 43728000 | O171: -0.47%
A172: 163 | B172: Power | C172: PTC | D172: 81.70 | E172: 82.07 | F172: 80.63 | G172: 79.57 | H172: 78.13 | I172: 83.13 | J172: 84.57 | K172: 85.63 | L172: 83.5 | M172: 81 | N172: 26064000 | O172: -3.06%
A173: 164 | B173: Others | C173: PVR | D173: 1287.10 | E173: 1274.33 | F173: 1252.77 | G173: 1218.43 | H173: 1196.87 | I173: 1308.67 | J173: 1330.23 | K173: 1364.57 | L173: 1295.9 | M173: 1240 | N173: 1235200 | O173: 1.31%
A174: 165 | B174: Cement | C174: RAMCOCEM | D174: 662.35 | E174: 661.37 | F174: 653.83 | G174: 645.32 | H174: 637.78 | I174: 669.88 | J174: 677.42 | K174: 685.93 | L174: 668.9 | M174: 652.85 | N174: 978400 | O174: 0.33%
A175: 166 | B175: Others | C175: RAYMOND | D175: 794.40 | E175: 787.65 | F175: 776.95 | G175: 759.50 | H175: 748.80 | I175: 805.10 | J175: 815.80 | K175: 833.25 | L175: 798.35 | M175: 770.2 | N175: 5293600 | O175: 0.72%
A176: 167 | B176: Banking | C176: RBLBANK | D176: 570.70 | E176: 572.67 | F176: 562.03 | G176: 553.37 | H176: 542.73 | I176: 581.33 | J176: 591.97 | K176: 600.63 | L176: 583.3 | M176: 564 | N176: 5845200 | O176: 5.43%
A177: 168 | B177: Telecom | C177: RCOM | D177: 20.20 | E177: 19.88 | F177: 19.12 | G177: 18.03 | H177: 17.27 | I177: 20.97 | J177: 21.73 | K177: 22.82 | L177: 20.65 | M177: 18.8 | N177: 130312000 | O177: -0.17%
A178: 169 | B178: Power | C178: RECLTD | D178: 116.20 | E178: 115.00 | F178: 112.35 | G178: 108.50 | H178: 105.85 | I178: 118.85 | J178: 121.50 | K178: 125.35 | L178: 117.65 | M178: 111.15 | N178: 41496000 | O178: 2.87%
A179: 170 | B179: Finance | C179: RELCAPITAL | D179: 444.05 | E179: 442.82 | F179: 436.33 | G179: 428.62 | H179: 422.13 | I179: 450.53 | J179: 457.02 | K179: 464.73 | L179: 449.3 | M179: 435.1 | N179: 11166000 | O179: 1.57%
A180: 171 | B180: Oil_Gas | C180: RELIANCE | D180: 1220.95 | E180: 1222.77 | F180: 1212.53 | G180: 1204.12 | H180: 1193.88 | I180: 1231.18 | J180: 1241.42 | K180: 1249.83 | L180: 1233 | M180: 1214.35 | N180: 50681000 | O180: -0.76%
A181: 172 | B181: Power | C181: RELINFRA | D181: 421.75 | E181: 421.58 | F181: 416.32 | G181: 410.88 | H181: 405.62 | I181: 427.02 | J181: 432.28 | K181: 437.72 | L181: 426.85 | M181: 416.15 | N181: 10221900 | O181: 3.22%
A182: 173 | B182: Others | C182: REPCOHOME | D182: 607.80 | E182: 607.68 | F182: 603.37 | G182: 598.93 | H182: 594.62 | I182: 612.12 | J182: 616.43 | K182: 620.87 | L182: 612 | M182: 603.25 | N182: 502200 | O182: 1.09%
A183: 174 | B183: Power | C183: RPOWER | D183: 34.65 | E183: 34.57 | F183: 33.98 | G183: 33.32 | H183: 32.73 | I183: 35.23 | J183: 35.82 | K183: 36.48 | L183: 35.15 | M183: 33.9 | N183: 48529000 | O183: 0.57%
A184: 175 | B184: Metals | C184: SAIL | D184: 80.85 | E184: 80.73 | F184: 79.72 | G184: 78.58 | H184: 77.57 | I184: 81.87 | J184: 82.88 | K184: 84.02 | L184: 81.75 | M184: 79.6 | N184: 77604000 | O184: -5.62%
A185: 176 | B185: Banking | C185: SBIN | D185: 316.90 | E185: 315.65 | F185: 311.80 | G185: 306.70 | H185: 302.85 | I185: 320.75 | J185: 324.60 | K185: 329.70 | L185: 319.5 | M185: 310.55 | N185: 87906000 | O185: 2.68%
A186: 177 | B186: Cement | C186: SHREECEM | D186: 17324.45 | E186: 17312.37 | F186: 17175.73 | G186: 17027.02 | H186: 16890.38 | I186: 17461.08 | J186: 17597.72 | K186: 17746.43 | L186: 17449 | M186: 17163.65 | N186: 97800 | O186: -0.20%
A187: 178 | B187: Capital_Goods | C187: SIEMENS | D187: 1007.85 | E187: 1010.97 | F187: 989.93 | G187: 972.02 | H187: 950.98 | I187: 1028.88 | J187: 1049.92 | K187: 1067.83 | L187: 1032 | M187: 993.05 | N187: 1290000 | O187: 1.53%
A188: 179 | B188: Banking | C188: SOUTHBANK | D188: 18.45 | E188: 18.37 | F188: 18.18 | G188: 17.92 | H188: 17.73 | I188: 18.63 | J188: 18.82 | K188: 19.08 | L188: 18.55 | M188: 18.1 | N188: 145223862 | O188: 0.18%
A189: 180 | B189: Others | C189: SREINFRA | D189: 54.05 | E189: 54.18 | F189: 52.97 | G189: 51.88 | H189: 50.67 | I189: 55.27 | J189: 56.48 | K189: 57.57 | L189: 55.4 | M189: 53.1 | N189: 16961000 | O189: 0.29%
A190: 181 | B190: Textile | C190: SRF | D190: 1889.40 | E190: 1884.63 | F190: 1866.27 | G190: 1843.13 | H190: 1824.77 | I190: 1907.77 | J190: 1926.13 | K190: 1949.27 | L190: 1903 | M190: 1861.5 | N190: 916500 | O190: -6.24%
A191: 182 | B191: Finance | C191: SRTRANSFIN | D191: 1423.30 | E191: 1426.52 | F191: 1408.98 | G191: 1394.67 | H191: 1377.13 | I191: 1440.83 | J191: 1458.37 | K191: 1472.68 | L191: 1444.05 | M191: 1412.2 | N191: 3504000 | O191: 0.57%
A192: 183 | B192: Pharma | C192: STAR | D192: 426.35 | E192: 427.42 | F192: 416.83 | G192: 407.32 | H192: 396.73 | I192: 436.93 | J192: 447.52 | K192: 457.03 | L192: 438 | M192: 417.9 | N192: 5530400 | O192: 11.66%
A193: 184 | B193: Pharma | C193: SUNPHARMA | D193: 572.10 | E193: 574.33 | F193: 562.17 | G193: 552.23 | H193: 540.07 | I193: 584.27 | J193: 596.43 | K193: 606.37 | L193: 586.5 | M193: 564.4 | N193: 41162000 | O193: 1.01%
A194: 185 | B194: Media | C194: SUNTV | D194: 832.85 | E194: 826.97 | F194: 818.98 | G194: 805.12 | H194: 797.13 | I194: 840.83 | J194: 848.82 | K194: 862.68 | L194: 834.95 | M194: 813.1 | N194: 7816000 | O194: 0.67%
A195: 186 | B195: Power | C195: SUZLON | D195: 7.50 | E195: 7.42 | F195: 7.23 | G195: 6.97 | H195: 6.78 | I195: 7.68 | J195: 7.87 | K195: 8.13 | L195: 7.6 | M195: 7.15 | N195: 327285000 | O195: 3.53%
A196: 187 | B196: Banking | C196: SYNDIBANK | D196: 42.65 | E196: 42.45 | F196: 41.70 | G196: 40.75 | H196: 40.00 | I196: 43.40 | J196: 44.15 | K196: 45.10 | L196: 43.2 | M196: 41.5 | N196: 27522000 | O196: -2.27%
A197: 188 | B197: Fertilisers | C197: TATACHEM | D197: 676.00 | E197: 675.77 | F197: 670.73 | G197: 665.47 | H197: 660.43 | I197: 681.03 | J197: 686.07 | K197: 691.33 | L197: 680.8 | M197: 670.5 | N197: 3433500 | O197: -0.80%
A198: 189 | B198: Telecom | C198: TATACOMM | D198: 593.55 | E198: 592.03 | F198: 579.62 | G198: 565.68 | H198: 553.27 | I198: 605.97 | J198: 618.38 | K198: 632.32 | L198: 604.45 | M198: 578.1 | N198: 3267200 | O198: 1.11%
A199: 190 | B199: Technology | C199: TATAELXSI | D199: 1396.25 | E199: 1403.47 | F199: 1384.98 | G199: 1373.72 | H199: 1355.23 | I199: 1414.73 | J199: 1433.22 | K199: 1444.48 | L199: 1421.95 | M199: 1392.2 | N199: 2336800 | O199: 3.99%
A200: 191 | B200: FMCG | C200: TATAGLOBAL | D200: 238.45 | E200: 238.47 | F200: 236.13 | G200: 233.82 | H200: 231.48 | I200: 240.78 | J200: 243.12 | K200: 245.43 | L200: 240.8 | M200: 236.15 | N200: 16215750 | O200: 0.06%
A201: 192 | B201: Automobile | C201: TATAMOTORS | D201: 258.95 | E201: 258.02 | F201: 254.23 | G201: 249.52 | H201: 245.73 | I201: 262.73 | J201: 266.52 | K201: 271.23 | L201: 261.8 | M201: 253.3 | N201: 84796500 | O201: -0.78%
A202: 193 | B202: Automobile | C202: TATAMTRDVR | D202: 144.05 | E202: 144.05 | F202: 142.90 | G202: 141.75 | H202: 140.60 | I202: 145.20 | J202: 146.35 | K202: 147.50 | L202: 145.2 | M202: 142.9 | N202: 30265200 | O202: 0.60%
A203: 194 | B203: Power | C203: TATAPOWER | D203: 70.35 | E203: 69.85 | F203: 69.00 | G203: 67.65 | H203: 66.80 | I203: 71.20 | J203: 72.05 | K203: 73.40 | L203: 70.7 | M203: 68.5 | N203: 51075000 | O203: 1.34%
A204: 195 | B204: Metals | C204: TATASTEEL | D204: 587.95 | E204: 584.90 | F204: 580.35 | G204: 572.75 | H204: 568.20 | I204: 592.50 | J204: 597.05 | K204: 604.65 | L204: 589.45 | M204: 577.3 | N204: 44862263 | O204: -0.11%
A205: 196 | B205: Technology | C205: TCS | D205: 1972.50 | E205: 1970.87 | F205: 1964.68 | G205: 1956.87 | H205: 1950.68 | I205: 1978.68 | J205: 1984.87 | K205: 1992.68 | L205: 1977.05 | M205: 1963.05 | N205: 10774500 | O205: -1.60%
A206: 197 | B206: Technology | C206: TECHM | D206: 649.90 | E206: 652.75 | F206: 643.85 | G206: 637.80 | H206: 628.90 | I206: 658.80 | J206: 667.70 | K206: 673.75 | L206: 661.65 | M206: 646.7 | N206: 17150400 | O206: 4.09%
... 35 more rows

Sheet Cash Intra
M5: Back to Main Page
A6: FOR INTRA DAY TRADING | K6: =Main!B10 -> 2018-08-10
A8: Sr.no | B8: Scrip | C8: CLOSE RATE | D8: Pivot Point | E8: Supports | H8: Resistances
C9: Point | E9: S1 | F9: S2 | G9: S3 | H9: R1 | I9: R2 | J9: R3 | K9: HIGH | L9: LOW | M9: Total Trade Quanity in Lakhs
A10: 1 | B10: Nifty 50 | C10: 11470.7 | D10: 11473.33 | E10: 11451.47 | F10: 11432.23 | G10: 11410.37 | H10: 11492.57 | I10: 11514.43 | J10: 11533.67 | K10: 11495.2 | L10: 11454.1
A11: 2 | B11: Nifty Bank | C11: 28320 | D11: 28271.80 | E11: 28180.20 | F11: 28040.40 | G11: 27948.80 | H11: 28411.60 | I11: 28503.20 | J11: 28643.00 | K11: 28363.4 | L11: 28132
A12: 3 | B12: Nifty CPSE | C12: 2372.7 | D12: 2375.70 | E12: 2361.65 | F12: 2350.60 | G12: 2336.55 | H12: 2386.75 | I12: 2400.80 | J12: 2411.85 | K12: 2389.75 | L12: 2364.65
A13: 4 | B13: Nifty Infra | C13: 3155.35 | D13: 3157.70 | E13: 3145.90 | F13: 3136.45 | G13: 3124.65 | H13: 3167.15 | I13: 3178.95 | J13: 3188.40 | K13: 3169.5 | L13: 3148.25
A14: 5 | B14: Nifty IT | C14: 14603.35 | D14: 14618.25 | E14: 14574.05 | F14: 14544.75 | G14: 14500.55 | H14: 14647.55 | I14: 14691.75 | J14: 14721.05 | K14: 14662.45 | L14: 14588.95
A15: 6 | B15: Nifty PSE | C15: 3692.75 | D15: 3688.70 | E15: 3672.75 | F15: 3652.75 | G15: 3636.80 | H15: 3708.70 | I15: 3724.65 | J15: 3744.65 | K15: 3704.65 | L15: 3668.7
A16: 7 | B16: Nifty Midcap 50 | C16: 5065.75 | D16: 5059.72 | E16: 5042.53 | F16: 5019.32 | G16: 5002.13 | H16: 5082.93 | I16: 5100.12 | J16: 5123.33 | K16: 5076.9 | L16: 5036.5
A17: 8 | B17: ABB | C17: 1200.3 | D17: 1204.73 | E17: 1187.57 | F17: 1174.83 | G17: 1157.67 | H17: 1217.47 | I17: 1234.63 | J17: 1247.37 | K17: 1221.9 | L17: 1192 | M17: 0.26813
A18: 9 | B18: ACC | C18: 1570.75 | D18: 1561.95 | E18: 1546.90 | F18: 1523.05 | G18: 1508.00 | H18: 1585.80 | I18: 1600.85 | J18: 1624.70 | K18: 1577 | L18: 1538.1 | M18: 6.9143
A19: 10 | B19: AIAENG | C19: 1758.55 | D19: 1764.52 | E19: 1729.03 | F19: 1699.52 | G19: 1664.03 | H19: 1794.03 | I19: 1829.52 | J19: 1859.03 | K19: 1800 | L19: 1735 | M19: 0.1293
A20: 11 | B20: AUBANK | C20: 644.55 | D20: 648.15 | E20: 637.40 | F20: 630.25 | G20: 619.50 | H20: 655.30 | I20: 666.05 | J20: 673.20 | K20: 658.9 | L20: 641 | M20: 1.16074
A21: 12 | B21: ADANIENT | C21: 200.35 | D21: 201.82 | E21: 196.73 | F21: 193.12 | G21: 188.03 | H21: 205.43 | I21: 210.52 | J21: 214.13 | K21: 206.9 | L21: 198.2 | M21: 152.37502
A22: 13 | B22: ADANIPORTS | C22: 378 | D22: 376.85 | E22: 372.70 | F22: 367.40 | G22: 363.25 | H22: 382.15 | I22: 386.30 | J22: 391.60 | K22: 381 | L22: 371.55 | M22: 19.92284
A23: 14 | B23: ADANIPOWER | C23: 32.4 | D23: 32.58 | E23: 31.67 | F23: 30.93 | G23: 30.02 | H23: 33.32 | I23: 34.23 | J23: 34.97 | K23: 33.5 | L23: 31.85 | M23: 497.41068
A24: 15 | B24: ABFRL | C24: 181.9 | D24: 180.33 | E24: 176.67 | F24: 171.43 | G24: 167.77 | H24: 185.57 | I24: 189.23 | J24: 194.47 | K24: 184 | L24: 175.1 | M24: 16.70435
A25: 16 | B25: AJANTPHARM | C25: 1155.3 | D25: 1168.77 | E25: 1134.53 | F25: 1113.77 | G25: 1079.53 | H25: 1189.53 | I25: 1223.77 | J25: 1244.53 | K25: 1203 | L25: 1148 | M25: 6.55412
A26: 17 | B26: ALKEM | C26: 2110 | D26: 2124.33 | E26: 2073.67 | F26: 2037.33 | G26: 1986.67 | H26: 2160.67 | I26: 2211.33 | J26: 2247.67 | K26: 2175 | L26: 2088 | M26: 0.09468
A27: 18 | B27: AMARAJABAT | C27: 822.1 | D27: 820.37 | E27: 815.68 | F27: 809.27 | G27: 804.58 | H27: 826.78 | I27: 831.47 | J27: 837.88 | K27: 825.05 | L27: 813.95 | M27: 2.13252
A28: 19 | B28: AMBUJACEM | C28: 232.4 | D28: 231.82 | E28: 230.48 | F28: 228.57 | G28: 227.23 | H28: 233.73 | I28: 235.07 | J28: 236.98 | K28: 233.15 | L28: 229.9 | M28: 12.11459
A29: 20 | B29: APOLLOHOSP | C29: 963.55 | D29: 968.85 | E29: 954.70 | F29: 945.85 | G29: 931.70 | H29: 977.70 | I29: 991.85 | J29: 1000.70 | K29: 983 | L29: 960 | M29: 2.11012
A30: 21 | B30: APOLLOTYRE | C30: 271.3 | D30: 272.47 | E30: 268.93 | F30: 266.57 | G30: 263.03 | H30: 274.83 | I30: 278.37 | J30: 280.73 | K30: 276 | L30: 270.1 | M30: 27.81246
A31: 22 | B31: ARVIND | C31: 395.8 | D31: 396.25 | E31: 391.60 | F31: 387.40 | G31: 382.75 | H31: 400.45 | I31: 405.10 | J31: 409.30 | K31: 400.9 | L31: 392.05 | M31: 25.95191
A32: 23 | B32: ASHOKLEY | C32: 129.25 | D32: 127.92 | E32: 126.08 | F32: 122.92 | G32: 121.08 | H32: 131.08 | I32: 132.92 | J32: 136.08 | K32: 129.75 | L32: 124.75 | M32: 270.80247
A33: 24 | B33: ASIANPAINT | C33: 1417.35 | D33: 1421.80 | E33: 1409.65 | F33: 1401.95 | G33: 1389.80 | H33: 1429.50 | I33: 1441.65 | J33: 1449.35 | K33: 1433.95 | L33: 1414.1 | M33: 9.03734
A34: 25 | B34: AUROPHARMA | C34: 599.7 | D34: 602.33 | E34: 590.17 | F34: 580.63 | G34: 568.47 | H34: 611.87 | I34: 624.03 | J34: 633.57 | K34: 614.5 | L34: 592.8 | M34: 34.62964
A35: 26 | B35: DMART | C35: 1613.2 | D35: 1620.67 | E35: 1601.53 | F35: 1589.87 | G35: 1570.73 | H35: 1632.33 | I35: 1651.47 | J35: 1663.13 | K35: 1639.8 | L35: 1609 | M35: 5.37932
A36: 27 | B36: AXISBANK | C36: 621.05 | D36: 613.48 | E36: 602.57 | F36: 584.08 | G36: 573.17 | H36: 631.97 | I36: 642.88 | J36: 661.37 | K36: 624.4 | L36: 595 | M36: 182.27195
A37: 28 | B37: BAJAJ-AUTO | C37: 2658.6 | D37: 2662.17 | E37: 2637.48 | F37: 2616.37 | G37: 2591.68 | H37: 2683.28 | I37: 2707.97 | J37: 2729.08 | K37: 2686.85 | L37: 2641.05 | M37: 4.48329
A38: 29 | B38: BAJFINANCE | C38: 2830.15 | D38: 2825.40 | E38: 2804.75 | F38: 2779.35 | G38: 2758.70 | H38: 2850.80 | I38: 2871.45 | J38: 2896.85 | K38: 2846.05 | L38: 2800 | M38: 11.47083
A39: 30 | B39: BAJAJFINSV | C39: 7075.1 | D39: 7065.03 | E39: 7010.07 | F39: 6945.03 | G39: 6890.07 | H39: 7130.07 | I39: 7185.03 | J39: 7250.07 | K39: 7120 | L39: 7000 | M39: 1.10927
A40: 31 | B40: BALKRISIND | C40: 1251.4 | D40: 1250.68 | E40: 1236.37 | F40: 1221.33 | G40: 1207.02 | H40: 1265.72 | I40: 1280.03 | J40: 1295.07 | K40: 1265 | L40: 1235.65 | M40: 5.26242
A41: 32 | B41: BANKBARODA | C41: 154.75 | D41: 153.70 | E41: 149.90 | F41: 145.05 | G41: 141.25 | H41: 158.55 | I41: 162.35 | J41: 167.20 | K41: 157.5 | L41: 148.85 | M41: 265.62716
A42: 33 | B42: BANKINDIA | C42: 98 | D42: 97.18 | E42: 95.57 | F42: 93.13 | G42: 91.52 | H42: 99.62 | I42: 101.23 | J42: 103.67 | K42: 98.8 | L42: 94.75 | M42: 115.22528
A43: 34 | B43: BATAINDIA | C43: 954.35 | D43: 952.20 | E43: 943.40 | F43: 932.45 | G43: 923.65 | H43: 963.15 | I43: 971.95 | J43: 982.90 | K43: 961 | L43: 941.25 | M43: 4.54577
A44: 35 | B44: BERGEPAINT | C44: 314.25 | D44: 314.87 | E44: 312.03 | F44: 309.82 | G44: 306.98 | H44: 317.08 | I44: 319.92 | J44: 322.13 | K44: 317.7 | L44: 312.65 | M44: 2.29865
A45: 36 | B45: BEL | C45: 121.2 | D45: 121.15 | E45: 119.20 | F45: 117.20 | G45: 115.25 | H45: 123.15 | I45: 125.10 | J45: 127.10 | K45: 123.1 | L45: 119.15 | M45: 127.79367
A46: 37 | B46: BHARATFIN | C46: 1209.25 | D46: 1210.65 | E46: 1204.00 | F46: 1198.75 | G46: 1192.10 | H46: 1215.90 | I46: 1222.55 | J46: 1227.80 | K46: 1217.3 | L46: 1205.4 | M46: 4.98556
A47: 38 | B47: BHARATFORG | C47: 631.45 | D47: 635.82 | E47: 618.73 | F47: 606.02 | G47: 588.93 | H47: 648.53 | I47: 665.62 | J47: 678.33 | K47: 652.9 | L47: 623.1 | M47: 34.77923
A48: 39 | B48: BHEL | C48: 74.5 | D48: 74.27 | E48: 73.43 | F48: 72.37 | G48: 71.53 | H48: 75.33 | I48: 76.17 | J48: 77.23 | K48: 75.1 | L48: 73.2 | M48: 38.49977
A49: 40 | B49: BPCL | C49: 388.95 | D49: 390.78 | E49: 384.07 | F49: 379.18 | G49: 372.47 | H49: 395.67 | I49: 402.38 | J49: 407.27 | K49: 397.5 | L49: 385.9 | M49: 54.18177
A50: 41 | B50: BHARTIARTL | C50: 367.05 | D50: 372.62 | E50: 358.93 | F50: 350.82 | G50: 337.13 | H50: 380.73 | I50: 394.42 | J50: 402.53 | K50: 386.3 | L50: 364.5 | M50: 110.40336
A51: 42 | B51: INFRATEL | C51: 293.25 | D51: 293.13 | E51: 289.42 | F51: 285.58 | G51: 281.87 | H51: 296.97 | I51: 300.68 | J51: 304.52 | K51: 296.85 | L51: 289.3 | M51: 15.62399
A52: 43 | B52: BIOCON | C52: 570.3 | D52: 569.80 | E52: 564.80 | F52: 559.30 | G52: 554.30 | H52: 575.30 | I52: 580.30 | J52: 585.80 | K52: 574.8 | L52: 564.3 | M52: 14.94292
A53: 44 | B53: BOSCHLTD | C53: 19085 | D53: 19144.45 | E53: 18868.90 | F53: 18652.80 | G53: 18377.25 | H53: 19360.55 | I53: 19636.10 | J53: 19852.20 | K53: 19420 | L53: 18928.35 | M53: 0.10234
A54: 45 | B54: BRITANNIA | C54: 6335.4 | D54: 6324.83 | E54: 6291.12 | F54: 6246.83 | G54: 6213.12 | H54: 6369.12 | I54: 6402.83 | J54: 6447.12 | K54: 6358.55 | L54: 6280.55 | M54: 1.30713
A55: 46 | B55: CRISIL | C55: 1770.8 | D55: 1768.35 | E55: 1762.70 | F55: 1754.60 | G55: 1748.95 | H55: 1776.45 | I55: 1782.10 | J55: 1790.20 | K55: 1774 | L55: 1760.25 | M55: 0.05284
A56: 47 | B56: CADILAHC | C56: 378.55 | D56: 378.10 | E56: 374.80 | F56: 371.05 | G56: 367.75 | H56: 381.85 | I56: 385.15 | J56: 388.90 | K56: 381.4 | L56: 374.35 | M56: 7.34073
A57: 48 | B57: CANBK | C57: 295.95 | D57: 295.92 | E57: 289.53 | F57: 283.12 | G57: 276.73 | H57: 302.33 | I57: 308.72 | J57: 315.13 | K57: 302.3 | L57: 289.5 | M57: 93.04129
A58: 49 | B58: CASTROLIND | C58: 156.4 | D58: 157.15 | E58: 155.00 | F58: 153.60 | G58: 151.45 | H58: 158.55 | I58: 160.70 | J58: 162.10 | K58: 159.3 | L58: 155.75 | M58: 29.20436
A59: 50 | B59: CENTRALBK | C59: 69 | D59: 69.10 | E59: 68.50 | F59: 68.00 | G59: 67.40 | H59: 69.60 | I59: 70.20 | J59: 70.70 | K59: 69.7 | L59: 68.6 | M59: 1.97175
A60: 51 | B60: CENTURYTEX | C60: 908.85 | D60: 906.72 | E60: 900.13 | F60: 891.42 | G60: 884.83 | H60: 915.43 | I60: 922.02 | J60: 930.73 | K60: 913.3 | L60: 898 | M60: 4.85292
A61: 52 | B61: CHOLAFIN | C61: 1443.55 | D61: 1451.03 | E61: 1432.57 | F61: 1421.58 | G61: 1403.12 | H61: 1462.02 | I61: 1480.48 | J61: 1491.47 | K61: 1469.5 | L61: 1440.05 | M61: 1.40389
A62: 53 | B62: CIPLA | C62: 619.15 | D62: 632.78 | E62: 603.07 | F62: 586.98 | G62: 557.27 | H62: 648.87 | I62: 678.58 | J62: 694.67 | K62: 662.5 | L62: 616.7 | M62: 99.96909
A63: 54 | B63: COALINDIA | C63: 280.1 | D63: 280.03 | E63: 276.07 | F63: 272.03 | G63: 268.07 | H63: 284.07 | I63: 288.03 | J63: 292.07 | K63: 284 | L63: 276 | M63: 29.27225
A64: 55 | B64: COLPAL | C64: 1137.25 | D64: 1143.75 | E64: 1128.50 | F64: 1119.75 | G64: 1104.50 | H64: 1152.50 | I64: 1167.75 | J64: 1176.50 | K64: 1159 | L64: 1135 | M64: 2.69399
A65: 56 | B65: CONCOR | C65: 642.45 | D65: 648.87 | E65: 633.73 | F65: 625.02 | G65: 609.88 | H65: 657.58 | I65: 672.72 | J65: 681.43 | K65: 664 | L65: 640.15 | M65: 8.0382
A66: 57 | B66: COROMANDEL | C66: 437.35 | D66: 437.97 | E66: 431.93 | F66: 426.52 | G66: 420.48 | H66: 443.38 | I66: 449.42 | J66: 454.83 | K66: 444 | L66: 432.55 | M66: 0.97517
A67: 58 | B67: CROMPTON | C67: 261.8 | D67: 261.90 | E67: 258.80 | F67: 255.80 | G67: 252.70 | H67: 264.90 | I67: 268.00 | J67: 271.00 | K67: 265 | L67: 258.9 | M67: 1.98855
A68: 59 | B68: CUMMINSIND | C68: 653 | D68: 669.02 | E68: 629.03 | F68: 605.07 | G68: 565.08 | H68: 692.98 | I68: 732.97 | J68: 756.93 | K68: 709 | L68: 645.05 | M68: 20.92865
A69: 60 | B69: DLF | C69: 200.6 | D69: 197.72 | E69: 191.93 | F69: 183.27 | G69: 177.48 | H69: 206.38 | I69: 212.17 | J69: 220.83 | K69: 203.5 | L69: 189.05 | M69: 121.95178
A70: 61 | B70: DABUR | C70: 445.9 | D70: 444.58 | E70: 442.42 | F70: 438.93 | G70: 436.77 | H70: 448.07 | I70: 450.23 | J70: 453.72 | K70: 446.75 | L70: 441.1 | M70: 33.03838
A71: 62 | B71: DALMIABHA | C71: 2657.15 | D71: 2658.03 | E71: 2631.17 | F71: 2605.18 | G71: 2578.32 | H71: 2684.02 | I71: 2710.88 | J71: 2736.87 | K71: 2684.9 | L71: 2632.05 | M71: 0.64336
A72: 63 | B72: DHFL | C72: 616 | D72: 617.22 | E72: 610.78 | F72: 605.57 | G72: 599.13 | H72: 622.43 | I72: 628.87 | J72: 634.08 | K72: 623.65 | L72: 612 | M72: 22.03006
A73: 64 | B73: DISHTV | C73: 68.3 | D73: 68.02 | E73: 67.48 | F73: 66.67 | G73: 66.13 | H73: 68.83 | I73: 69.37 | J73: 70.18 | K73: 68.55 | L73: 67.2 | M73: 19.88588
A74: 65 | B74: DIVISLAB | C74: 1114.95 | D74: 1122.43 | E74: 1103.57 | F74: 1092.18 | G74: 1073.32 | H74: 1133.82 | I74: 1152.68 | J74: 1164.07 | K74: 1141.3 | L74: 1111.05 | M74: 8.39082
A75: 66 | B75: LALPATHLAB | C75: 939.45 | D75: 938.15 | E75: 926.30 | F75: 913.15 | G75: 901.30 | H75: 951.30 | I75: 963.15 | J75: 976.30 | K75: 950 | L75: 925 | M75: 0.46122
A76: 67 | B76: DRREDDY | C76: 2237.7 | D76: 2235.55 | E76: 2207.20 | F76: 2176.70 | G76: 2148.35 | H76: 2266.05 | I76: 2294.40 | J76: 2324.90 | K76: 2263.9 | L76: 2205.05 | M76: 3.90701
A77: 68 | B77: EDELWEISS | C77: 301.55 | D77: 301.85 | E77: 294.70 | F77: 287.85 | G77: 280.70 | H77: 308.70 | I77: 315.85 | J77: 322.70 | K77: 309 | L77: 295 | M77: 22.35025
A78: 69 | B78: EICHERMOT | C78: 27438.75 | D78: 27479.58 | E78: 27159.17 | F78: 26879.58 | G78: 26559.17 | H78: 27759.17 | I78: 28079.58 | J78: 28359.17 | K78: 27800 | L78: 27200 | M78: 0.26797
A79: 70 | B79: EMAMILTD | C79: 581.35 | D79: 578.95 | E79: 573.90 | F79: 566.45 | G79: 561.40 | H79: 586.40 | I79: 591.45 | J79: 598.90 | K79: 584 | L79: 571.5 | M79: 0.94541
A80: 71 | B80: ENDURANCE | C80: 1500.75 | D80: 1496.92 | E80: 1468.83 | F80: 1436.92 | G80: 1408.83 | H80: 1528.83 | I80: 1556.92 | J80: 1588.83 | K80: 1525 | L80: 1465 | M80: 0.45979
A81: 72 | B81: ENGINERSIN | C81: 127.25 | D81: 129.80 | E81: 123.20 | F81: 119.15 | G81: 112.55 | H81: 133.85 | I81: 140.45 | J81: 144.50 | K81: 136.4 | L81: 125.75 | M81: 46.49329
A82: 73 | B82: EXIDEIND | C82: 283.2 | D82: 284.98 | E82: 280.22 | F82: 277.23 | G82: 272.47 | H82: 287.97 | I82: 292.73 | J82: 295.72 | K82: 289.75 | L82: 282 | M82: 23.59738
A83: 74 | B83: FEDERALBNK | C83: 89.55 | D83: 89.52 | E83: 88.33 | F83: 87.12 | G83: 85.93 | H83: 90.73 | I83: 91.92 | J83: 93.13 | K83: 90.7 | L83: 88.3 | M83: 153.23256
A84: 75 | B84: GAIL | C84: 375.55 | D84: 376.73 | E84: 373.07 | F84: 370.58 | G84: 366.92 | H84: 379.22 | I84: 382.88 | J84: 385.37 | K84: 380.4 | L84: 374.25 | M84: 13.30634
A85: 76 | B85: GMRINFRA | C85: 18.6 | D85: 18.45 | E85: 17.95 | F85: 17.30 | G85: 16.80 | H85: 19.10 | I85: 19.60 | J85: 20.25 | K85: 18.95 | L85: 17.8 | M85: 490.22365
A86: 77 | B86: GSKCONS | C86: 6662.2 | D86: 6692.37 | E86: 6619.83 | F86: 6577.47 | G86: 6504.93 | H86: 6734.73 | I86: 6807.27 | J86: 6849.63 | K86: 6764.9 | L86: 6650 | M86: 0.06082
A87: 78 | B87: GLAXO | C87: 3294.8 | D87: 3301.60 | E87: 3278.20 | F87: 3261.60 | G87: 3238.20 | H87: 3318.20 | I87: 3341.60 | J87: 3358.20 | K87: 3325 | L87: 3285 | M87: 0.10332
A88: 79 | B88: GLENMARK | C88: 594.95 | D88: 592.68 | E88: 587.77 | F88: 580.58 | G88: 575.67 | H88: 599.87 | I88: 604.78 | J88: 611.97 | K88: 597.6 | L88: 585.5 | M88: 7.58096
A89: 80 | B89: GODREJCP | C89: 1298.6 | D89: 1301.20 | E89: 1292.40 | F89: 1286.20 | G89: 1277.40 | H89: 1307.40 | I89: 1316.20 | J89: 1322.40 | K89: 1310 | L89: 1295 | M89: 2.70635
A90: 81 | B90: GODREJIND | C90: 619.1 | D90: 619.03 | E90: 610.17 | F90: 601.23 | G90: 592.37 | H90: 627.97 | I90: 636.83 | J90: 645.77 | K90: 627.9 | L90: 610.1 | M90: 3.35459
A91: 82 | B91: GRUH | C91: 336.5 | D91: 334.90 | E91: 332.30 | F91: 328.10 | G91: 325.50 | H91: 339.10 | I91: 341.70 | J91: 345.90 | K91: 337.5 | L91: 330.7 | M91: 4.21512
A92: 83 | B92: GPPL | C92: 114.85 | D92: 114.25 | E92: 111.80 | F92: 108.75 | G92: 106.30 | H92: 117.30 | I92: 119.75 | J92: 122.80 | K92: 116.7 | L92: 111.2 | M92: 4.69107
A93: 84 | B93: GSPL | C93: 200.3 | D93: 201.22 | E93: 198.63 | F93: 196.97 | G93: 194.38 | H93: 202.88 | I93: 205.47 | J93: 207.13 | K93: 203.8 | L93: 199.55 | M93: 1.48112
A94: 85 | B94: HCLTECH | C94: 956.65 | D94: 959.90 | E94: 951.85 | F94: 947.05 | G94: 939.00 | H94: 964.70 | I94: 972.75 | J94: 977.55 | K94: 967.95 | L94: 955.1 | M94: 10.02729
A95: 86 | B95: HDFCBANK | C95: 2118.5 | D95: 2118.38 | E95: 2094.77 | F95: 2071.03 | G95: 2047.42 | H95: 2142.12 | I95: 2165.73 | J95: 2189.47 | K95: 2142 | L95: 2094.65 | M95: 22.36102
A96: 87 | B96: HAVELLS | C96: 687.3 | D96: 684.07 | E96: 676.83 | F96: 666.37 | G96: 659.13 | H96: 694.53 | I96: 701.77 | J96: 712.23 | K96: 691.3 | L96: 673.6 | M96: 12.53831
A97: 88 | B97: HEROMOTOCO | C97: 3281.35 | D97: 3295.67 | E97: 3247.68 | F97: 3214.02 | G97: 3166.03 | H97: 3329.33 | I97: 3377.32 | J97: 3410.98 | K97: 3343.65 | L97: 3262 | M97: 4.40547
A98: 89 | B98: HEXAWARE | C98: 462.75 | D98: 468.92 | E98: 454.53 | F98: 446.32 | G98: 431.93 | H98: 477.13 | I98: 491.52 | J98: 499.73 | K98: 483.3 | L98: 460.7 | M98: 9.84926
A99: 90 | B99: HINDALCO | C99: 227.45 | D99: 226.12 | E99: 224.03 | F99: 220.62 | G99: 218.53 | H99: 229.53 | I99: 231.62 | J99: 235.03 | K99: 228.2 | L99: 222.7 | M99: 153.45515
A100: 91 | B100: HINDPETRO | C100: 280.45 | D100: 283.62 | E100: 274.33 | F100: 268.22 | G100: 258.93 | H100: 289.73 | I100: 299.02 | J100: 305.13 | K100: 292.9 | L100: 277.5 | M100: 81.72333
A101: 92 | B101: HINDUNILVR | C101: 1754.2 | D101: 1752.47 | E101: 1739.93 | F101: 1725.67 | G101: 1713.13 | H101: 1766.73 | I101: 1779.27 | J101: 1793.53 | K101: 1765 | L101: 1738.2 | M101: 9.39345
A102: 93 | B102: HINDZINC | C102: 286.7 | D102: 286.73 | E102: 284.47 | F102: 282.23 | G102: 279.97 | H102: 288.97 | I102: 291.23 | J102: 293.47 | K102: 289 | L102: 284.5 | M102: 6.91773
A103: 94 | B103: HUDCO | C103: 55.95 | D103: 56.02 | E103: 55.53 | F103: 55.12 | G103: 54.63 | H103: 56.43 | I103: 56.92 | J103: 57.33 | K103: 56.5 | L103: 55.6 | M103: 5.33356
A104: 95 | B104: HDFC | C104: 1969.95 | D104: 1973.33 | E104: 1957.97 | F104: 1945.98 | G104: 1930.62 | H104: 1985.32 | I104: 2000.68 | J104: 2012.67 | K104: 1988.7 | L104: 1961.35 | M104: 17.89926
A105: 96 | B105: ITC | C105: 302.5 | D105: 302.38 | E105: 300.17 | F105: 297.83 | G105: 295.62 | H105: 304.72 | I105: 306.93 | J105: 309.27 | K105: 304.6 | L105: 300.05 | M105: 92.21385
A106: 97 | B106: ICICIBANK | C106: 333 | D106: 333.03 | E106: 320.22 | F106: 307.43 | G106: 294.62 | H106: 345.82 | I106: 358.63 | J106: 371.42 | K106: 345.85 | L106: 320.25 | M106: 764.23347
A107: 98 | B107: ICICIPRULI | C107: 414.1 | D107: 414.18 | E107: 411.42 | F107: 408.73 | G107: 405.97 | H107: 416.87 | I107: 419.63 | J107: 422.32 | K107: 416.95 | L107: 411.5 | M107: 4.50437
A108: 99 | B108: IDBI | C108: 63.1 | D108: 63.00 | E108: 62.25 | F108: 61.40 | G108: 60.65 | H108: 63.85 | I108: 64.60 | J108: 65.45 | K108: 63.75 | L108: 62.15 | M108: 106.76763
A109: 100 | B109: IDFCBANK | C109: 42.8 | D109: 42.27 | E109: 41.33 | F109: 39.87 | G109: 38.93 | H109: 43.73 | I109: 44.67 | J109: 46.13 | K109: 43.2 | L109: 40.8 | M109: 131.81967
A110: 101 | B110: IDFC | C110: 49.4 | D110: 49.35 | E110: 48.70 | F110: 48.00 | G110: 47.35 | H110: 50.05 | I110: 50.70 | J110: 51.40 | K110: 50 | L110: 48.65 | M110: 30.92224
A111: 102 | B111: IRB | C111: 199.6 | D111: 198.98 | E111: 195.62 | F111: 191.63 | G111: 188.27 | H111: 202.97 | I111: 206.33 | J111: 210.32 | K111: 202.35 | L111: 195 | M111: 21.11181
A112: 103 | B112: IDEA | C112: 56.35 | D112: 56.15 | E112: 55.20 | F112: 54.05 | G112: 53.10 | H112: 57.30 | I112: 58.25 | J112: 59.40 | K112: 57.1 | L112: 55 | M112: 120.43084
A113: 104 | B113: IBULHSGFIN | C113: 1349.5 | D113: 1356.98 | E113: 1336.97 | F113: 1324.43 | G113: 1304.42 | H113: 1369.52 | I113: 1389.53 | J113: 1402.07 | K113: 1377 | L113: 1344.45 | M113: 8.63964
A114: 105 | B114: INDIANB | C114: 358.25 | D114: 364.20 | E114: 350.75 | F114: 343.25 | G114: 329.80 | H114: 371.70 | I114: 385.15 | J114: 392.65 | K114: 377.65 | L114: 356.7 | M114: 67.05274
A115: 106 | B115: INDHOTEL | C115: 128.1 | D115: 127.28 | E115: 125.57 | F115: 123.03 | G115: 121.32 | H115: 129.82 | I115: 131.53 | J115: 134.07 | K115: 129 | L115: 124.75 | M115: 12.51386
A116: 107 | B116: IOC | C116: 165.4 | D116: 166.47 | E116: 163.73 | F116: 162.07 | G116: 159.33 | H116: 168.13 | I116: 170.87 | J116: 172.53 | K116: 169.2 | L116: 164.8 | M116: 53.41459
A117: 108 | B117: IGL | C117: 303.3 | D117: 299.95 | E117: 295.45 | F117: 287.60 | G117: 283.10 | H117: 307.80 | I117: 312.30 | J117: 320.15 | K117: 304.45 | L117: 292.1 | M117: 18.40219
A118: 109 | B118: INDUSINDBK | C118: 1985.05 | D118: 1989.22 | E118: 1967.43 | F118: 1949.82 | G118: 1928.03 | H118: 2006.83 | I118: 2028.62 | J118: 2046.23 | K118: 2011 | L118: 1971.6 | M118: 5.93894
A119: 110 | B119: NAUKRI | C119: 1469.55 | D119: 1481.80 | E119: 1448.80 | F119: 1428.05 | G119: 1395.05 | H119: 1502.55 | I119: 1535.55 | J119: 1556.30 | K119: 1514.8 | L119: 1461.05 | M119: 0.86477
A120: 111 | B120: INFY | C120: 1379.95 | D120: 1381.02 | E120: 1372.58 | F120: 1365.22 | G120: 1356.78 | H120: 1388.38 | I120: 1396.82 | J120: 1404.18 | K120: 1389.45 | L120: 1373.65 | M120: 32.04762
A121: 112 | B121: INDIGO | C121: 1060.9 | D121: 1055.68 | E121: 1034.77 | F121: 1008.63 | G121: 987.72 | H121: 1081.82 | I121: 1102.73 | J121: 1128.87 | K121: 1076.6 | L121: 1029.55 | M121: 13.48476
A122: 113 | B122: IPCALAB | C122: 750.85 | D122: 772.62 | E122: 723.23 | F122: 695.62 | G122: 646.23 | H122: 800.23 | I122: 849.62 | J122: 877.23 | K122: 822 | L122: 745 | M122: 14.02236
A123: 114 | B123: JSWENERGY | C123: 68.1 | D123: 67.97 | E123: 67.08 | F123: 66.07 | G123: 65.18 | H123: 68.98 | I123: 69.87 | J123: 70.88 | K123: 68.85 | L123: 66.95 | M123: 9.04104
A124: 115 | B124: JSWSTEEL | C124: 342.95 | D124: 343.17 | E124: 340.83 | F124: 338.72 | G124: 336.38 | H124: 345.28 | I124: 347.62 | J124: 349.73 | K124: 345.5 | L124: 341.05 | M124: 32.72046
A125: 116 | B125: JINDALSTEL | C125: 216.95 | D125: 218.67 | E125: 212.43 | F125: 207.92 | G125: 201.68 | H125: 223.18 | I125: 229.42 | J125: 233.93 | K125: 224.9 | L125: 214.15 | M125: 105.55566
A126: 117 | B126: JUBLFOOD | C126: 1498.8 | D126: 1504.45 | E126: 1485.90 | F126: 1473.00 | G126: 1454.45 | H126: 1517.35 | I126: 1535.90 | J126: 1548.80 | K126: 1523 | L126: 1491.55 | M126: 9.34588
A127: 118 | B127: JUBILANT | C127: 723.45 | D127: 730.48 | E127: 713.97 | F127: 704.48 | G127: 687.97 | H127: 739.97 | I127: 756.48 | J127: 765.97 | K127: 747 | L127: 721 | M127: 3.11093
A128: 119 | B128: KARURVYSYA | C128: 103.85 | D128: 104.52 | E128: 102.83 | F128: 101.82 | G128: 100.13 | H128: 105.53 | I128: 107.22 | J128: 108.23 | K128: 106.2 | L128: 103.5 | M128: 12.3068
A129: 120 | B129: KOTAKBANK | C129: 1277.25 | D129: 1279.78 | E129: 1267.57 | F129: 1257.88 | G129: 1245.67 | H129: 1289.47 | I129: 1301.68 | J129: 1311.37 | K129: 1292 | L129: 1270.1 | M129: 14.22779
A130: 121 | B130: L&TFH | C130: 180.5 | D130: 179.38 | E130: 176.37 | F130: 172.23 | G130: 169.22 | H130: 183.52 | I130: 186.53 | J130: 190.67 | K130: 182.4 | L130: 175.25 | M130: 71.26221
A131: 122 | B131: LICHSGFIN | C131: 558.15 | D131: 555.45 | E131: 550.70 | F131: 543.25 | G131: 538.50 | H131: 562.90 | I131: 567.65 | J131: 575.10 | K131: 560.2 | L131: 548 | M131: 8.38774
A132: 123 | B132: LT | C132: 1284.7 | D132: 1290.45 | E132: 1277.00 | F132: 1269.30 | G132: 1255.85 | H132: 1298.15 | I132: 1311.60 | J132: 1319.30 | K132: 1303.9 | L132: 1282.75 | M132: 10.35908
A133: 124 | B133: LUPIN | C133: 822.85 | D133: 823.77 | E133: 803.53 | F133: 784.22 | G133: 763.98 | H133: 843.08 | I133: 863.32 | J133: 882.63 | K133: 844 | L133: 804.45 | M133: 98.91077
A134: 125 | B134: MRF | C134: 75995.1 | D134: 76285.45 | E134: 75120.70 | F134: 74246.30 | G134: 73081.55 | H134: 77159.85 | I134: 78324.60 | J134: 79199.00 | K134: 77450.2 | L134: 75411.05 | M134: 0.27709
A135: 126 | B135: MGL | C135: 949.45 | D135: 950.92 | E135: 939.83 | F135: 930.22 | G135: 919.13 | H135: 960.53 | I135: 971.62 | J135: 981.23 | K135: 962 | L135: 941.3 | M135: 1.81779
A136: 127 | B136: M&MFIN | C136: 494.85 | D136: 496.68 | E136: 491.82 | F136: 488.78 | G136: 483.92 | H136: 499.72 | I136: 504.58 | J136: 507.62 | K136: 501.55 | L136: 493.65 | M136: 8.60474
A137: 128 | B137: M&M | C137: 933.2 | D137: 933.57 | E137: 927.13 | F137: 921.07 | G137: 914.63 | H137: 939.63 | I137: 946.07 | J137: 952.13 | K137: 940 | L137: 927.5 | M137: 24.5257
A138: 129 | B138: MANAPPURAM | C138: 112.65 | D138: 112.25 | E138: 110.50 | F138: 108.35 | G138: 106.60 | H138: 114.40 | I138: 116.15 | J138: 118.30 | K138: 114 | L138: 110.1 | M138: 41.43001
A139: 130 | B139: MRPL | C139: 83.8 | D139: 83.18 | E139: 81.62 | F139: 79.43 | G139: 77.87 | H139: 85.37 | I139: 86.93 | J139: 89.12 | K139: 84.75 | L139: 81 | M139: 16.28465
A140: 131 | B140: MARICO | C140: 363.75 | D140: 363.63 | E140: 360.12 | F140: 356.48 | G140: 352.97 | H140: 367.27 | I140: 370.78 | J140: 374.42 | K140: 367.15 | L140: 360 | M140: 9.70281
A141: 132 | B141: MARUTI | C141: 9146.05 | D141: 9148.35 | E141: 9057.70 | F141: 8969.35 | G141: 8878.70 | H141: 9236.70 | I141: 9327.35 | J141: 9415.70 | K141: 9239 | L141: 9060 | M141: 6.51728
A142: 133 | B142: MFSL | C142: 500.6 | D142: 502.88 | E142: 496.27 | F142: 491.93 | G142: 485.32 | H142: 507.22 | I142: 513.83 | J142: 518.17 | K142: 509.5 | L142: 498.55 | M142: 3.46508
A143: 134 | B143: MINDTREE | C143: 945.6 | D143: 948.28 | E143: 935.12 | F143: 924.63 | G143: 911.47 | H143: 958.77 | I143: 971.93 | J143: 982.42 | K143: 961.45 | L143: 937.8 | M143: 5.20026
A144: 135 | B144: MOTHERSUMI | C144: 304.1 | D144: 305.12 | E144: 301.28 | F144: 298.47 | G144: 294.63 | H144: 307.93 | I144: 311.77 | J144: 314.58 | K144: 308.95 | L144: 302.3 | M144: 21.22833
A145: 136 | B145: MPHASIS | C145: 1150.7 | D145: 1153.32 | E145: 1145.38 | F145: 1140.07 | G145: 1132.13 | H145: 1158.63 | I145: 1166.57 | J145: 1171.88 | K145: 1161.25 | L145: 1148 | M145: 2.53951
A146: 137 | B146: MUTHOOTFIN | C146: 426.3 | D146: 424.77 | E146: 421.53 | F146: 416.77 | G146: 413.53 | H146: 429.53 | I146: 432.77 | J146: 437.53 | K146: 428 | L146: 420 | M146: 5.34304
A147: 138 | B147: NATCOPHARM | C147: 783.15 | D147: 792.72 | E147: 770.43 | F147: 757.72 | G147: 735.43 | H147: 805.43 | I147: 827.72 | J147: 840.43 | K147: 815 | L147: 780 | M147: 2.81773
A148: 139 | B148: NBCC | C148: 77.35 | D148: 76.62 | E148: 75.53 | F148: 73.72 | G148: 72.63 | H148: 78.43 | I148: 79.52 | J148: 81.33 | K148: 77.7 | L148: 74.8 | M148: 40.33939
A149: 140 | B149: NHPC | C149: 24.5 | D149: 24.57 | E149: 24.28 | F149: 24.07 | G149: 23.78 | H149: 24.78 | I149: 25.07 | J149: 25.28 | K149: 24.85 | L149: 24.35 | M149: 17.85661
A150: 141 | B150: NMDC | C150: 106.7 | D150: 107.90 | E150: 102.80 | F150: 98.90 | G150: 93.80 | H150: 111.80 | I150: 116.90 | J150: 120.80 | K150: 113 | L150: 104 | M150: 115.54198
A151: 142 | B151: NTPC | C151: 160.7 | D151: 159.62 | E151: 157.88 | F151: 155.07 | G151: 153.33 | H151: 162.43 | I151: 164.17 | J151: 166.98 | K151: 161.35 | L151: 156.8 | M151: 40.95847
A152: 143 | B152: NATIONALUM | C152: 72.25 | D152: 72.08 | E152: 70.87 | F152: 69.48 | G152: 68.27 | H152: 73.47 | I152: 74.68 | J152: 76.07 | K152: 73.3 | L152: 70.7 | M152: 290.49072
A153: 144 | B153: OBEROIRLTY | C153: 476.6 | D153: 477.20 | E153: 470.95 | F153: 465.30 | G153: 459.05 | H153: 482.85 | I153: 489.10 | J153: 494.75 | K153: 483.45 | L153: 471.55 | M153: 1.96839
A154: 145 | B154: ONGC | C154: 168.9 | D154: 170.05 | E154: 167.20 | F154: 165.50 | G154: 162.65 | H154: 171.75 | I154: 174.60 | J154: 176.30 | K154: 172.9 | L154: 168.35 | M154: 44.37178
A155: 146 | B155: OIL | C155: 214.85 | D155: 215.28 | E155: 213.57 | F155: 212.28 | G155: 210.57 | H155: 216.57 | I155: 218.28 | J155: 219.57 | K155: 217 | L155: 214 | M155: 3.06809
A156: 147 | B156: OFSS | C156: 3928.15 | D156: 3919.42 | E156: 3900.83 | F156: 3873.52 | G156: 3854.93 | H156: 3946.73 | I156: 3965.32 | J156: 3992.63 | K156: 3938 | L156: 3892.1 | M156: 0.18291
A157: 148 | B157: PCJEWELLER | C157: 100.95 | D157: 98.77 | E157: 93.18 | F157: 85.42 | G157: 79.83 | H157: 106.53 | I157: 112.12 | J157: 119.88 | K157: 104.35 | L157: 91 | M157: 368.42788
A158: 149 | B158: PIIND | C158: 784.45 | D158: 780.95 | E158: 773.90 | F158: 763.35 | G158: 756.30 | H158: 791.50 | I158: 798.55 | J158: 809.10 | K158: 788 | L158: 770.4 | M158: 5.51314
A159: 150 | B159: PNBHOUSING | C159: 1305.25 | D159: 1306.08 | E159: 1292.17 | F159: 1279.08 | G159: 1265.17 | H159: 1319.17 | I159: 1333.08 | J159: 1346.17 | K159: 1320 | L159: 1293 | M159: 0.99206
A160: 151 | B160: PAGEIND | C160: 32404.15 | D160: 31629.07 | E160: 30576.18 | F160: 28748.22 | G160: 27695.33 | H160: 33457.03 | I160: 34509.92 | J160: 36337.88 | K160: 32681.95 | L160: 29801.1 | M160: 0.6096
A161: 152 | B161: PETRONET | C161: 229.7 | D161: 228.98 | E161: 227.62 | F161: 225.53 | G161: 224.17 | H161: 231.07 | I161: 232.43 | J161: 234.52 | K161: 230.35 | L161: 226.9 | M161: 25.94046
A162: 153 | B162: PIDILITIND | C162: 1123.5 | D162: 1128.43 | E162: 1115.87 | F162: 1108.23 | G162: 1095.67 | H162: 1136.07 | I162: 1148.63 | J162: 1156.27 | K162: 1141 | L162: 1120.8 | M162: 4.23755
A163: 154 | B163: PEL | C163: 2872.3 | D163: 2879.52 | E163: 2854.03 | F163: 2835.77 | G163: 2810.28 | H163: 2897.78 | I163: 2923.27 | J163: 2941.53 | K163: 2905 | L163: 2861.25 | M163: 1.82523
A164: 155 | B164: PFC | C164: 87 | D164: 85.37 | E164: 83.43 | F164: 79.87 | G164: 77.93 | H164: 88.93 | I164: 90.87 | J164: 94.43 | K164: 87.3 | L164: 81.8 | M164: 101.2312
A165: 156 | B165: POWERGRID | C165: 192.6 | D165: 191.15 | E165: 189.30 | F165: 186.00 | G165: 184.15 | H165: 194.45 | I165: 196.30 | J165: 199.60 | K165: 193 | L165: 187.85 | M165: 35.60051
A166: 157 | B166: PRESTIGE | C166: 249.25 | D166: 251.75 | E166: 245.50 | F166: 241.75 | G166: 235.50 | H166: 255.50 | I166: 261.75 | J166: 265.50 | K166: 258 | L166: 248 | M166: 0.68637
A167: 158 | B167: PGHH | C167: 10486.9 | D167: 10545.53 | E167: 10341.37 | F167: 10195.83 | G167: 9991.67 | H167: 10691.07 | I167: 10895.23 | J167: 11040.77 | K167: 10749.7 | L167: 10400 | M167: 0.09293
A168: 159 | B168: PNB | C168: 83.4 | D168: 82.80 | E168: 81.75 | F168: 80.10 | G168: 79.05 | H168: 84.45 | I168: 85.50 | J168: 87.15 | K168: 83.85 | L168: 81.15 | M168: 453.91038
A169: 160 | B169: RBLBANK | C169: 567.4 | D169: 570.40 | E169: 558.60 | F169: 549.80 | G169: 538.00 | H169: 579.20 | I169: 591.00 | J169: 599.80 | K169: 582.2 | L169: 561.6 | M169: 24.99504
A170: 161 | B170: RAJESHEXPO | C170: 643.15 | D170: 650.55 | E170: 632.10 | F170: 621.05 | G170: 602.60 | H170: 661.60 | I170: 680.05 | J170: 691.10 | K170: 669 | L170: 639.5 | M170: 11.33699
A171: 162 | B171: RELCAPITAL | C171: 442.3 | D171: 441.25 | E171: 435.35 | F171: 428.40 | G171: 422.50 | H171: 448.20 | I171: 454.10 | J171: 461.05 | K171: 447.15 | L171: 434.3 | M171: 48.11711
A172: 163 | B172: RCOM | C172: 20.05 | D172: 19.75 | E172: 19.00 | F172: 17.95 | G172: 17.20 | H172: 20.80 | I172: 21.55 | J172: 22.60 | K172: 20.5 | L172: 18.7 | M172: 2928.72833
A173: 164 | B173: RELIANCE | C173: 1217.95 | D173: 1220.55 | E173: 1209.40 | F173: 1200.85 | G173: 1189.70 | H173: 1229.10 | I173: 1240.25 | J173: 1248.80 | K173: 1231.7 | L173: 1212 | M173: 68.46928
A174: 165 | B174: RELINFRA | C174: 419 | D174: 419.28 | E174: 414.07 | F174: 409.13 | G174: 403.92 | H174: 424.22 | I174: 429.43 | J174: 434.37 | K174: 424.5 | L174: 414.35 | M174: 23.42825
A175: 166 | B175: RPOWER | C175: 34.4 | D175: 34.37 | E175: 33.78 | F175: 33.17 | G175: 32.58 | H175: 34.98 | I175: 35.57 | J175: 36.18 | K175: 34.95 | L175: 33.75 | M175: 97.28319
A176: 167 | B176: RECLTD | C176: 115.65 | D176: 114.60 | E176: 112.15 | F176: 108.65 | G176: 106.20 | H176: 118.10 | I176: 120.55 | J176: 124.05 | K176: 117.05 | L176: 111.1 | M176: 54.72192
A177: 168 | B177: SRF | C177: 1897.35 | D177: 1890.13 | E177: 1872.27 | F177: 1847.18 | G177: 1829.32 | H177: 1915.22 | I177: 1933.08 | J177: 1958.17 | K177: 1908 | L177: 1865.05 | M177: 7.2523
A178: 169 | B178: SHREECEM | C178: 17227.95 | D178: 17254.97 | E178: 17139.98 | F178: 17052.02 | G178: 16937.03 | H178: 17342.93 | I178: 17457.92 | J178: 17545.88 | K178: 17369.95 | L178: 17167 | M178: 0.20942
A179: 170 | B179: SRTRANSFIN | C179: 1415.85 | D179: 1421.37 | E179: 1401.78 | F179: 1387.72 | G179: 1368.13 | H179: 1435.43 | I179: 1455.02 | J179: 1469.08 | K179: 1440.95 | L179: 1407.3 | M179: 4.2111
A180: 171 | B180: SIEMENS | C180: 1005.3 | D180: 1009.30 | E180: 986.00 | F180: 966.70 | G180: 943.40 | H180: 1028.60 | I180: 1051.90 | J180: 1071.20 | K180: 1032.6 | L180: 990 | M180: 5.65298
A181: 172 | B181: SBIN | C181: 317.4 | D181: 315.80 | E181: 311.75 | F181: 306.10 | G181: 302.05 | H181: 321.45 | I181: 325.50 | J181: 331.15 | K181: 319.85 | L181: 310.15 | M181: 464.64355
A182: 173 | B182: SAIL | C182: 80.6 | D182: 80.35 | E182: 79.45 | F182: 78.30 | G182: 77.40 | H182: 81.50 | I182: 82.40 | J182: 83.55 | K182: 81.25 | L182: 79.2 | M182: 126.51519
A183: 174 | B183: SPARC | C183: 373.4 | D183: 375.95 | E183: 368.10 | F183: 362.80 | G183: 354.95 | H183: 381.25 | I183: 389.10 | J183: 394.40 | K183: 383.8 | L183: 370.65 | M183: 2.13664
A184: 175 | B184: SUNPHARMA | C184: 571.45 | D184: 573.13 | E184: 561.37 | F184: 551.28 | G184: 539.52 | H184: 583.22 | I184: 594.98 | J184: 605.07 | K184: 584.9 | L184: 563.05 | M184: 45.95269
A185: 176 | B185: SUNTV | C185: 830.55 | D185: 825.53 | E185: 817.07 | F185: 803.58 | G185: 795.12 | H185: 839.02 | I185: 847.48 | J185: 860.97 | K185: 834 | L185: 812.05 | M185: 8.79309
A186: 177 | B186: SUZLON | C186: 7.45 | D186: 7.38 | E186: 7.17 | F186: 6.88 | G186: 6.67 | H186: 7.67 | I186: 7.88 | J186: 8.17 | K186: 7.6 | L186: 7.1 | M186: 535.95075
A187: 178 | B187: SYNDIBANK | C187: 42.5 | D187: 42.32 | E187: 41.53 | F187: 40.57 | G187: 39.78 | H187: 43.28 | I187: 44.07 | J187: 45.03 | K187: 43.1 | L187: 41.35 | M187: 96.64052
A188: 179 | B188: SYNGENE | C188: 592.25 | D188: 589.38 | E188: 582.22 | F188: 572.18 | G188: 565.02 | H188: 599.42 | I188: 606.58 | J188: 616.62 | K188: 596.55 | L188: 579.35 | M188: 0.70124
A189: 180 | B189: TV18BRDCST | C189: 49.95 | D189: 49.77 | E189: 49.23 | F189: 48.52 | G189: 47.98 | H189: 50.48 | I189: 51.02 | J189: 51.73 | K189: 50.3 | L189: 49.05 | M189: 29.37755
A190: 181 | B190: TVSMOTOR | C190: 538.45 | D190: 536.42 | E190: 530.83 | F190: 523.22 | G190: 517.63 | H190: 544.03 | I190: 549.62 | J190: 557.23 | K190: 542 | L190: 528.8 | M190: 10.89845
A191: 182 | B191: TATACHEM | C191: 674.6 | D191: 674.47 | E191: 670.13 | F191: 665.67 | G191: 661.33 | H191: 678.93 | I191: 683.27 | J191: 687.73 | K191: 678.8 | L191: 670 | M191: 2.15662
A192: 183 | B192: TATACOMM | C192: 590.5 | D192: 589.00 | E192: 578.00 | F192: 565.50 | G192: 554.50 | H192: 601.50 | I192: 612.50 | J192: 625.00 | K192: 600 | L192: 576.5 | M192: 2.668
A193: 184 | B193: TCS | C193: 1974.35 | D193: 1973.72 | E193: 1966.63 | F193: 1958.92 | G193: 1951.83 | H193: 1981.43 | I193: 1988.52 | J193: 1996.23 | K193: 1980.8 | L193: 1966 | M193: 20.60297
A194: 185 | B194: TATAGLOBAL | C194: 237.3 | D194: 237.48 | E194: 235.12 | F194: 232.93 | G194: 230.57 | H194: 239.67 | I194: 242.03 | J194: 244.22 | K194: 239.85 | L194: 235.3 | M194: 11.27248
A195: 186 | B195: TATAMTRDVR | C195: 143.3 | D195: 143.25 | E195: 142.15 | F195: 141.00 | G195: 139.90 | H195: 144.40 | I195: 145.50 | J195: 146.65 | K195: 144.35 | L195: 142.1 | M195: 13.4043
A196: 187 | B196: TATAMOTORS | C196: 257.85 | D196: 257.92 | E196: 255.43 | F196: 253.02 | G196: 250.53 | H196: 260.33 | I196: 262.82 | J196: 265.23 | K196: 260.4 | L196: 255.5 | M196: 77.77719
A197: 188 | B197: TATAPOWER | C197: 69.9 | D197: 69.83 | E197: 69.27 | F197: 68.63 | G197: 68.07 | H197: 70.47 | I197: 71.03 | J197: 71.67 | K197: 70.4 | L197: 69.2 | M197: 15.40636
A198: 189 | B198: TATASTEEL | C198: 585.95 | D198: 583.15 | E198: 578.60 | F198: 571.25 | G198: 566.70 | H198: 590.50 | I198: 595.05 | J198: 602.40 | K198: 587.7 | L198: 575.8 | M198: 57.57687
A199: 190 | B199: TECHM | C199: 646.2 | D199: 649.53 | E199: 640.57 | F199: 634.93 | G199: 625.97 | H199: 655.17 | I199: 664.13 | J199: 669.77 | K199: 658.5 | L199: 643.9 | M199: 21.46227
A200: 191 | B200: RAMCOCEM | C200: 660.4 | D200: 660.35 | E200: 651.70 | F200: 643.00 | G200: 634.35 | H200: 669.05 | I200: 677.70 | J200: 686.40 | K200: 669 | L200: 651.65 | M200: 1.04146
A201: 192 | B201: TITAN | C201: 915.3 | D201: 919.80 | E201: 904.80 | F201: 894.30 | G201: 879.30 | H201: 930.30 | I201: 945.30 | J201: 955.80 | K201: 934.8 | L201: 909.3 | M201: 25.3608
A202: 193 | B202: TORNTPHARM | C202: 1700.4 | D202: 1720.32 | E202: 1672.63 | F202: 1644.87 | G202: 1597.18 | H202: 1748.08 | I202: 1795.77 | J202: 1823.53 | K202: 1768 | L202: 1692.55 | M202: 6.69044
A203: 194 | B203: TORNTPOWER | C203: 231.5 | D203: 231.47 | E203: 229.43 | F203: 227.37 | G203: 225.33 | H203: 233.53 | I203: 235.57 | J203: 237.63 | K203: 233.5 | L203: 229.4 | M203: 4.13536
A204: 195 | B204: UPL | C204: 637.75 | D204: 638.68 | E204: 633.07 | F204: 628.38 | G204: 622.77 | H204: 643.37 | I204: 648.98 | J204: 653.67 | K204: 644.3 | L204: 634 | M204: 10.25283
A205: 196 | B205: ULTRACEMCO | C205: 4310.8 | D205: 4282.08 | E205: 4244.22 | F205: 4177.63 | G205: 4139.77 | H205: 4348.67 | I205: 4386.53 | J205: 4453.12 | K205: 4319.95 | L205: 4215.5 | M205: 3.36669
... 30 more rows

Sheet MidCap Intra
L5: Back To Main Page
A6: FOR INTRA DAY TRADING | K6: =Main!B10 -> 2018-08-10
A9: Sr.no | B9: Scrip | C9: CLOSE RATE | D9: Pivot Point | E9: Supports | H9: Resistances
C10: Point | E10: S1 | F10: S2 | G10: S3 | H10: R1 | I10: R2 | J10: R3 | K10: HIGH | L10: LOW | M10: Total Trade Quanity in Lakhs
A11: 1 | B11: 3MINDIA | C11: 24147.8 | D11: 24130.32 | E11: 23740.63 | F11: 23333.47 | G11: 22943.78 | H11: 24537.48 | I11: 24927.17 | J11: 25334.33 | K11: 24520 | L11: 23723.15 | M11: 0.08561
A12: 2 | B12: 8KMILES | C12: 372.5 | D12: 376.85 | E12: 361.20 | F12: 349.90 | G12: 334.25 | H12: 388.15 | I12: 403.80 | J12: 415.10 | K12: 392.5 | L12: 365.55 | M12: 4.82264
A13: 3 | B13: AARTIIND | C13: 1437.55 | D13: 1425.85 | E13: 1406.70 | F13: 1375.85 | G13: 1356.70 | H13: 1456.70 | I13: 1475.85 | J13: 1506.70 | K13: 1445 | L13: 1395 | M13: 0.93893
A14: 4 | B14: ABAN | C14: 117.15 | D14: 117.77 | E14: 115.68 | F14: 114.22 | G14: 112.13 | H14: 119.23 | I14: 121.32 | J14: 122.78 | K14: 119.85 | L14: 116.3 | M14: 8.92775
A15: 5 | B15: ABB | C15: 1200.3 | D15: 1204.73 | E15: 1187.57 | F15: 1174.83 | G15: 1157.67 | H15: 1217.47 | I15: 1234.63 | J15: 1247.37 | K15: 1221.9 | L15: 1192 | M15: 0.26813
A16: 6 | B16: ABCAPITAL | C16: 150.1 | D16: 150.52 | E16: 148.63 | F16: 147.17 | G16: 145.28 | H16: 151.98 | I16: 153.87 | J16: 155.33 | K16: 152.4 | L16: 149.05 | M16: 17.79312
A17: 7 | B17: ABFRL | C17: 181.9 | D17: 180.33 | E17: 176.67 | F17: 171.43 | G17: 167.77 | H17: 185.57 | I17: 189.23 | J17: 194.47 | K17: 184 | L17: 175.1 | M17: 16.70435
A18: 8 | B18: ACC | C18: 1570.75 | D18: 1561.95 | E18: 1546.90 | F18: 1523.05 | G18: 1508.00 | H18: 1585.80 | I18: 1600.85 | J18: 1624.70 | K18: 1577 | L18: 1538.1 | M18: 6.9143
A19: 9 | B19: ADANIPORTS | C19: 378 | D19: 376.85 | E19: 372.70 | F19: 367.40 | G19: 363.25 | H19: 382.15 | I19: 386.30 | J19: 391.60 | K19: 381 | L19: 371.55 | M19: 19.92284
A20: 10 | B20: ADANIPOWER | C20: 32.4 | D20: 32.58 | E20: 31.67 | F20: 30.93 | G20: 30.02 | H20: 33.32 | I20: 34.23 | J20: 34.97 | K20: 33.5 | L20: 31.85 | M20: 497.41068
A21: 11 | B21: ADANITRANS | C21: 168.45 | D21: 170.27 | E21: 165.48 | F21: 162.52 | G21: 157.73 | H21: 173.23 | I21: 178.02 | J21: 180.98 | K21: 175.05 | L21: 167.3 | M21: 4.82376
A22: 12 | B22: ADVENZYMES | C22: 217.7 | D22: 217.77 | E22: 215.93 | F22: 214.17 | G22: 212.33 | H22: 219.53 | I22: 221.37 | J22: 223.13 | K22: 219.6 | L22: 216 | M22: 0.6767
A23: 13 | B23: AEGISCHEM | C23: 232.3 | D23: 235.98 | E23: 222.07 | F23: 211.83 | G23: 197.92 | H23: 246.22 | I23: 260.13 | J23: 270.37 | K23: 249.9 | L23: 225.75 | M23: 2.85808
A24: 14 | B24: AIAENG | C24: 1758.55 | D24: 1764.52 | E24: 1729.03 | F24: 1699.52 | G24: 1664.03 | H24: 1794.03 | I24: 1829.52 | J24: 1859.03 | K24: 1800 | L24: 1735 | M24: 0.1293
A25: 15 | B25: AJANTPHARM | C25: 1155.3 | D25: 1168.77 | E25: 1134.53 | F25: 1113.77 | G25: 1079.53 | H25: 1189.53 | I25: 1223.77 | J25: 1244.53 | K25: 1203 | L25: 1148 | M25: 6.55412
A26: 16 | B26: AKZOINDIA | C26: 1757.1 | D26: 1769.07 | E26: 1738.13 | F26: 1719.17 | G26: 1688.23 | H26: 1788.03 | I26: 1818.97 | J26: 1837.93 | K26: 1800 | L26: 1750.1 | M26: 0.07453
A27: 17 | B27: ALBK | C27: 45.8 | D27: 45.42 | E27: 44.58 | F27: 43.37 | G27: 42.53 | H27: 46.63 | I27: 47.47 | J27: 48.68 | K27: 46.25 | L27: 44.2 | M27: 64.87035
A28: 18 | B28: ALKEM | C28: 2110 | D28: 2124.33 | E28: 2073.67 | F28: 2037.33 | G28: 1986.67 | H28: 2160.67 | I28: 2211.33 | J28: 2247.67 | K28: 2175 | L28: 2088 | M28: 0.09468
A29: 19 | B29: ALLCARGO | C29: 121.4 | D29: 122.07 | E29: 120.38 | F29: 119.37 | G29: 117.68 | H29: 123.08 | I29: 124.77 | J29: 125.78 | K29: 123.75 | L29: 121.05 | M29: 0.98244
A30: 20 | B30: AMARAJABAT | C30: 822.1 | D30: 820.37 | E30: 815.68 | F30: 809.27 | G30: 804.58 | H30: 826.78 | I30: 831.47 | J30: 837.88 | K30: 825.05 | L30: 813.95 | M30: 2.13252
A31: 21 | B31: AMBUJACEM | C31: 232.4 | D31: 231.82 | E31: 230.48 | F31: 228.57 | G31: 227.23 | H31: 233.73 | I31: 235.07 | J31: 236.98 | K31: 233.15 | L31: 229.9 | M31: 12.11459
A32: 22 | B32: ANDHRABANK | C32: 34.55 | D32: 34.47 | E32: 33.83 | F32: 33.12 | G32: 32.48 | H32: 35.18 | I32: 35.82 | J32: 36.53 | K32: 35.1 | L32: 33.75 | M32: 43.2996
A33: 23 | B33: APLAPOLLO | C33: 1776.6 | D33: 1770.45 | E33: 1746.15 | F33: 1715.70 | G33: 1691.40 | H33: 1800.90 | I33: 1825.20 | J33: 1855.65 | K33: 1794.75 | L33: 1740 | M33: 0.11592
A34: 24 | B34: APLLTD | C34: 595.5 | D34: 598.85 | E34: 589.20 | F34: 582.90 | G34: 573.25 | H34: 605.15 | I34: 614.80 | J34: 621.10 | K34: 608.5 | L34: 592.55 | M34: 0.34896
A35: 25 | B35: APOLLOHOSP | C35: 963.55 | D35: 968.85 | E35: 954.70 | F35: 945.85 | G35: 931.70 | H35: 977.70 | I35: 991.85 | J35: 1000.70 | K35: 983 | L35: 960 | M35: 2.11012
A36: 26 | B36: APOLLOTYRE | C36: 271.3 | D36: 272.47 | E36: 268.93 | F36: 266.57 | G36: 263.03 | H36: 274.83 | I36: 278.37 | J36: 280.73 | K36: 276 | L36: 270.1 | M36: 27.81246
A37: 27 | B37: ARVIND | C37: 395.8 | D37: 396.25 | E37: 391.60 | F37: 387.40 | G37: 382.75 | H37: 400.45 | I37: 405.10 | J37: 409.30 | K37: 400.9 | L37: 392.05 | M37: 25.95191
A38: 28 | B38: ASAHIINDIA | C38: 331.2 | D38: 332.58 | E38: 329.22 | F38: 327.23 | G38: 323.87 | H38: 334.57 | I38: 337.93 | J38: 339.92 | K38: 335.95 | L38: 330.6 | M38: 0.07129
A39: 29 | B39: ASHOKA | C39: 144.4 | D39: 146.05 | E39: 142.15 | F39: 139.90 | G39: 136.00 | H39: 148.30 | I39: 152.20 | J39: 154.45 | K39: 149.95 | L39: 143.8 | M39: 0.72569
A40: 30 | B40: ASHOKLEY | C40: 129.25 | D40: 127.92 | E40: 126.08 | F40: 122.92 | G40: 121.08 | H40: 131.08 | I40: 132.92 | J40: 136.08 | K40: 129.75 | L40: 124.75 | M40: 270.80247
A41: 31 | B41: ASIANPAINT | C41: 1417.35 | D41: 1421.80 | E41: 1409.65 | F41: 1401.95 | G41: 1389.80 | H41: 1429.50 | I41: 1441.65 | J41: 1449.35 | K41: 1433.95 | L41: 1414.1 | M41: 9.03734
A42: 32 | B42: ASTRAL | C42: 1101.45 | D42: 1105.32 | E42: 1086.13 | F42: 1070.82 | G42: 1051.63 | H42: 1120.63 | I42: 1139.82 | J42: 1155.13 | K42: 1124.5 | L42: 1090 | M42: 0.33788
A43: 33 | B43: ATUL | C43: 3136.15 | D43: 3093.72 | E43: 3042.43 | F43: 2948.72 | G43: 2897.43 | H43: 3187.43 | I43: 3238.72 | J43: 3332.43 | K43: 3145 | L43: 3000 | M43: 0.28355
A44: 34 | B44: AUBANK | C44: 644.55 | D44: 648.15 | E44: 637.40 | F44: 630.25 | G44: 619.50 | H44: 655.30 | I44: 666.05 | J44: 673.20 | K44: 658.9 | L44: 641 | M44: 1.16074
A45: 35 | B45: AUROPHARMA | C45: 599.7 | D45: 602.33 | E45: 590.17 | F45: 580.63 | G45: 568.47 | H45: 611.87 | I45: 624.03 | J45: 633.57 | K45: 614.5 | L45: 592.8 | M45: 34.62964
A46: 36 | B46: AVANTIFEED | C46: 470.7 | D46: 464.73 | E46: 450.52 | F46: 430.33 | G46: 416.12 | H46: 484.92 | I46: 499.13 | J46: 519.32 | K46: 478.95 | L46: 444.55 | M46: 16.72009
A47: 37 | B47: AXISBANK | C47: 621.05 | D47: 613.48 | E47: 602.57 | F47: 584.08 | G47: 573.17 | H47: 631.97 | I47: 642.88 | J47: 661.37 | K47: 624.4 | L47: 595 | M47: 182.27195
A48: 38 | B48: BAJAJ-AUTO | C48: 2658.6 | D48: 2662.17 | E48: 2637.48 | F48: 2616.37 | G48: 2591.68 | H48: 2683.28 | I48: 2707.97 | J48: 2729.08 | K48: 2686.85 | L48: 2641.05 | M48: 4.48329
A49: 39 | B49: BAJAJCORP | C49: 405.95 | D49: 406.02 | E49: 402.03 | F49: 398.12 | G49: 394.13 | H49: 409.93 | I49: 413.92 | J49: 417.83 | K49: 410 | L49: 402.1 | M49: 0.20193
A50: 40 | B50: BAJAJELEC | C50: 627.45 | D50: 630.52 | E50: 613.03 | F50: 598.62 | G50: 581.13 | H50: 644.93 | I50: 662.42 | J50: 676.83 | K50: 648 | L50: 616.1 | M50: 21.5593
A51: 41 | B51: BAJAJFINSV | C51: 7075.1 | D51: 7065.03 | E51: 7010.07 | F51: 6945.03 | G51: 6890.07 | H51: 7130.07 | I51: 7185.03 | J51: 7250.07 | K51: 7120 | L51: 7000 | M51: 1.10927
A52: 42 | B52: BAJAJHIND | C52: 6.9 | D52: 6.92 | E52: 6.73 | F52: 6.57 | G52: 6.38 | H52: 7.08 | I52: 7.27 | J52: 7.43 | K52: 7.1 | L52: 6.75 | M52: 23.52551
A53: 43 | B53: BAJAJHLDNG | C53: 2972.3 | D53: 2983.75 | E53: 2942.55 | F53: 2912.80 | G53: 2871.60 | H53: 3013.50 | I53: 3054.70 | J53: 3084.45 | K53: 3024.95 | L53: 2954 | M53: 0.10329
A54: 44 | B54: BAJFINANCE | C54: 2830.15 | D54: 2825.40 | E54: 2804.75 | F54: 2779.35 | G54: 2758.70 | H54: 2850.80 | I54: 2871.45 | J54: 2896.85 | K54: 2846.05 | L54: 2800 | M54: 11.47083
A55: 45 | B55: BALKRISIND | C55: 1251.4 | D55: 1250.68 | E55: 1236.37 | F55: 1221.33 | G55: 1207.02 | H55: 1265.72 | I55: 1280.03 | J55: 1295.07 | K55: 1265 | L55: 1235.65 | M55: 5.26242
A56: 46 | B56: BALLARPUR | C56: 10.05 | D56: 10.10 | E56: 9.90 | F56: 9.75 | G56: 9.55 | H56: 10.25 | I56: 10.45 | J56: 10.60 | K56: 10.3 | L56: 9.95 | M56: 6.68356
A57: 47 | B57: BALMLAWRIE | C57: 221.15 | D57: 222.32 | E57: 218.13 | F57: 215.12 | G57: 210.93 | H57: 225.33 | I57: 229.52 | J57: 232.53 | K57: 226.5 | L57: 219.3 | M57: 1.08083
A58: 48 | B58: BALRAMCHIN | C58: 73.15 | D58: 73.00 | E58: 71.65 | F58: 70.15 | G58: 68.80 | H58: 74.50 | I58: 75.85 | J58: 77.35 | K58: 74.35 | L58: 71.5 | M58: 37.92026
A59: 49 | B59: BANKBARODA | C59: 154.75 | D59: 153.70 | E59: 149.90 | F59: 145.05 | G59: 141.25 | H59: 158.55 | I59: 162.35 | J59: 167.20 | K59: 157.5 | L59: 148.85 | M59: 265.62716
A60: 50 | B60: BANKINDIA | C60: 98 | D60: 97.18 | E60: 95.57 | F60: 93.13 | G60: 91.52 | H60: 99.62 | I60: 101.23 | J60: 103.67 | K60: 98.8 | L60: 94.75 | M60: 115.22528
A61: 51 | B61: BASF | C61: 2044.45 | D61: 2052.55 | E61: 2029.90 | F61: 2015.35 | G61: 1992.70 | H61: 2067.10 | I61: 2089.75 | J61: 2104.30 | K61: 2075.2 | L61: 2038 | M61: 0.07121
A62: 52 | B62: BATAINDIA | C62: 954.35 | D62: 952.20 | E62: 943.40 | F62: 932.45 | G62: 923.65 | H62: 963.15 | I62: 971.95 | J62: 982.90 | K62: 961 | L62: 941.25 | M62: 4.54577
A63: 53 | B63: BBTC | C63: 1565.85 | D63: 1571.95 | E63: 1545.90 | F63: 1525.95 | G63: 1499.90 | H63: 1591.90 | I63: 1617.95 | J63: 1637.90 | K63: 1598 | L63: 1552 | M63: 0.93663
A64: 54 | B64: BEL | C64: 121.2 | D64: 121.15 | E64: 119.20 | F64: 117.20 | G64: 115.25 | H64: 123.15 | I64: 125.10 | J64: 127.10 | K64: 123.1 | L64: 119.15 | M64: 127.79367
A65: 55 | B65: BEML | C65: 810.15 | D65: 814.82 | E65: 795.63 | F65: 781.12 | G65: 761.93 | H65: 829.33 | I65: 848.52 | J65: 863.03 | K65: 834 | L65: 800.3 | M65: 23.15243
A66: 56 | B66: BERGEPAINT | C66: 314.25 | D66: 314.87 | E66: 312.03 | F66: 309.82 | G66: 306.98 | H66: 317.08 | I66: 319.92 | J66: 322.13 | K66: 317.7 | L66: 312.65 | M66: 2.29865
A67: 57 | B67: BFUTILITIE | C67: 326.2 | D67: 328.37 | E67: 322.73 | F67: 319.27 | G67: 313.63 | H67: 331.83 | I67: 337.47 | J67: 340.93 | K67: 334 | L67: 324.9 | M67: 2.89554
A68: 58 | B68: BGRENERGY | C68: 89.25 | D68: 89.23 | E68: 88.07 | F68: 86.88 | G68: 85.72 | H68: 90.42 | I68: 91.58 | J68: 92.77 | K68: 90.4 | L68: 88.05 | M68: 0.91237
A69: 59 | B69: BHARATFIN | C69: 1209.25 | D69: 1210.65 | E69: 1204.00 | F69: 1198.75 | G69: 1192.10 | H69: 1215.90 | I69: 1222.55 | J69: 1227.80 | K69: 1217.3 | L69: 1205.4 | M69: 4.98556
A70: 60 | B70: BHARATFORG | C70: 631.45 | D70: 635.82 | E70: 618.73 | F70: 606.02 | G70: 588.93 | H70: 648.53 | I70: 665.62 | J70: 678.33 | K70: 652.9 | L70: 623.1 | M70: 34.77923
A71: 61 | B71: BHARTIARTL | C71: 367.05 | D71: 372.62 | E71: 358.93 | F71: 350.82 | G71: 337.13 | H71: 380.73 | I71: 394.42 | J71: 402.53 | K71: 386.3 | L71: 364.5 | M71: 110.40336
A72: 62 | B72: BHEL | C72: 74.5 | D72: 74.27 | E72: 73.43 | F72: 72.37 | G72: 71.53 | H72: 75.33 | I72: 76.17 | J72: 77.23 | K72: 75.1 | L72: 73.2 | M72: 38.49977
A73: 63 | B73: BHUSANSTL | C73: 31 | D73: 30.52 | E73: 30.03 | F73: 29.07 | G73: 28.58 | H73: 31.48 | I73: 31.97 | J73: 32.93 | K73: 31 | L73: 29.55 | M73: 29.19642
A74: 64 | B74: BIOCON | C74: 570.3 | D74: 569.80 | E74: 564.80 | F74: 559.30 | G74: 554.30 | H74: 575.30 | I74: 580.30 | J74: 585.80 | K74: 574.8 | L74: 564.3 | M74: 14.94292
A75: 65 | B75: BIRLACORPN | C75: 776.3 | D75: 786.10 | E75: 757.85 | F75: 739.40 | G75: 711.15 | H75: 804.55 | I75: 832.80 | J75: 851.25 | K75: 814.35 | L75: 767.65 | M75: 1.13574
A76: 66 | B76: BLISSGVS | C76: 181.3 | D76: 178.43 | E76: 171.87 | F76: 162.43 | G76: 155.87 | H76: 187.87 | I76: 194.43 | J76: 203.87 | K76: 185 | L76: 169 | M76: 1.89856
A77: 67 | B77: BLUEDART | C77: 3554.35 | D77: 3581.05 | E77: 3513.45 | F77: 3472.55 | G77: 3404.95 | H77: 3621.95 | I77: 3689.55 | J77: 3730.45 | K77: 3648.65 | L77: 3540.15 | M77: 0.01644
A78: 68 | B78: BLUESTARCO | C78: 699.2 | D78: 700.38 | E78: 682.42 | F78: 665.63 | G78: 647.67 | H78: 717.17 | I78: 735.13 | J78: 751.92 | K78: 718.35 | L78: 683.6 | M78: 0.6423
A79: 69 | B79: BOMDYEING | C79: 253.8 | D79: 252.13 | E79: 247.67 | F79: 241.53 | G79: 237.07 | H79: 258.27 | I79: 262.73 | J79: 268.87 | K79: 256.6 | L79: 246 | M79: 2.84703
A80: 70 | B80: BOSCHLTD | C80: 19085 | D80: 19144.45 | E80: 18868.90 | F80: 18652.80 | G80: 18377.25 | H80: 19360.55 | I80: 19636.10 | J80: 19852.20 | K80: 19420 | L80: 18928.35 | M80: 0.10234
A81: 71 | B81: BPCL | C81: 388.95 | D81: 390.78 | E81: 384.07 | F81: 379.18 | G81: 372.47 | H81: 395.67 | I81: 402.38 | J81: 407.27 | K81: 397.5 | L81: 385.9 | M81: 54.18177
A82: 72 | B82: BRFL | C82: 20.3 | D82: 20.55 | E82: 19.90 | F82: 19.50 | G82: 18.85 | H82: 20.95 | I82: 21.60 | J82: 22.00 | K82: 21.2 | L82: 20.15 | M82: 0.90419
A83: 73 | B83: BRIGADE | C83: 189.9 | D83: 190.22 | E83: 188.48 | F83: 187.07 | G83: 185.33 | H83: 191.63 | I83: 193.37 | J83: 194.78 | K83: 191.95 | L83: 188.8 | M83: 0.7298
A84: 74 | B84: BRITANNIA | C84: 6335.4 | D84: 6324.83 | E84: 6291.12 | F84: 6246.83 | G84: 6213.12 | H84: 6369.12 | I84: 6402.83 | J84: 6447.12 | K84: 6358.55 | L84: 6280.55 | M84: 1.30713
A85: 75 | B85: BSE | C85: 795.4 | D85: 795.77 | E85: 791.63 | F85: 787.87 | G85: 783.73 | H85: 799.53 | I85: 803.67 | J85: 807.43 | K85: 799.9 | L85: 792 | M85: 0.57754
A86: 77 | B86: CADILAHC | C86: 378.55 | D86: 378.10 | E86: 374.80 | F86: 371.05 | G86: 367.75 | H86: 381.85 | I86: 385.15 | J86: 388.90 | K86: 381.4 | L86: 374.35 | M86: 7.34073
A87: 78 | B87: CANBK | C87: 295.95 | D87: 295.92 | E87: 289.53 | F87: 283.12 | G87: 276.73 | H87: 302.33 | I87: 308.72 | J87: 315.13 | K87: 302.3 | L87: 289.5 | M87: 93.04129
A88: 79 | B88: CANFINHOME | C88: 326.25 | D88: 327.80 | E88: 323.45 | F88: 320.65 | G88: 316.30 | H88: 330.60 | I88: 334.95 | J88: 337.75 | K88: 332.15 | L88: 325 | M88: 5.64901
A89: 80 | B89: CAPF | C89: 579.2 | D89: 572.58 | E89: 561.27 | F89: 543.33 | G89: 532.02 | H89: 590.52 | I89: 601.83 | J89: 619.77 | K89: 583.9 | L89: 554.65 | M89: 9.90905
A90: 81 | B90: CAPLIPOINT | C90: 401.25 | D90: 404.18 | E90: 396.07 | F90: 390.88 | G90: 382.77 | H90: 409.37 | I90: 417.48 | J90: 422.67 | K90: 412.3 | L90: 399 | M90: 0.29885
A91: 82 | B91: CARBORUNIV | C91: 351.65 | D91: 354.65 | E91: 346.30 | F91: 340.95 | G91: 332.60 | H91: 360.00 | I91: 368.35 | J91: 373.70 | K91: 363 | L91: 349.3 | M91: 0.93478
A92: 83 | B92: CARERATING | C92: 1326.55 | D92: 1326.75 | E92: 1318.50 | F92: 1310.45 | G92: 1302.20 | H92: 1334.80 | I92: 1343.05 | J92: 1351.10 | K92: 1335 | L92: 1318.7 | M92: 0.14557
A93: 84 | B93: CASTROLIND | C93: 156.4 | D93: 157.15 | E93: 155.00 | F93: 153.60 | G93: 151.45 | H93: 158.55 | I93: 160.70 | J93: 162.10 | K93: 159.3 | L93: 155.75 | M93: 29.20436
A94: 85 | B94: CCL | C94: 258.05 | D94: 258.40 | E94: 253.75 | F94: 249.45 | G94: 244.80 | H94: 262.70 | I94: 267.35 | J94: 271.65 | K94: 263.05 | L94: 254.1 | M94: 1.3941
A95: 86 | B95: CDSL | C95: 268.55 | D95: 269.28 | E95: 266.27 | F95: 263.98 | G95: 260.97 | H95: 271.57 | I95: 274.58 | J95: 276.87 | K95: 272.3 | L95: 267 | M95: 2.52316
A96: 87 | B96: CEATLTD | C96: 1396.25 | D96: 1399.03 | E96: 1383.32 | F96: 1370.38 | G96: 1354.67 | H96: 1411.97 | I96: 1427.68 | J96: 1440.62 | K96: 1414.75 | L96: 1386.1 | M96: 4.43109
A97: 88 | B97: CENTRALBK | C97: 69 | D97: 69.10 | E97: 68.50 | F97: 68.00 | G97: 67.40 | H97: 69.60 | I97: 70.20 | J97: 70.70 | K97: 69.7 | L97: 68.6 | M97: 1.97175
A98: 89 | B98: CENTURYPLY | C98: 242.35 | D98: 244.30 | E98: 239.70 | F98: 237.05 | G98: 232.45 | H98: 246.95 | I98: 251.55 | J98: 254.20 | K98: 248.9 | L98: 241.65 | M98: 1.40527
A99: 90 | B99: CENTURYTEX | C99: 908.85 | D99: 906.72 | E99: 900.13 | F99: 891.42 | G99: 884.83 | H99: 915.43 | I99: 922.02 | J99: 930.73 | K99: 913.3 | L99: 898 | M99: 4.85292
A100: 91 | B100: CERA | C100: 2937.75 | D100: 2987.47 | E100: 2850.23 | F100: 2762.72 | G100: 2625.48 | H100: 3074.98 | I100: 3212.22 | J100: 3299.73 | K100: 3124.7 | L100: 2899.95 | M100: 0.66605
A101: 92 | B101: CGPOWER | C101: 61.15 | D101: 60.02 | E101: 58.13 | F101: 55.12 | G101: 53.23 | H101: 63.03 | I101: 64.92 | J101: 67.93 | K101: 61.9 | L101: 57 | M101: 77.75583
A102: 93 | B102: CHAMBLFERT | C102: 139.9 | D102: 140.65 | E102: 138.55 | F102: 137.20 | G102: 135.10 | H102: 142.00 | I102: 144.10 | J102: 145.45 | K102: 142.75 | L102: 139.3 | M102: 2.89868
A103: 94 | B103: CHENNPETRO | C103: 334.85 | D103: 333.85 | E103: 331.70 | F103: 328.55 | G103: 326.40 | H103: 337.00 | I103: 339.15 | J103: 342.30 | K103: 336 | L103: 330.7 | M103: 7.51571
A104: 95 | B104: CHOLAFIN | C104: 1443.55 | D104: 1451.03 | E104: 1432.57 | F104: 1421.58 | G104: 1403.12 | H104: 1462.02 | I104: 1480.48 | J104: 1491.47 | K104: 1469.5 | L104: 1440.05 | M104: 1.40389
A105: 96 | B105: CIPLA | C105: 619.15 | D105: 632.78 | E105: 603.07 | F105: 586.98 | G105: 557.27 | H105: 648.87 | I105: 678.58 | J105: 694.67 | K105: 662.5 | L105: 616.7 | M105: 99.96909
A106: 97 | B106: COALINDIA | C106: 280.1 | D106: 280.03 | E106: 276.07 | F106: 272.03 | G106: 268.07 | H106: 284.07 | I106: 288.03 | J106: 292.07 | K106: 284 | L106: 276 | M106: 29.27225
A107: 98 | B107: COCHINSHIP | C107: 456.9 | D107: 456.67 | E107: 453.33 | F107: 449.77 | G107: 446.43 | H107: 460.23 | I107: 463.57 | J107: 467.13 | K107: 460 | L107: 453.1 | M107: 0.95093
A108: 99 | B108: COFFEEDAY | C108: 270.8 | D108: 272.93 | E108: 266.87 | F108: 262.93 | G108: 256.87 | H108: 276.87 | I108: 282.93 | J108: 286.87 | K108: 279 | L108: 269 | M108: 1.00868
A109: 100 | B109: COLPAL | C109: 1137.25 | D109: 1143.75 | E109: 1128.50 | F109: 1119.75 | G109: 1104.50 | H109: 1152.50 | I109: 1167.75 | J109: 1176.50 | K109: 1159 | L109: 1135 | M109: 2.69399
A110: 101 | B110: CONCOR | C110: 642.45 | D110: 648.87 | E110: 633.73 | F110: 625.02 | G110: 609.88 | H110: 657.58 | I110: 672.72 | J110: 681.43 | K110: 664 | L110: 640.15 | M110: 8.0382
A111: 102 | B111: COROMANDEL | C111: 437.35 | D111: 437.97 | E111: 431.93 | F111: 426.52 | G111: 420.48 | H111: 443.38 | I111: 449.42 | J111: 454.83 | K111: 444 | L111: 432.55 | M111: 0.97517
A112: 103 | B112: COX&KINGS | C112: 220.5 | D112: 221.07 | E112: 219.43 | F112: 218.37 | G112: 216.73 | H112: 222.13 | I112: 223.77 | J112: 224.83 | K112: 222.7 | L112: 220 | M112: 0.13286
A113: 104 | B113: CRISIL | C113: 1770.8 | D113: 1768.35 | E113: 1762.70 | F113: 1754.60 | G113: 1748.95 | H113: 1776.45 | I113: 1782.10 | J113: 1790.20 | K113: 1774 | L113: 1760.25 | M113: 0.05284
A114: 105 | B114: CROMPTON | C114: 261.8 | D114: 261.90 | E114: 258.80 | F114: 255.80 | G114: 252.70 | H114: 264.90 | I114: 268.00 | J114: 271.00 | K114: 265 | L114: 258.9 | M114: 1.98855
A115: 106 | B115: CUB | C115: 178.7 | D115: 178.77 | E115: 176.13 | F115: 173.57 | G115: 170.93 | H115: 181.33 | I115: 183.97 | J115: 186.53 | K115: 181.4 | L115: 176.2 | M115: 2.29932
A116: 107 | B116: CUMMINSIND | C116: 653 | D116: 669.02 | E116: 629.03 | F116: 605.07 | G116: 565.08 | H116: 692.98 | I116: 732.97 | J116: 756.93 | K116: 709 | L116: 645.05 | M116: 20.92865
A117: 108 | B117: CYIENT | C117: 650.5 | D117: 656.12 | E117: 643.78 | F117: 637.07 | G117: 624.73 | H117: 662.83 | I117: 675.17 | J117: 681.88 | K117: 668.45 | L117: 649.4 | M117: 2.98125
A118: 109 | B118: DABUR | C118: 445.9 | D118: 444.58 | E118: 442.42 | F118: 438.93 | G118: 436.77 | H118: 448.07 | I118: 450.23 | J118: 453.72 | K118: 446.75 | L118: 441.1 | M118: 33.03838
A119: 110 | B119: DBCORP | C119: 248.35 | D119: 247.65 | E119: 245.70 | F119: 243.05 | G119: 241.10 | H119: 250.30 | I119: 252.25 | J119: 254.90 | K119: 249.6 | L119: 245 | M119: 0.29565
A120: 111 | B120: DBL | C120: 825.45 | D120: 833.60 | E120: 812.75 | F120: 800.05 | G120: 779.20 | H120: 846.30 | I120: 867.15 | J120: 879.85 | K120: 854.45 | L120: 820.9 | M120: 2.36544
A121: 112 | B121: DBREALTY | C121: 33.15 | D121: 33.38 | E121: 32.67 | F121: 32.18 | G121: 31.47 | H121: 33.87 | I121: 34.58 | J121: 35.07 | K121: 34.1 | L121: 32.9 | M121: 5.43629
A122: 113 | B122: DCAL | C122: 260.05 | D122: 261.63 | E122: 256.42 | F122: 252.78 | G122: 247.57 | H122: 265.27 | I122: 270.48 | J122: 274.12 | K122: 266.85 | L122: 258 | M122: 1.64973
A123: 114 | B123: DCBBANK | C123: 170.45 | D123: 169.42 | E123: 167.08 | F123: 163.72 | G123: 161.38 | H123: 172.78 | I123: 175.12 | J123: 178.48 | K123: 171.75 | L123: 166.05 | M123: 16.45186
A124: 115 | B124: DCMSHRIRAM | C124: 354.2 | D124: 351.28 | E124: 345.17 | F124: 336.13 | G124: 330.02 | H124: 360.32 | I124: 366.43 | J124: 375.47 | K124: 357.4 | L124: 342.25 | M124: 2.80339
A125: 116 | B125: DEEPAKFERT | C125: 271.55 | D125: 273.87 | E125: 265.73 | F125: 259.92 | G125: 251.78 | H125: 279.68 | I125: 287.82 | J125: 293.63 | K125: 282 | L125: 268.05 | M125: 1.0384
A126: 117 | B126: DELTACORP | C126: 273.4 | D126: 272.17 | E126: 268.33 | F126: 263.27 | G126: 259.43 | H126: 277.23 | I126: 281.07 | J126: 286.13 | K126: 276 | L126: 267.1 | M126: 32.30477
A127: 118 | B127: DEN | C127: 50.4 | D127: 49.88 | E127: 47.82 | F127: 45.23 | G127: 43.17 | H127: 52.47 | I127: 54.53 | J127: 57.12 | K127: 51.95 | L127: 47.3 | M127: 11.8208
A128: 119 | B128: DENABANK | C128: 18.15 | D128: 17.77 | E128: 16.78 | F128: 15.42 | G128: 14.43 | H128: 19.13 | I128: 20.12 | J128: 21.48 | K128: 18.75 | L128: 16.4 | M128: 84.23188
A129: 120 | B129: DHFL | C129: 616 | D129: 617.22 | E129: 610.78 | F129: 605.57 | G129: 599.13 | H129: 622.43 | I129: 628.87 | J129: 634.08 | K129: 623.65 | L129: 612 | M129: 22.03006
A130: 121 | B130: DISHTV | C130: 68.3 | D130: 68.02 | E130: 67.48 | F130: 66.67 | G130: 66.13 | H130: 68.83 | I130: 69.37 | J130: 70.18 | K130: 68.55 | L130: 67.2 | M130: 19.88588
A131: 122 | B131: DIVISLAB | C131: 1114.95 | D131: 1122.43 | E131: 1103.57 | F131: 1092.18 | G131: 1073.32 | H131: 1133.82 | I131: 1152.68 | J131: 1164.07 | K131: 1141.3 | L131: 1111.05 | M131: 8.39082
A132: 123 | B132: DIXON | C132: 2627 | D132: 2640.33 | E132: 2591.67 | F132: 2556.33 | G132: 2507.67 | H132: 2675.67 | I132: 2724.33 | J132: 2759.67 | K132: 2689 | L132: 2605 | M132: 0.85409
A133: 124 | B133: DLF | C133: 200.6 | D133: 197.72 | E133: 191.93 | F133: 183.27 | G133: 177.48 | H133: 206.38 | I133: 212.17 | J133: 220.83 | K133: 203.5 | L133: 189.05 | M133: 121.95178
A134: 125 | B134: DMART | C134: 1613.2 | D134: 1620.67 | E134: 1601.53 | F134: 1589.87 | G134: 1570.73 | H134: 1632.33 | I134: 1651.47 | J134: 1663.13 | K134: 1639.8 | L134: 1609 | M134: 5.37932
A135: 126 | B135: DREDGECORP | C135: 487.35 | D135: 489.63 | E135: 483.27 | F135: 479.18 | G135: 472.82 | H135: 493.72 | I135: 500.08 | J135: 504.17 | K135: 496 | L135: 485.55 | M135: 1.09527
A136: 127 | B136: DRREDDY | C136: 2237.7 | D136: 2235.55 | E136: 2207.20 | F136: 2176.70 | G136: 2148.35 | H136: 2266.05 | I136: 2294.40 | J136: 2324.90 | K136: 2263.9 | L136: 2205.05 | M136: 3.90701
A137: 128 | B137: ECLERX | C137: 1227.4 | D137: 1228.00 | E137: 1216.40 | F137: 1205.40 | G137: 1193.80 | H137: 1239.00 | I137: 1250.60 | J137: 1261.60 | K137: 1239.6 | L137: 1217 | M137: 0.02873
A138: 129 | B138: EDELWEISS | C138: 301.55 | D138: 301.85 | E138: 294.70 | F138: 287.85 | G138: 280.70 | H138: 308.70 | I138: 315.85 | J138: 322.70 | K138: 309 | L138: 295 | M138: 22.35025
A139: 130 | B139: EICHERMOT | C139: 27438.75 | D139: 27479.58 | E139: 27159.17 | F139: 26879.58 | G139: 26559.17 | H139: 27759.17 | I139: 28079.58 | J139: 28359.17 | K139: 27800 | L139: 27200 | M139: 0.26797
A140: 131 | B140: EIDPARRY | C140: 229.35 | D140: 228.15 | E140: 224.55 | F140: 219.75 | G140: 216.15 | H140: 232.95 | I140: 236.55 | J140: 241.35 | K140: 231.75 | L140: 223.35 | M140: 1.20067
A141: 132 | B141: EIHOTEL | C141: 170.3 | D141: 169.67 | E141: 166.83 | F141: 163.37 | G141: 160.53 | H141: 173.13 | I141: 175.97 | J141: 179.43 | K141: 172.5 | L141: 166.2 | M141: 3.18804
A142: 133 | B142: EMAMILTD | C142: 581.35 | D142: 578.95 | E142: 573.90 | F142: 566.45 | G142: 561.40 | H142: 586.40 | I142: 591.45 | J142: 598.90 | K142: 584 | L142: 571.5 | M142: 0.94541
A143: 134 | B143: ENDURANCE | C143: 1500.75 | D143: 1496.92 | E143: 1468.83 | F143: 1436.92 | G143: 1408.83 | H143: 1528.83 | I143: 1556.92 | J143: 1588.83 | K143: 1525 | L143: 1465 | M143: 0.45979
A144: 135 | B144: ENGINERSIN | C144: 127.25 | D144: 129.80 | E144: 123.20 | F144: 119.15 | G144: 112.55 | H144: 133.85 | I144: 140.45 | J144: 144.50 | K144: 136.4 | L144: 125.75 | M144: 46.49329
A145: 136 | B145: EQUITAS | C145: 146.55 | D145: 146.13 | E145: 144.72 | F145: 142.88 | G145: 141.47 | H145: 147.97 | I145: 149.38 | J145: 151.22 | K145: 147.55 | L145: 144.3 | M145: 8.90481
A146: 137 | B146: ERIS | C146: 716.6 | D146: 721.75 | E146: 704.55 | F146: 692.50 | G146: 675.30 | H146: 733.80 | I146: 751.00 | J146: 763.05 | K146: 738.95 | L146: 709.7 | M146: 0.23522
A147: 138 | B147: EROSMEDIA | C147: 126.3 | D147: 127.02 | E147: 124.48 | F147: 122.67 | G147: 120.13 | H147: 128.83 | I147: 131.37 | J147: 133.18 | K147: 129.55 | L147: 125.2 | M147: 4.52702
A148: 139 | B148: ESCORTS | C148: 878.75 | D148: 877.33 | E148: 871.42 | F148: 864.08 | G148: 858.17 | H148: 884.67 | I148: 890.58 | J148: 897.92 | K148: 883.25 | L148: 870 | M148: 7.65431
A149: 140 | B149: EVEREADY | C149: 245.2 | D149: 245.57 | E149: 244.03 | F149: 242.87 | G149: 241.33 | H149: 246.73 | I149: 248.27 | J149: 249.43 | K149: 247.1 | L149: 244.4 | M149: 0.39294
A150: 141 | B150: EXIDEIND | C150: 283.2 | D150: 284.98 | E150: 280.22 | F150: 277.23 | G150: 272.47 | H150: 287.97 | I150: 292.73 | J150: 295.72 | K150: 289.75 | L150: 282 | M150: 23.59738
A151: 142 | B151: FCONSUMER | C151: 47.85 | D151: 47.62 | E151: 46.93 | F151: 46.02 | G151: 45.33 | H151: 48.53 | I151: 49.22 | J151: 50.13 | K151: 48.3 | L151: 46.7 | M151: 22.38323
A152: 143 | B152: FEDERALBNK | C152: 89.55 | D152: 89.52 | E152: 88.33 | F152: 87.12 | G152: 85.93 | H152: 90.73 | I152: 91.92 | J152: 93.13 | K152: 90.7 | L152: 88.3 | M152: 153.23256
A153: 144 | B153: FINCABLES | C153: 598.15 | D153: 602.47 | E153: 590.68 | F153: 583.22 | G153: 571.43 | H153: 609.93 | I153: 621.72 | J153: 629.18 | K153: 614.25 | L153: 595 | M153: 0.2963
A154: 145 | B154: FINPIPE | C154: 596.65 | D154: 602.12 | E154: 587.23 | F154: 577.82 | G154: 562.93 | H154: 611.53 | I154: 626.42 | J154: 635.83 | K154: 617 | L154: 592.7 | M154: 0.20917
A155: 146 | B155: FLFL | C155: 440.05 | D155: 440.23 | E155: 433.87 | F155: 427.68 | G155: 421.32 | H155: 446.42 | I155: 452.78 | J155: 458.97 | K155: 446.6 | L155: 434.05 | M155: 0.64828
A156: 147 | B156: FSL | C156: 64.2 | D156: 65.22 | E156: 62.98 | F156: 61.77 | G156: 59.53 | H156: 66.43 | I156: 68.67 | J156: 69.88 | K156: 67.45 | L156: 64 | M156: 39.52232
A157: 148 | B157: GAIL | C157: 375.55 | D157: 376.73 | E157: 373.07 | F157: 370.58 | G157: 366.92 | H157: 379.22 | I157: 382.88 | J157: 385.37 | K157: 380.4 | L157: 374.25 | M157: 13.30634
A158: 149 | B158: GATI | C158: 106.75 | D158: 107.12 | E158: 105.13 | F158: 103.52 | G158: 101.53 | H158: 108.73 | I158: 110.72 | J158: 112.33 | K158: 109.1 | L158: 105.5 | M158: 9.71666
A159: 150 | B159: GDL | C159: 182.05 | D159: 181.37 | E159: 179.73 | F159: 177.42 | G159: 175.78 | H159: 183.68 | I159: 185.32 | J159: 187.63 | K159: 183 | L159: 179.05 | M159: 0.59469
A160: 151 | B160: GEPIL | C160: 762.05 | D160: 765.40 | E160: 757.20 | F160: 752.35 | G160: 744.15 | H160: 770.25 | I160: 778.45 | J160: 783.30 | K160: 773.6 | L160: 760.55 | M160: 0.05037
A161: 152 | B161: GESHIP | C161: 321.5 | D161: 321.87 | E161: 318.73 | F161: 315.97 | G161: 312.83 | H161: 324.63 | I161: 327.77 | J161: 330.53 | K161: 325 | L161: 319.1 | M161: 0.16131
A162: 153 | B162: GET&D | C162: 282.3 | D162: 283.68 | E162: 278.62 | F162: 274.93 | G162: 269.87 | H162: 287.37 | I162: 292.43 | J162: 296.12 | K162: 288.75 | L162: 280 | M162: 0.45171
A163: 154 | B163: GHCL | C163: 250.35 | D163: 249.75 | E163: 247.60 | F163: 244.85 | G163: 242.70 | H163: 252.50 | I163: 254.65 | J163: 257.40 | K163: 251.9 | L163: 247 | M163: 0.5442
A164: 155 | B164: GICRE | C164: 346.35 | D164: 347.62 | E164: 344.33 | F164: 342.32 | G164: 339.03 | H164: 349.63 | I164: 352.92 | J164: 354.93 | K164: 350.9 | L164: 345.6 | M164: 0.39083
A165: 156 | B165: GILLETTE | C165: 6688.95 | D165: 6691.00 | E165: 6664.20 | F165: 6639.45 | G165: 6612.65 | H165: 6715.75 | I165: 6742.55 | J165: 6767.30 | K165: 6717.8 | L165: 6666.25 | M165: 0.02522
A166: 157 | B166: GLAXO | C166: 3294.8 | D166: 3301.60 | E166: 3278.20 | F166: 3261.60 | G166: 3238.20 | H166: 3318.20 | I166: 3341.60 | J166: 3358.20 | K166: 3325 | L166: 3285 | M166: 0.10332
A167: 158 | B167: GLENMARK | C167: 594.95 | D167: 592.68 | E167: 587.77 | F167: 580.58 | G167: 575.67 | H167: 599.87 | I167: 604.78 | J167: 611.97 | K167: 597.6 | L167: 585.5 | M167: 7.58096
A168: 159 | B168: GMDCLTD | C168: 118.05 | D168: 118.12 | E168: 117.23 | F168: 116.42 | G168: 115.53 | H168: 118.93 | I168: 119.82 | J168: 120.63 | K168: 119 | L168: 117.3 | M168: 1.07775
A169: 160 | B169: GMRINFRA | C169: 18.6 | D169: 18.45 | E169: 17.95 | F169: 17.30 | G169: 16.80 | H169: 19.10 | I169: 19.60 | J169: 20.25 | K169: 18.95 | L169: 17.8 | M169: 490.22365
A170: 161 | B170: GNFC | C170: 430.45 | D170: 431.62 | E170: 424.83 | F170: 419.22 | G170: 412.43 | H170: 437.23 | I170: 444.02 | J170: 449.63 | K170: 438.4 | L170: 426 | M170: 9.31065
A171: 162 | B171: GODFRYPHLP | C171: 840.55 | D171: 839.00 | E171: 828.00 | F171: 815.45 | G171: 804.45 | H171: 851.55 | I171: 862.55 | J171: 875.10 | K171: 850 | L171: 826.45 | M171: 1.53749
A172: 163 | B172: GODREJAGRO | C172: 639.85 | D172: 639.32 | E172: 621.63 | F172: 603.42 | G172: 585.73 | H172: 657.53 | I172: 675.22 | J172: 693.43 | K172: 657 | L172: 621.1 | M172: 0.62841
A173: 164 | B173: GODREJCP | C173: 1298.6 | D173: 1301.20 | E173: 1292.40 | F173: 1286.20 | G173: 1277.40 | H173: 1307.40 | I173: 1316.20 | J173: 1322.40 | K173: 1310 | L173: 1295 | M173: 2.70635
A174: 165 | B174: GODREJIND | C174: 619.1 | D174: 619.03 | E174: 610.17 | F174: 601.23 | G174: 592.37 | H174: 627.97 | I174: 636.83 | J174: 645.77 | K174: 627.9 | L174: 610.1 | M174: 3.35459
A175: 166 | B175: GODREJPROP | C175: 710.45 | D175: 712.93 | E175: 700.87 | F175: 691.28 | G175: 679.22 | H175: 722.52 | I175: 734.58 | J175: 744.17 | K175: 725 | L175: 703.35 | M175: 0.54008
A176: 167 | B176: GPPL | C176: 114.85 | D176: 114.25 | E176: 111.80 | F176: 108.75 | G176: 106.30 | H176: 117.30 | I176: 119.75 | J176: 122.80 | K176: 116.7 | L176: 111.2 | M176: 4.69107
A177: 168 | B177: GRANULES | C177: 107.15 | D177: 105.72 | E177: 103.43 | F177: 99.72 | G177: 97.43 | H177: 109.43 | I177: 111.72 | J177: 115.43 | K177: 108 | L177: 102 | M177: 35.62273
A178: 169 | B178: GRAPHITE | C178: 1095.65 | D178: 1093.13 | E178: 1076.37 | F178: 1057.08 | G178: 1040.32 | H178: 1112.42 | I178: 1129.18 | J178: 1148.47 | K178: 1109.9 | L178: 1073.85 | M178: 14.36247
A179: 170 | B179: GRASIM | C179: 997.35 | D179: 1001.50 | E179: 987.90 | F179: 978.45 | G179: 964.85 | H179: 1010.95 | I179: 1024.55 | J179: 1034.00 | K179: 1015.1 | L179: 992.05 | M179: 6.73431
A180: 171 | B180: GREAVESCOT | C180: 155.05 | D180: 154.02 | E180: 152.33 | F180: 149.62 | G180: 147.93 | H180: 156.73 | I180: 158.42 | J180: 161.13 | K180: 155.7 | L180: 151.3 | M180: 13.24996
A181: 172 | B181: GREENPLY | C181: 204.25 | D181: 203.05 | E181: 199.80 | F181: 195.35 | G181: 192.10 | H181: 207.50 | I181: 210.75 | J181: 215.20 | K181: 206.3 | L181: 198.6 | M181: 1.77256
A182: 173 | B182: GRUH | C182: 336.5 | D182: 334.90 | E182: 332.30 | F182: 328.10 | G182: 325.50 | H182: 339.10 | I182: 341.70 | J182: 345.90 | K182: 337.5 | L182: 330.7 | M182: 4.21512
A183: 174 | B183: GSFC | C183: 117.1 | D183: 116.55 | E183: 114.75 | F183: 112.40 | G183: 110.60 | H183: 118.90 | I183: 120.70 | J183: 123.05 | K183: 118.35 | L183: 114.2 | M183: 23.57924
A184: 175 | B184: GSKCONS | C184: 6662.2 | D184: 6692.37 | E184: 6619.83 | F184: 6577.47 | G184: 6504.93 | H184: 6734.73 | I184: 6807.27 | J184: 6849.63 | K184: 6764.9 | L184: 6650 | M184: 0.06082
A185: 176 | B185: GSPL | C185: 200.3 | D185: 201.22 | E185: 198.63 | F185: 196.97 | G185: 194.38 | H185: 202.88 | I185: 205.47 | J185: 207.13 | K185: 203.8 | L185: 199.55 | M185: 1.48112
A186: 177 | B186: GUJALKALI | C186: 567 | D186: 568.45 | E186: 561.90 | F186: 556.80 | G186: 550.25 | H186: 573.55 | I186: 580.10 | J186: 585.20 | K186: 575 | L186: 563.35 | M186: 0.71837
A187: 178 | B187: GUJFLUORO | C187: 755.15 | D187: 758.28 | E187: 748.77 | F187: 742.38 | G187: 732.87 | H187: 764.67 | I187: 774.18 | J187: 780.57 | K187: 767.8 | L187: 751.9 | M187: 0.16246
A188: 179 | B188: GUJGASLTD | C188: 771.5 | D188: 770.10 | E188: 766.40 | F188: 761.30 | G188: 757.60 | H188: 775.20 | I188: 778.90 | J188: 784.00 | K188: 773.8 | L188: 765 | M188: 0.05603
A189: 180 | B189: GULFOILLUB | C189: 886.3 | D189: 882.12 | E189: 874.18 | F189: 862.07 | G189: 854.13 | H189: 894.23 | I189: 902.17 | J189: 914.28 | K189: 890.05 | L189: 870 | M189: 0.09622
A190: 181 | B190: GVKPIL | C190: 12 | D190: 12.08 | E190: 11.72 | F190: 11.43 | G190: 11.07 | H190: 12.37 | I190: 12.73 | J190: 13.02 | K190: 12.45 | L190: 11.8 | M190: 21.17205
A191: 182 | B191: HATHWAY | C191: 21.5 | D191: 20.98 | E191: 20.02 | F191: 18.53 | G191: 17.57 | H191: 22.47 | I191: 23.43 | J191: 24.92 | K191: 21.95 | L191: 19.5 | M191: 46.6458
A192: 183 | B192: HATSUN | C192: 699.4 | D192: 701.92 | E192: 686.78 | F192: 674.17 | G192: 659.03 | H192: 714.53 | I192: 729.67 | J192: 742.28 | K192: 717.05 | L192: 689.3 | M192: 0.08638
A193: 184 | B193: HAVELLS | C193: 687.3 | D193: 684.07 | E193: 676.83 | F193: 666.37 | G193: 659.13 | H193: 694.53 | I193: 701.77 | J193: 712.23 | K193: 691.3 | L193: 673.6 | M193: 12.53831
A194: 185 | B194: HCC | C194: 13 | D194: 12.35 | E194: 11.45 | F194: 9.90 | G194: 9.00 | H194: 13.90 | I194: 14.80 | J194: 16.35 | K194: 13.25 | L194: 10.8 | M194: 456.52457
A195: 186 | B195: HCL-INSYS | C195: 36.9 | D195: 36.48 | E195: 35.72 | F195: 34.53 | G195: 33.77 | H195: 37.67 | I195: 38.43 | J195: 39.62 | K195: 37.25 | L195: 35.3 | M195: 20.34516
A196: 187 | B196: HCLTECH | C196: 956.65 | D196: 959.90 | E196: 951.85 | F196: 947.05 | G196: 939.00 | H196: 964.70 | I196: 972.75 | J196: 977.55 | K196: 967.95 | L196: 955.1 | M196: 10.02729
A197: 188 | B197: HDFC | C197: 1969.95 | D197: 1973.33 | E197: 1957.97 | F197: 1945.98 | G197: 1930.62 | H197: 1985.32 | I197: 2000.68 | J197: 2012.67 | K197: 1988.7 | L197: 1961.35 | M197: 17.89926
A198: 189 | B198: HDFCBANK | C198: 2118.5 | D198: 2118.38 | E198: 2094.77 | F198: 2071.03 | G198: 2047.42 | H198: 2142.12 | I198: 2165.73 | J198: 2189.47 | K198: 2142 | L198: 2094.65 | M198: 22.36102
A199: 190 | B199: HDIL | C199: 23.85 | D199: 23.68 | E199: 22.97 | F199: 22.08 | G199: 21.37 | H199: 24.57 | I199: 25.28 | J199: 26.17 | K199: 24.4 | L199: 22.8 | M199: 76.14767
A200: 191 | B200: HEG | C200: 4387.7 | D200: 4395.57 | E200: 4332.13 | F200: 4276.57 | G200: 4213.13 | H200: 4451.13 | I200: 4514.57 | J200: 4570.13 | K200: 4459 | L200: 4340 | M200: 3.91648
A201: 192 | B201: HEIDELBERG | C201: 164.9 | D201: 163.30 | E201: 159.60 | F201: 154.30 | G201: 150.60 | H201: 168.60 | I201: 172.30 | J201: 177.60 | K201: 167 | L201: 158 | M201: 5.618
A202: 193 | B202: HERITGFOOD | C202: 601.8 | D202: 604.70 | E202: 597.00 | F202: 592.20 | G202: 584.50 | H202: 609.50 | I202: 617.20 | J202: 622.00 | K202: 612.4 | L202: 599.9 | M202: 0.09938
A203: 194 | B203: HEROMOTOCO | C203: 3281.35 | D203: 3295.67 | E203: 3247.68 | F203: 3214.02 | G203: 3166.03 | H203: 3329.33 | I203: 3377.32 | J203: 3410.98 | K203: 3343.65 | L203: 3262 | M203: 4.40547
A204: 195 | B204: HEXAWARE | C204: 462.75 | D204: 468.92 | E204: 454.53 | F204: 446.32 | G204: 431.93 | H204: 477.13 | I204: 491.52 | J204: 499.73 | K204: 483.3 | L204: 460.7 | M204: 9.84926
A205: 196 | B205: HFCL | C205: 24.85 | D205: 24.90 | E205: 24.40 | F205: 23.95 | G205: 23.45 | H205: 25.35 | I205: 25.85 | J205: 26.30 | K205: 25.4 | L205: 24.45 | M205: 61.02141
A206: 197 | B206: HIMATSEIDE | C206: 307.1 | D206: 309.53 | E206: 302.57 | F206: 298.03 | G206: 291.07 | H206: 314.07 | I206: 321.03 | J206: 325.57 | K206: 316.5 | L206: 305 | M206: 0.78443
... 305 more rows

Sheet Bulk Deals
E6: Back To Main Page
A7: Subject : | B7: BULK DEAL | D7: =Main!B10 -> 2018-08-10
A9: Date | B9: Scrip code | C9: Scrip Name | D9: Client Name | E9: Buy / Sell | F9: Quantity Traded | G9: Trade Price / Wt.Avg.trade price | H9: Exchange
A10: 2018-08-09 | B10: 539770 | C10: DARJEELING | D10: KRUTI KEVIN KAPADIA | E10: SELL | F10: 22,876 | G10: 51.89 | H10: BSE
A11: 2018-08-09 | B11: 523708 | C11: EIMCOELECO | D11: DHEERAJ KUMAR LOHIA | E11: BUY | F11: 32,164 | G11: 375.72 | H11: BSE
A12: 2018-08-09 | B12: 503681 | C12: ELCIDIN | D12: DEVDA MANCKCHAND PRASANCHAND | E12: SELL | F12: 4,444 | G12: 5.89 | H12: BSE
A13: 2018-08-09 | B13: 503681 | C13: ELCIDIN | D13: ALPA R SANGHRAJKA | E13: BUY | F13: 4,444 | G13: 5.89 | H13: BSE
A14: 2018-08-09 | B14: 500170 | C14: GTNINDS | D14: DEVJYOT TRADE AND INVESTMENT PRIVATE LIMITED | E14: SELL | F14: 137,837 | G14: 18.26 | H14: BSE
A15: 2018-08-09 | B15: 500170 | C15: GTNINDS | D15: DEVJYOT TRADE AND INVESTMENT PRIVATE LIMITED | E15: BUY | F15: 137,837 | G15: 16.28 | H15: BSE
A16: 2018-08-09 | B16: 526263 | C16: MOLDTEK | D16: RAJESH GOENKA | E16: BUY | F16: 175,000 | G16: 43.75 | H16: BSE
A17: 2018-08-09 | B17: 526263 | C17: MOLDTEK | D17: KRISHNI DEVI GOENKA | E17: BUY | F17: 175,000 | G17: 43.75 | H17: BSE
A18: 2018-08-09 | B18: 526263 | C18: MOLDTEK | D18: AKG FINVEST LIMITED | E18: SELL | F18: 409,000 | G18: 43.75 | H18: BSE
A19: 2018-08-09 | B19: 535205 | C19: MYSTICELE | D19: MAHESH KHANDELWAL (HUF) . | E19: BUY | F19: 100,000 | G19: 51.06 | H19: BSE
A20: 2018-08-09 | B20: 530127 | C20: NPRFIN | D20: ANAND MISHRILAL JAJU | E20: BUY | F20: 38,112 | G20: 34.71 | H20: BSE
A21: 2018-08-09 | B21: 512217 | C21: PRISMMEDI | D21: ANILKUMAR | E21: BUY | F21: 36,358 | G21: 25.69 | H21: BSE
A22: 2018-08-09 | B22: 539561 | C22: ROXY | D22: MUKESHKUMAR MAVJIBHAI PARMAR | E22: SELL | F22: 21,237 | G22: 13.24 | H22: BSE
A23: 2018-08-09 | B23: 532070 | C23: SUPRBPA | D23: PANKAJ BABULAL VORA | E23: BUY | F23: 32,685 | G23: 30.01 | H23: BSE
A24: 2018-08-09 | B24: 537582 | C24: UNISHIRE | D24: NUTAN KIRTI MEHTA | E24: SELL | F24: 200,000 | G24: 8.64 | H24: BSE
A25: 2018-08-09 | B25: AIROLAM | C25: Airo Lam Limited | D25: SABAR AUTO | E25: BUY | F25: 123,000 | G25: 38.73 | H25: NSE
A26: 2018-08-09 | B26: AIROLAM | C26: Airo Lam Limited | D26: SAKAL AUTO | E26: BUY | F26: 126,000 | G26: 39.13 | H26: NSE
A27: 2018-08-09 | B27: HISARMETAL | C27: Hisar Metal Ind. Limited | D27: MUKUL MAHESHWARI | E27: BUY | F27: 30,103 | G27: 84.33 | H27: NSE
A28: 2018-08-09 | B28: JETAIRWAYS | C28: Jet Airways (India) Ltd. | D28: CROSSLAND TRADING CO | E28: BUY | F28: 612,735 | G28: 298.32 | H28: NSE
A29: 2018-08-09 | B29: JPASSOCIAT | C29: Jaiprakash Associates Lim | D29: SHAASTRA SECURITIES TRADING PRIVATE LIMITED | E29: BUY | F29: 20,505,346 | G29: 14.84 | H29: NSE
A30: 2018-08-09 | B30: MACPOWER | C30: Macpower CNC Machines Ltd | D30: PANTOMATH FUND MANAGERS LLP | E30: BUY | F30: 50,000 | G30: 190 | H30: NSE
A31: 2018-08-09 | B31: PNC | C31: Pritish Nandy Comm. Ltd. | D31: IDEAS.COM INDIA PVT LTD | E31: BUY | F31: 456,955 | G31: 15.05 | H31: NSE
A32: 2018-08-09 | B32: PRITI | C32: Priti International Ltd | D32: NAND LAL SUTHAR | E32: BUY | F32: 20,800 | G32: 95 | H32: NSE
A33: 2018-08-09 | B33: RCOM | C33: Reliance Comm. Ltd. | D33: ADROIT FINANCIAL SERVICES PRIVATE LIMITED | E33: BUY | F33: 25,412,155 | G33: 19.79 | H33: NSE
A34: 2018-08-09 | B34: RCOM | C34: Reliance Comm. Ltd. | D34: SHAASTRA SECURITIES TRADING PRIVATE LIMITED | E34: BUY | F34: 27,265,834 | G34: 19.75 | H34: NSE
A35: 2018-08-09 | B35: RCOM | C35: Reliance Comm. Ltd. | D35: SHARE INDIA SECURITIES LIMITED | E35: BUY | F35: 32,534,563 | G35: 19.84 | H35: NSE
A36: 2018-08-09 | B36: SELAN | C36: Selan Exploration Technol | D36: N.K. SECURITIES | E36: BUY | F36: 106,569 | G36: 268.39 | H36: NSE
A37: 2018-08-09 | B37: SONAMCLOCK | C37: Sonam Clock Limited | D37: ARCADIA SHARE & STOCK BROKERS PRIVATE LIMITED | E37: BUY | F37: 9,000 | G37: 37.9 | H37: NSE
A38: 2018-08-09 | B38: SONAMCLOCK | C38: Sonam Clock Limited | D38: DHARMESHKUMAR HARSHADRAY HARIYANI | E38: BUY | F38: 66,000 | G38: 38 | H38: NSE
A39: 2018-08-09 | B39: SONAMCLOCK | C39: Sonam Clock Limited | D39: PARULBEN DHARMESHKUMAR HARIYANI | E39: BUY | F39: 66,000 | G39: 38 | H39: NSE
A40: 2018-08-09 | B40: TARAPUR | C40: Tarapur Transformers Ltd | D40: NAVRATI ANURAG GUPTA | E40: BUY | F40: 149,838 | G40: 4.2 | H40: NSE
A41: 2018-08-09 | B41: TARAPUR | C41: Tarapur Transformers Ltd | D41: YASH GUPTA | E41: BUY | F41: 100,000 | G41: 4.2 | H41: NSE
A42: 2018-08-09 | B42: AIROLAM | C42: Airo Lam Limited | D42: SHAH JITENDRA RAMANLAL H UF | E42: SELL | F42: 90,000 | G42: 38.73 | H42: NSE
A43: 2018-08-09 | B43: HISARMETAL | C43: Hisar Metal Ind. Limited | D43: MUKUL MAHESHWARI | E43: SELL | F43: 33,587 | G43: 84.2 | H43: NSE
A44: 2018-08-09 | B44: JETAIRWAYS | C44: Jet Airways (India) Ltd. | D44: CROSSLAND TRADING CO | E44: SELL | F44: 612,735 | G44: 298.37 | H44: NSE
A45: 2018-08-09 | B45: JPASSOCIAT | C45: Jaiprakash Associates Lim | D45: SHAASTRA SECURITIES TRADING PRIVATE LIMITED | E45: SELL | F45: 20,505,346 | G45: 14.87 | H45: NSE
A46: 2018-08-09 | B46: PNC | C46: Pritish Nandy Comm. Ltd. | D46: INTERNATIONAL COMMUNICATIONS INVESTMENTS MAURITIUS LIMITED | E46: SELL | F46: 458,155 | G46: 15.05 | H46: NSE
A47: 2018-08-09 | B47: RCOM | C47: Reliance Comm. Ltd. | D47: ADROIT FINANCIAL SERVICES PRIVATE LIMITED | E47: SELL | F47: 24,580,367 | G47: 19.78 | H47: NSE
A48: 2018-08-09 | B48: RCOM | C48: Reliance Comm. Ltd. | D48: SHAASTRA SECURITIES TRADING PRIVATE LIMITED | E48: SELL | F48: 27,265,834 | G48: 19.77 | H48: NSE
A49: 2018-08-09 | B49: RCOM | C49: Reliance Comm. Ltd. | D49: SHARE INDIA SECURITIES LIMITED | E49: SELL | F49: 32,226,041 | G49: 19.86 | H49: NSE
A50: 2018-08-09 | B50: SELAN | C50: Selan Exploration Technol | D50: N.K. SECURITIES | E50: SELL | F50: 106,569 | G50: 268.54 | H50: NSE
A51: 2018-08-09 | B51: SONAMCLOCK | C51: Sonam Clock Limited | D51: ARCADIA SHARE & STOCK BROKERS PRIVATE LIMITED | E51: SELL | F51: 141,000 | G51: 38 | H51: NSE
A52: 2018-08-09 | B52: TARAPUR | C52: Tarapur Transformers Ltd | D52: JAGDISH RAMKUMAR BANSAL | E52: SELL | F52: 250,000 | G52: 4.2 | H52: NSE

Sheet Call Tracker (Equity & F&O)
M5: Back To Main Page
A6: Retail Research Technical Calls & Fundamental Performance Report for the month of August -2018
M7: =Main!B10 -> 2018-08-10
B8: Positional Call
A9: Sr.no | B9: Date | D9: Company | E9: Rec | F9: Rec Price | G9: Stop Loss*** | H9: Call Closed At | I9: Target | J9: Remark | K9: Profit / Loss per Share | L9: Gain / Loss % | M9: Status | N9: Closed Date | O9: NSE Closed Price
A10: 1 | B10: 2018-07-17 | D10: LUPIN | E10: Buy | F10: 823.5 | G10: 782 | H10: 852 | I10: 890-910 | J10: Profit of Rs.28.50/- | K10: =H10-F10 -> 28.50 | L10: =K10/F10 -> 3.46% | M10: Successful | N10: 2018-08-02 | R10: R
A11: 2 | B11: 2018-07-25 | D11: TVSMOTOR | E11: Buy | F11: 540.5 | G11: 513 | H11: 556.5 | I11: 590-600 | J11: Part Profit of Rs.16/- | K11: 16.00 | L11: 2.96% | M11: Successful | N11: 2018-08-07 | R11: R
A12: 3 | B12: 2018-08-02 | D12: CHOLAFIN | E12: Buy | F12: 1445-1455 | G12: 1378 | I12: 1550-1580 | J12: Open | O12: =VLOOKUP(D12,Sheet2!$A$1:M2182,6,0) -> 1443.55 | R12: H
A13: 4 | B13: 2018-08-02 | D13: PETRONET | E13: Buy | F13: 230-232 | G13: 218 | I13: 250-255 | J13: Open | O13: =VLOOKUP(D13,Sheet2!$A$1:M2183,6,0) -> 229.7 | R13: H
A14: 5 | B14: 2018-08-03 | D14: MARICO | E14: Buy | F14: 351.5 | G14: 337 | H14: 361.5 | I14: 373-376 | J14: Part Profit of Rs.10/- | K14: =H14-F14 -> 10.00 | L14: =K14/F14 -> 2.84% | M14: Successful | N14: 2018-08-06 | R14: R
A15: 6 | B15: 2018-08-06 | D15: JYOTHYLAB | E15: Buy | F15: 224-226 | G15: 213.7 | I15: 245-250 | J15: Open | O15: =VLOOKUP(D15,Sheet2!$A$1:M2185,6,0) -> 219.4 | R15: R
A16: 7 | B16: 2018-08-07 | D16: PEL | E16: Buy | F16: 2830 | G16: 2693 | H16: 2920 | I16: 3090-3110 | J16: Part Profit of Rs.90/- | K16: =H16-F16 -> 90.00 | L16: =K16/F16 -> 3.18% | M16: Successful | N16: 2018-08-07 | R16: R
A17: 8 | B17: 2018-08-09 | D17: SIEMENS | E17: Buy | F17: 990-1000 | G17: 945 | I17: 1085-1095 | J17: Open | O17: =VLOOKUP(D17,Sheet2!$A$1:M2187,6,0) -> 1005.3 | R17: R
A18: 9 | B18: 2018-08-09 | D18: BRITANNIA | E18: Buy | F18: 6320-6340 | G18: 6080 | I18: 6750-6800 | J18: Open | O18: =VLOOKUP(D18,Sheet2!$A$1:M2188,6,0) -> 6335.4 | R18: R
A19: 10 | B19: 2018-08-09 | D19: TATAMOTORS | E19: Buy | F19: 257-259 | G19: 246 | I19: 282-286 | J19: Open | O19: =VLOOKUP(D19,Sheet2!$A$1:M2189,6,0) -> 257.85 | R19: R
A20: 11 | B20: 2018-08-09 | D20: AXISBANK | E20: Sell | F20: 615-619 | G20: 645 | I20: 580-570 | J20: Open | O20: =VLOOKUP(D20,Sheet2!$A$1:M2190,6,0) -> 621.05 | R20: H
A35: CLBS = Closing Basis *** | F35: Reinitiated $
A36: Dividend adjusted <> | F36: Revised stoploss #
A37: Part book {}
A38: Master Trade High Risk
A39: Sr.no | B39: Date | D39: Company | E39: Rec | F39: Rec Price | G39: Stop Loss | H39: Call Closed At | I39: Target | J39: Remark | K39: Profit / Loss per share | L39: Gain / Loss per Lot | M39: Lot | N39: Status | O39: Closed Date
A40: 1 | B40: 2018-07-31 | D40: NIFTY AUG FUT | E40: Sell | F40: 11325 | G40: 11425 | H40: 11425 | I40: 11000 | J40: Loss of Rs. 100/- | K40: =F40-H40 -> -100 | L40: =M40*K40 -> -7500 | M40: 75 | N40: Unsuccessful | O40: 2018-08-06 | R40: A
A41: 2 | B41: 2018-08-01 | D41: BANKNIFTY AUG FUT | E41: Sell | F41: 27800 | G41: 28111 | H41: 27680 | I41: 27300-27100 | J41: Profit of Rs.120/- | K41: =F41-H41 -> 120 | L41: =M41*K41 -> 4800 | M41: 40 | N41: Successful | O41: 2018-08-01 | R41: R
A42: 3 | B42: 2018-08-03 | D42: BANKNIFTY AUG FUT | E42: Sell | F42: 27770 | G42: 28111 | H42: 28111 | I42: 27300-27100 | J42: Loss of Rs. 341/- | K42: =F42-H42 -> -341 | L42: -13640 | M42: 40 | N42: Unsuccessful | O42: 2018-08-08 | R42: R
A43: 4 | B43: 2018-08-07 | D43: NIFTY AUG FUT | E43: Sell | F43: 11420-11430 | G43: 11530 | I43: 11200 | J43: Open | R43: H
A49: Master Trade Medium Risk
A50: Sr.no | B50: Date | D50: Company | E50: Rec | F50: Rec Price | G50: Stop Loss | H50: Call Closed At | I50: Target | J50: Remark | K50: Profit/ Loss per lot | L50: Gain / Loss per Lot | M50: Lot | N50: Status | O50: Closed Date
A51: 1 | B51: 2018-07-30 | D51: NIFTY AUG 11000 PE | E51: Buy | F51: 56-60 | G51: 18 | I51: 120-140 | J51: Open | R51: H
A52: 2 | B52: 2018-08-02 | D52: BANKNIFTY 2-AUG 27500 CE | E52: Buy | F52: 13 | G52: 0 | H52: 0 | I52: 40 | J52: Loss of Rs.13/- | K52: =H52-F52 -> -13 | L52: =K52*M52 -> -520 | M52: 40 | N52: Unsuccessful | O52: 2018-08-02 | R52: R
B63: Smart Delivery Trade
A64: Sr.no | B64: Date | D64: Company | E64: Rec | F64: Rec Price | G64: Stop Loss*** | H64: Call Closed At | I64: Target | J64: Remark | K64: Profit / Loss per Share | L64: Gain / Loss % | M64: Status | N64: Closed Date | O64: NSE Closed Price
A65: 1 | B65: 2018-07-25 | D65: SUNPHARMA | E65: Buy | F65: 557.5 | G65: 535 | H65: 575 | I65: 590-600 | J65: Profit of Rs.17.50/- | K65: =H65-F65 -> 17.50 | L65: =K65/F65 -> 3.14% | M65: Successful | N65: 2018-08-01 | R65: H
A66: 2 | B66: 2018-07-30 | D66: ARVIND | E66: Buy | F66: 421.5 | G66: 408 | H66: 431 | I66: 440-450 | J66: Profit of Rs.9.50/- | K66: =H66-F66 -> 9.50 | L66: =K66/F66 -> 2.25% | M66: Successful | N66: 2018-08-06 | R66: H
A67: 3 | B67: 2018-08-01 | D67: CIPLA | E67: Sell | F67: 640 | G67: 665 | H67: 624.5 | I67: 600-590 | J67: Profit of Rs.15.50/- | K67: =F67-H67 -> 15.50 | L67: 2.42% | M67: Successful | N67: 2018-08-08 | R67: H
A68: 4 | B68: 2018-08-02 | D68: GODREJCP | E68: Buy | F68: 1330-1335 | G68: 1285 | I68: 1415-1425 | J68: Open | O68: =VLOOKUP(D68,Sheet2!$A$1:M2226,6,0) -> 1298.6 | R68: R
A76: CLBS = Closing Basis *** | F76: Reinitiated $
A77: Dividend adjusted <> | F77: Revised stoploss #
B80: Momentum Call
A81: Sr.no | B81: Date | D81: Company | E81: Rec | F81: Rec Price | G81: Stop Loss | H81: Call Closed At | I81: Target | J81: Remark | K81: Profit / Loss per Share/Lot | L81: Gain / Loss % | M81: Gain / Loss per Lot | N81: Lot | O81: Status | P81: Closed Date | Q81: NSE Closed Price
A82: 1 | B82: 2018-08-01 | D82: JUBLFOOD AUG FUT | E82: Buy | F82: 1395.5 | G82: 1374 | H82: 1414 | I82: 1430-1440 | J82: Profit of Rs.18.50/- | K82: =H82-F82 -> 18.5 | M82: =N82*K82 -> 9250 | N82: 500 | O82: Successful | P82: 2018-08-01 | R82: R
A83: 2 | B83: 2018-08-02 | D83: LT AUG FUT | E83: Buy | F83: 1278.5 | G83: 1267 | H83: 1272 | I83: 1300 | J83: Loss of Rs.6.50/- | K83: =H83-F83 -> -6.5 | M83: =N83*K83 -> -4875 | N83: 750 | O83: UnSuccessful | P83: 2018-08-02 | R83: R
A84: 3 | B84: 2018-08-02 | D84: RAYMOND AUG FUT | E84: Buy | F84: 799 | G84: 785 | H84: 811 | I84: 825 | J84: Profit of Rs.12/- | K84: 12 | M84: 9600 | N84: 800 | O84: Successful | P84: 2018-08-03 | R84: N
A85: 4 | B85: 2018-08-03 | D85: APOLLOTYRE AUG FUT | E85: Buy | F85: 288.5 | G85: 284.5 | H85: 285.5 | I85: 296 | J85: Loss of Rs.3/- | K85: =H85-F85 -> -3 | M85: =N85*K85 -> -9000 | N85: 3000 | O85: Unsuccessful | P85: 2018-08-03 | R85: N
A86: 5 | B86: 2018-08-03 | D86: BATAINDIA AUG FUT | E86: Sell | F86: 944 | G86: 955.3 | H86: 933.5 | I86: 925 | J86: Profit of Rs.10.50/- | K86: =F86-H86 -> 10.5 | M86: 11550 | N86: 1100 | O86: Successful | P86: 2018-08-06 | R86: R
A87: 6 | B87: 2018-08-03 | D87: BALKRISHNA AUG FUT | E87: Buy | F87: 1262.5 | G87: 1248 | H87: 1279 | I87: 1290 | J87: Profit of Rs.16.50/- | K87: =H87-F87 -> 16.5 | M87: =N87*K87 -> 13200 | N87: 800 | O87: Successful | P87: 2018-08-06 | R87: H
A88: 7 | B88: 2018-08-03 | D88: ESCORTS AUG FUT | E88: Buy | F88: 903 | G88: 891 | H88: 891 | I88: 925 | J88: Loss of Rs.12/- | K88: -12 | M88: -13200 | N88: 1100 | O88: Unsuccessful | P88: 2018-08-06 | R88: N
A89: 8 | B89: 2018-08-06 | D89: UPL AUG FUT | E89: Buy | F89: 649.5 | G89: 638 | H89: 657.5 | I89: 670 | J89: Profit of Rs.8/- | K89: =H89-F89 -> 8 | M89: =N89*K89 -> 9600 | N89: 1200 | O89: Successful | P89: 2018-08-06 | R89: H
A90: 9 | B90: 2018-08-06 | D90: INDIANB | E90: Buy | F90: 368.5 | G90: 359 | H90: 378 | I90: 385-390 | J90: Profit of Rs.9.50/- | K90: 9.5 | L90: =K90/F90 -> 2.58% | O90: Successful | P90: 2018-08-06 | R90: H
A91: 10 | B91: 2018-08-07 | D91: RELIANCE AUG FUT | E91: Sell | F91: 1198.5 | G91: 1211 | H91: 1186.5 | I91: 1180 | J91: Profit of Rs.12/- | K91: =F91-H91 -> 12 | M91: =N91*K91 -> 12000 | N91: 1000 | O91: Successful | P91: 2018-08-07 | R91: H
A92: 11 | B92: 2018-08-07 | D92: HEROMOTOCO AUG FUT | E92: Sell | F92: 3295-3305 | G92: 3360 | I92: 3200-3180 | J92: Open | R92: H
A93: 12 | B93: 2018-08-07 | D93: RBLBANK AUG FUT | E93: Buy | F93: 565 | G93: 555 | H93: 568.5 | I93: 585 | J93: Profit of Rs.3.50/- | K93: =H93-F93 -> 3.5 | M93: =N93*K93 -> 4200 | N93: 1200 | O93: Successful | P93: 2018-08-08 | R93: N
A94: 13 | B94: 2018-08-07 | D94: UPL AUG FUT | E94: Buy | F94: 640 | G94: 630 | H94: 643.5 | I94: 662 | J94: Profit of Rs.3.50/- | K94: 3.5 | M94: 4200 | N94: 1200 | O94: Successful | P94: 2018-08-08 | R94: H
A95: 14 | B95: 2018-08-07 | D95: SAIL | E95: Buy | F95: 79.50-80.20 | G95: 78 | I95: 83-85 | J95: Open | R95: H
A96: 15 | B96: 2018-08-08 | D96: ESCORTS AUG FUT | E96: Buy | F96: 886 | G96: 874 | H96: 876.5 | I96: 910 | J96: Loss of Rs.9.5/- | K96: =H96-F96 -> -9.5 | M96: =N96*K96 -> -11400 | N96: 1200 | O96: Unsuccessful | P96: 2018-08-09 | R96: H
A97: 16 | B97: 2018-08-08 | D97: RELIANCE AUG FUT | E97: Sell | F97: 1200.5 | G97: 1214 | H97: 1210.5 | I97: 1180 | J97: Loss of Rs.10/- | K97: =F97-H97 -> -10 | M97: =N97*K97 -> -11000 | N97: 1100 | O97: Unsuccessful | P97: 2018-08-08 | R97: H
A98: 17 | B98: 2018-08-09 | D98: SUNPHARMA AUG FUT | E98: Buy | F98: 567 | G98: 558 | H98: 573 | I98: 588 | J98: Profit of Rs.6/- | K98: =H98-F98 -> 6 | M98: 6600 | N98: 1100 | O98: Successful | P98: 2018-08-09 | R98: N
A99: 18 | B99: 2018-08-08 | D99: DIVISLAB AUG FUT | E99: Buy | F99: 1148 | G99: 1135 | H99: 1135 | I99: 1180 | J99: Loss of Rs.13/- | K99: =H99-F99 -> -13 | M99: -10400 | N99: 800 | O99: Unsuccessful | P99: 2018-08-08 | R99: R
A100: 19 | B100: 2018-08-09 | D100: NIITTECH AUG FUT | E100: Buy | F100: 1281 | G100: 1269 | H100: 1269 | I100: 1300 | J100: Loss of Rs.12/- | K100: =H100-F100 -> -12 | M100: =N100*K100 -> -9000 | N100: 750 | O100: Unsuccessful | P100: 2018-08-09 | R100: H
A123: CLBS = Closing Basis ***
A124: Dividend adjusted <> | F124: Reinitiated $
F125: Revised stoploss #
B126: Quick Pick Intraday
A127: Sr.no | B127: Date | D127: Company | E127: Rec | F127: Rec Price | G127: Stop Loss*** | H127: Call Closed At | I127: Target | J127: Remark | K127: Profit / Loss per Share | L127: Status | M127: Closed Date
A128: 1 | B128: 2018-08-06 | D128: CAPF | E128: Buy | F128: 565.5 | G128: 560.7 | H128: 560.7 | I128: 575 | J128: Loss of Rs.4.8/- | K128: =H128-F128 -> -4.8 | L128: Unsuccessful | M128: 2018-08-06 | R128: R
A129: 2 | B129: 2018-08-06 | D129: HINDALCO | E129: Sell | F129: 211.75 | G129: 214.3 | H129: 214.3 | I129: 207-205 | J129: Loss of Rs.2.55/- | K129: =F129-H129 -> -2.55 | L129: Unsuccessful | M129: 2018-08-06 | R129: R
A141: Techno -Funda (positional)
A142: Sr.no | B142: Date | D142: Company | E142: Rec | F142: Rec Price | G142: Stop Loss*** | H142: Call Closed At | I142: Target | J142: Remark | K142: Profit / Loss per Share | L142: Gain / Loss % | M142: Status | N142: Closed Date | O142: NSE Closed Price
A145: CLBS = Closing Basis *** | F145: Reinitiated $
A146: Dividend adjusted <> | F146: Revised stoploss #
B151: Investment Idea
A152: Sr.no | B152: Date | D152: Company | E152: Rec | F152: Rec Price | G152: Point of Review | H152: Close Rate | I152: Target | J152: Remark | K152: Profit / Loss per Share | L152: Gain / Loss % | M152: Status | N152: Closed Date
A153: 1 | B153: 2013-11-01 | D153: L&T Finance Holding | E153: Accu | F153: 82.00 | G153: - | H153: 100 | I153: 100.00 | J153: Target Achieved | K153: =H153-F153 -> 18.00 | L153: =K153/F153 -> 21.95% | M153: Successful | N153: 2016-10-14
A154: 2 | B154: 2014-06-04 | D154: Finolex Inds | E154: Buy | F154: 257.00 | G154: - | H154: 300 | I154: 300.00 | J154: Target Achieved | K154: =H154-F154 -> 43.00 | L154: 16.73% | M154: Successful | N154: 2014-07-02
A155: =1+A154 -> 3 | B155: 2014-07-08 | D155: JK Cement | E155: Buy | F155: 393.00 | G155: - | H155: 468 | I155: 468.00 | J155: Target Achieved | K155: =H155-F155 -> 75.00 | L155: 19.08% | M155: Successful | N155: 2014-08-12
A156: 4 | B156: 2014-08-06 | D156: Finolex Cables | E156: Buy | F156: 205.00 | G156: - | H156: 275 | I156: 250.00 | J156: Target Achieved | K156: 70.00 | L156: 34.15% | M156: Successful | N156: 2014-11-19
A157: 5 | B157: 2014-09-04 | D157: Exide Inds | E157: Buy | F157: 162.00 | G157: - | H157: 190 | I157: 190.00 | J157: Target Achieved | K157: 28.00 | L157: 17.28% | M157: Successful | N157: 2015-01-02
A158: 6 | B158: 2014-09-04 | D158: Deepak Nitrite | E158: Buy | F158: 75.00 | G158: - | H158: 91.5 | I158: 95-100 | J158: Profit of Rs.16.50/- | K158: 16.50 | L158: 22.00% | M158: Successful | N158: 2014-11-11
A159: 7 | B159: 2014-10-01 | D159: Mercks | E159: Buy | F159: 850.00 | G159: - | H159: 982.5 | I159: 1050.00 | J159: Profit of Rs.132.50/- | K159: 132.50 | L159: 15.59% | M159: Successful | N159: 2015-02-04
A160: 8 | B160: 2014-10-01 | D160: Grindwell Norton | E160: Buy | F160: 475.00 | G160: - | H160: 515 | I160: 600.00 | J160: Profit of Rs.40/- | K160: 40.00 | L160: 8.42% | M160: Successful | N160: 2014-10-27
A161: 9 | B161: 2014-10-01 | D161: Snowman Logistics | E161: Buy | F161: 86.00 | G161: - | H161: 99 | I161: 140.00 | J161: Profit of Rs.13.00/- | K161: 13.00 | L161: 15.12% | M161: Successful | N161: 2014-10-27
A162: 10 | B162: 2014-10-14 | D162: Birla Corp | E162: Buy | F162: 496.60 | G162: - | H162: 621 | I162: 580.00 | J162: Target Achieved | K162: 124.40 | L162: 25.05% | M162: Successful | N162: 2016-08-23
A163: 11 | B163: 2014-10-14 | D163: Ultratech Cem | E163: Buy | F163: 2481.90 | G163: - | H163: 2840 | I163: 2870.00 | J163: Profit of Rs.358.10/- | K163: 358.10 | L163: 14.43% | M163: Successful | N163: 2015-01-13
A164: =1+A161 -> 10 | B164: 2014-10-16 | D164: Sintex Inds | E164: Buy | F164: 84.50 | G164: - | H164: 93 | I164: 110.00 | J164: Profit of Rs.8.50/- | K164: 8.50 | L164: 10.06% | M164: Successful | N164: 2014-10-27
A165: =1+A164 -> 11 | B165: 2014-10-16 | D165: HSIL | E165: Buy | F165: 401.00 | G165: - | H165: 428 | I165: 450.00 | J165: Profit of Rs.27.00/- | K165: 27.00 | L165: 6.73% | M165: Successful | N165: 2015-01-16
A166: 12 | B166: 2014-10-16 | D166: Eveready Inds | E166: Buy | F166: 101.00 | G166: - | H166: 112 | I166: 120.00 | J166: Profit of Rs.11.00/- | K166: 11.00 | L166: 10.89% | M166: Successful | N166: 2014-10-27
A167: 13 | B167: 2014-11-11 | D167: Pennar Inds | E167: Buy | F167: 59.00 | G167: - | H167: 76 | I167: 76.00 | J167: Target Achieved | K167: 17.00 | L167: 28.81% | M167: Successful | N167: 2017-10-24
A168: 14 | B168: 2014-11-11 | D168: Snowman Logistics | E168: Buy | F168: 99.00 | G168: - | H168: 120 | I168: 120.00 | J168: Profit of Rs.21/- | K168: 21.00 | L168: 21.21% | M168: Successful | N168: 2014-11-17
A169: 15 | B169: 2014-11-13 | D169: Dharamsi Morarji Chem | E169: Buy | F169: 22.00 | G169: - | H169: 33.55 | I169: 32.00 | J169: Profit of Rs 11.55/- | K169: 11.55 | L169: 52.50% | M169: Successful | N169: 2015-07-03
A170: 16 | B170: 2014-12-03 | D170: Tatachem | E170: Buy | F170: 440.00 | G170: - | H170: 520 | I170: 520.00 | J170: Profit of Rs 80.00/- | K170: 80.00 | L170: 18.18% | M170: Successful | N170: 2015-07-23
A171: 17 | B171: 2014-12-03 | D171: Advanta | E171: Buy | F171: 360.00 | G171: - | H171: 427 | I171: 425.00 | J171: Profit of Rs.67.00/- | K171: 67.00 | L171: 18.61% | M171: Successful | N171: 2015-02-23
A172: 18 | B172: 2015-01-08 | D172: GDL | E172: Buy | F172: 360.00 | G172: - | H172: 455 | I172: 420.00 | J172: Profit of Rs.95.00/- | K172: 95.00 | L172: 26.39% | M172: Successful | N172: 2015-01-20
A173: 19 | B173: 2015-01-08 | D173: NRB Bearing | E173: Buy | F173: 130.00 | H173: 175.5 | I173: 165.00 | J173: Profit of Rs 45.50/- | K173: 45.50 | L173: 35.00% | M173: Successful | N173: 2017-12-19
A174: 20 | B174: 2015-02-05 | D174: GSFC | E174: Accu | F174: 98.00 | H174: 120 | I174: 120.00 | J174: Target Achieved | K174: 22.00 | L174: 22.45% | M174: Successful | N174: 2017-01-18
A175: 21 | B175: 2015-02-05 | D175: Sundrmfast | E175: Accu | F175: 196.00 | H175: 262 | I175: 255.00 | J175: Target Achieved | K175: 66.00 | L175: 33.67% | M175: Successful | N175: 2016-08-17
A176: 22 | B176: 2015-03-04 | D176: GPPL | E176: Accu | F176: 230-240 | I176: 280-285 | J176: Open
A177: 23 | B177: 2015-03-04 | D177: ORIENTCEM | E177: Accu | F177: 185.00 | H177: 224 | I177: 220-225 | J177: Target Achieved | K177: 39.00 | L177: =K177/F177 -> 21.08% | M177: Successful | N177: 2016-10-04
A178: 24 | B178: 2015-03-27 | D178: PFS | E178: Accu | F178: 49-50 | I178: 67.00 | J178: Open
A179: 25 | B179: 2015-03-30 | D179: Walchandnagar Ind Ltd | E179: Accu | F179: 183.50 | H179: 219 | I179: 218.00 | J179: Profit of Rs.35.50/- | K179: 35.50 | L179: =K179/F179 -> 19.35% | M179: Successful | N179: 2015-04-09
A180: 26 | B180: 2015-04-20 | D180: Kalpataru Power Transmission Ltd | E180: Accu | F180: =(227+237)/2 -> 232.00 | H180: 298 | I180: 298.00 | J180: Target Achieved | K180: 66.00 | L180: 28.45% | M180: Successful | N180: 2017-03-29
A181: 27 | B181: 2015-05-04 | D181: Mastek Ltd | E181: Buy | F181: 385.00 | H181: =212.5+331 -> 543.5 | I181: 510.00 | J181: Profit of Rs 158.50/- | K181: 158.50 | L181: 41.17% | M181: Successful | N181: 2015-08-19
A182: 28 | B182: 2015-05-04 | D182: Suprajit Eng | E182: Buy | F182: 115.50 | H182: 146 | I182: 142.00 | J182: Profit of Rs 30.50/- | K182: 30.50 | L182: 26.41% | M182: Successful | N182: 2015-07-17
A183: 29 | B183: 2015-05-27 | D183: TCI | E183: Buy | F183: 237.50 | H183: 279.5 | I183: 278.00 | J183: Target Achieved | K183: 42.00 | L183: 17.68% | M183: Successful | N183: 2015-08-06
A184: 30 | B184: 2015-06-19 | D184: HSIL | E184: Accu | F184: 340.00 | H184: 448 | I184: 448.00 | J184: Target Achieved | K184: 108.00 | L184: 31.76% | M184: Successful | N184: 2017-10-10
A185: 31 | B185: 2015-07-06 | D185: Capital First | E185: Accu | F185: 390.00 | H185: 460 | I185: 460.00 | J185: Target Achieved | K185: 70.00 | L185: 17.95% | M185: Successful | N185: 2016-04-18
A186: 32 | B186: 2015-07-10 | D186: Dolphin OffShore | E186: Accu | F186: 118-127 | I186: 172.00 | J186: Open
A187: 33 | B187: 2015-08-03 | D187: Allcargo logistics | E187: Accu | F187: 297.50 | H187: 350 | I187: 360.00 | J187: Profit of Rs 52.50/- | K187: 52.50 | L187: =K187/F187 -> 17.65% | M187: Successful | N187: 2015-08-16
A188: 34 | B188: 2015-08-03 | D188: Camline Fine | E188: Accu | F188: 115.50 | H188: 149 | I188: 140.00 | J188: Profit of Rs 33.50/- | K188: 33.50 | L188: 29.00% | M188: Successful | N188: 2017-01-05
A189: 35 | B189: 2015-09-04 | D189: TCI | E189: Accu | F189: 226.00 | H189: 292 | I189: 292.00 | J189: Target Achieved | K189: 66.00 | L189: 29.20% | M189: Successful | N189: 2015-10-09
A190: 36 | B190: 2015-09-07 | D190: Kalpataru Power Transmission Ltd | E190: Accu | F190: 232.50 | H190: 312.5 | I190: 310.00 | J190: Target Achieved | K190: 80.00 | L190: 34.41% | M190: Successful | N190: 2017-03-29
A191: 37 | B191: 2015-09-21 | D191: LLOYD ELECTRIC & ENG LTD | E191: Accu | F191: 196.50 | H191: 238 | I191: 238.00 | J191: Target Achieved | K191: 41.50 | L191: 21.12% | M191: Successful | N191: 2015-10-14
A192: 38 | B192: 2015-09-24 | D192: L&T Finance Holding | E192: Accu | F192: 65.00 | H192: 82 | I192: 82.00 | J192: Target Achieved | K192: 17.00 | L192: 26.15% | M192: Successful | N192: 2016-07-27
A193: 39 | B193: 2015-10-14 | D193: KEC International ltd | E193: Accu | F193: 144.00 | H193: 182.5 | I193: 181.00 | J193: Target Achieved | K193: 38.50 | L193: 26.74% | M193: Successful | N193: 2017-03-23
A194: 40 | B194: 2015-10-14 | D194: Gruh Finance | E194: Accu | F194: 264.00 | H194: 311 | I194: 311.00 | J194: Target Achieved | K194: 47.00 | L194: 17.80% | M194: Successful | N194: 2016-08-22
A195: 41 | B195: 2015-11-10 | D195: Pidilitind | E195: Buy | F195: 549.50 | H195: 630 | I195: 630.00 | J195: Target Achieved | K195: 80.50 | L195: 14.65% | M195: Successful | N195: 2016-02-19
A196: 42 | B196: 2015-12-04 | D196: Zensar Technology | E196: Accu | F196: 1027.50 | H196: 1315 | I196: 1250.00 | J196: Target Achieved | K196: =H196-F196 -> 287.50 | L196: 27.98% | M196: Successful | N196: 2018-05-24
A197: 43 | B197: 2015-12-29 | D197: Vinati Organics Ltd | E197: Accu | F197: 465.00 | H197: 540 | I197: 540.00 | J197: Target Achieved | K197: 75.00 | L197: =K197/F197 -> 16.13% | M197: Successful | N197: 2016-06-09
A198: 44 | B198: 2016-01-11 | D198: GSFC | E198: Buy | F198: 81.00 | H198: 110 | I198: 110.00 | J198: Target Achieved | K198: 29.00 | L198: 35.80% | M198: Successful | N198: 2017-01-10
A199: 45 | B199: 2016-01-13 | D199: SSWL | E199: Buy | F199: 417.50 | H199: 547 | I199: 535.00 | J199: Target Achieved | K199: 129.50 | L199: 31.02% | M199: Successful | N199: 2016-07-27
A200: 46 | B200: 2016-02-08 | D200: Persistent System Ltd | E200: Accu | F200: 650.00 | H200: 800 | I200: 800.00 | J200: Target Achieved | K200: 150.00 | L200: 23.08% | M200: Successful | N200: 2018-02-23
A201: 47 | B201: 2016-03-04 | D201: UPL | E201: Accu | F201: 437.50 | H201: 504.5 | I201: 522.00 | J201: Profit of Rs.67/- | K201: 67.00 | L201: 15.31% | M201: Successful | N201: 2016-04-20
A202: 48 | B202: 2016-03-09 | D202: Ashoka Buildcon Ltd | E202: Accu | F202: 189.50 | H202: 218 | I202: 218.00 | J202: Target Achieved | K202: 28.50 | L202: 15.04% | M202: Successful | N202: 2017-10-26
A203: 49 | B203: 2016-04-11 | D203: PTC INDIA FIN SERV LTD | E203: Accu | F203: 36-37 | I203: 60.00 | J203: Open
A204: 50 | B204: 2016-04-12 | D204: CAMLINFINE $ | E204: Accu | F204: 93.00 | H204: 149 | I204: 140.00 | J204: Profit of Rs 56/- | K204: 56.00 | L204: =K204/F204 -> 60.22% | M204: Successful | N204: 2017-01-05
A205: 51 | B205: 2016-04-12 | D205: Greaves Cotton Ltd. | E205: Accu | F205: 130.00 | H205: 150 | I205: 150-155 | J205: Target Achieved | K205: 20.00 | L205: 15.38% | M205: Successful | N205: 2016-07-13
A206: 52 | B206: 2016-04-13 | D206: DHFL | E206: Accu | F206: 196.00 | H206: 299 | I206: 299.00 | J206: Target Achieved | K206: 103.00 | L206: 52.55% | M206: Successful | N206: 2016-09-07
A207: 53 | B207: 2016-04-13 | D207: Magma | E207: Accu | F207: 88.00 | H207: 103 | I207: 103.00 | J207: Target Achieved | K207: 15.00 | L207: 17.05% | M207: Successful | N207: 2016-06-09
A208: 54 | B208: 2016-05-02 | D208: KEC International ltd $ | E208: Accu | F208: 127.50 | H208: 148 | I208: 148-150 | J208: Target Achieved | K208: 20.50 | L208: 16.08% | M208: Successful | N208: 2016-07-13
A209: 55 | B209: 2016-05-03 | D209: Mindtree | E209: Accu | F209: 675.00 | H209: 815 | I209: 790-800 | J209: Target Achieved | K209: 140.00 | L209: 20.74% | M209: Successful | N209: 2018-02-23
A210: 56 | B210: 2016-06-01 | D210: Atulauto | E210: Accu | F210: 495-505 | I210: 565-570 | J210: Open
A211: 57 | B211: 2016-06-06 | D211: TRITURBINE | E211: Accu | F211: 110.00 | H211: 126.5 | I211: 125.00 | J211: Profit of Rs.16.50/- | K211: 16.50 | L211: =K211/F211 -> 15.00% | M211: Successful | N211: 2016-07-01
A212: 58 | B212: 2016-06-17 | D212: Pennar Industries Ltd | E212: Accu | F212: 44.00 | H212: 69.5 | I212: 69.50 | J212: Profit of Rs.25.50/- | K212: 25.50 | L212: =K212/F212 -> 57.95% | M212: Successful | N212: 2017-08-30
A213: 59 | B213: 2016-06-28 | D213: EVEREADY INDS. IND. LTD. | E213: Accu | F213: 262.50 | H213: 340 | I213: 333.00 | J213: Profit of Rs.77.50/- | K213: 77.50 | L213: =K213/F213 -> 29.52% | M213: Successful | N213: 2017-10-09
A214: 60 | B214: 2016-06-28 | D214: FIEM INDUSTRIES LIMITED | E214: Accu | F214: 840.00 | H214: 1230 | I214: 1230.00 | J214: Target Achieved | K214: 390.00 | L214: =K214/F214 -> 46.43% | M214: Successful | N214: 2016-10-06
A215: 61 | B215: 2016-07-05 | D215: Bajaj Corp Ltd | E215: Accu | F215: 395 | H215: 468.50 | I215: 510.00 | J215: Part profit of Rs.73.50/- | K215: 73.50 | L215: =K215/F215 -> 19% | M215: Successful | N215: 2017-08-30
A216: 62 | B216: 2016-08-02 | D216: GPPL $ | E216: Buy | F216: 167-172 | I216: 198-200 | J216: Open
A217: 63 | B217: 2016-08-04 | D217: WONDERLA HOLIDAYS LTD | E217: Accu | F217: 395-405 | I217: 475.00 | J217: Open
A218: 64 | B218: 2016-08-11 | D218: CAMLINFINE | E218: Accu | F218: 86.50 | H218: 130 | I218: 130.00 | J218: Profit of Rs.43.50/- | K218: =H218-F218 -> 43.50 | L218: =K218/F218 -> 50.29% | M218: Successful | N218: 2017-12-22
A219: 65 | B219: 2016-08-18 | D219: GRANULES | E219: Accu | F219: 133.5 | H219: 126.50 | I219: 178.00 | J219: Exit | K219: -7.00 | L219: -5.24% | M219: Unsuccessful | N219: 2016-09-02
A220: 66 | B220: 2016-08-31 | D220: VA TECH WABAG | E220: Accu | F220: 560.00 | H220: 725 | I220: 725.00 | J220: Target Achieved | K220: 165.00 | L220: 29.46% | M220: Successful | N220: 2016-03-27
A221: 67 | B221: 2016-09-01 | D221: SKIPPER LIMITED | E221: Accu | F221: 160.50 | H221: 210 | I221: 210.00 | J221: Target Achieved | K221: 49.50 | L221: 30.84% | M221: Successful | N221: 2017-05-16
A222: 68 | B222: 2016-10-03 | D222: IFB Industries | E222: Accu | F222: 430.00 | H222: 596 | I222: 575.00 | J222: Profit of Rs.166/- | K222: 166.00 | L222: 38.60% | M222: Successful | N222: 2017-02-03
A223: 69 | B223: 2016-10-14 | D223: ASIANTILES | E223: Accu | F223: 280.00 | H223: 345 | I223: 345.00 | J223: Target Achieved | K223: 65.00 | L223: 23.21% | M223: Successful | N223: 2017-03-20
A224: 70 | B224: 2016-10-14 | D224: DEEPIND | E224: Accu | F224: 245.00 | H224: 325.5 | I224: 330.00 | J224: Profit of Rs.80.5/- | K224: 80.50 | L224: 32.86% | M224: Successful | N224: 2017-02-03
A225: 71 | B225: 2016-10-17 | D225: DCBBANK | E225: Accu | F225: 125.00 | H225: 160 | I225: 160.00 | J225: Target Achieved | K225: 35.00 | L225: 28.00% | M225: Successful | N225: 2017-03-09
A226: 72 | B226: 2016-10-17 | D226: ORIENTREF | E226: Accu | F226: 114.00 | H226: 145 | I226: 145.00 | J226: Target Achieved | K226: 31.00 | L226: =K226/F226 -> 27.19% | M226: Successful | N226: 2017-05-04
A227: 73 | B227: 2016-10-17 | D227: GANECOS | E227: Accu | F227: 212.00 | H227: 280 | I227: 276.00 | J227: Profit of Rs.68/- | K227: 68.00 | L227: =K227/F227 -> 32.08% | M227: Successful | N227: 2017-05-03
A228: 74 | B228: 2016-11-04 | D228: NBCC | E228: Accu | F228: 155.00 | H228: 210 | I228: 210.00 | J228: Profit of Rs.55/- | K228: 55.00 | L228: =K228/F228 -> 35.48% | M228: Successful | N228: 2017-07-28
A229: 75 | B229: 2016-12-06 | D229: PRECAM | E229: Accu | F229: 148-153 | I229: 174.00 | J229: Open
A230: 76 | B230: 2016-12-08 | D230: INFRATEL | E230: Accu | F230: 380.00 | H230: 478 | I230: 468.00 | J230: Target Achieved | K230: 98.00 | L230: =K230/F230 -> 25.79% | M230: Successful | N230: 2017-10-17
A231: 77 | B231: 2016-12-30 | D231: GODREJPROP | E231: Accu | F231: 305.00 | H231: 375 | I231: 375.00 | J231: Target Achieved | K231: 70.00 | L231: 22.95% | M231: Successful | N231: 2017-02-02
A232: 78 | B232: 2017-01-04 | D232: DEEPAKNTR | E232: Accu | F232: 99.50 | H232: 158 | I232: 158.00 | J232: Target Achieved | K232: 58.50 | L232: 58.79% | M232: Successful | N232: 2017-06-12
A233: 79 | B233: 2017-02-20 | D233: SUBROS | E233: Accu | F233: 202.50 | H233: 234 | I233: 234.00 | J233: Target Achieved | K233: 31.50 | L233: 15.56% | M233: Successful | N233: 2017-04-11
A234: 80 | B234: 2017-02-20 | D234: RECLTD | E234: Accu | F234: 140.50 | H234: 220 | I234: 220.00 | J234: Target Achieved | K234: 79.50 | L234: 56.58% | M234: Successful | N234: 2017-05-09
A235: 81 | B235: 2017-03-24 | D235: VRLLOG | E235: Accu | F235: 300.50 | H235: 417.5 | I235: 420.00 | J235: Profit of Rs.117/- | K235: 117.00 | L235: 38.94% | M235: Successful | N235: 2017-12-01
A236: 82 | B236: 2017-03-24 | D236: FIEMIND | E236: Accu | F236: 850.00 | H236: 1042.5 | I236: 1023.00 | J236: Profit of Rs 192.50/- | K236: 192.50 | L236: 22.65% | M236: Successful | N236: 2017-04-05
A237: 83 | B237: 2017-04-05 | D237: RATNAMANI | E237: Accu | F237: 785.00 | H237: 930 | I237: 920.00 | J237: Profit of Rs.145/- | K237: 145.00 | L237: 18.47% | M237: Successful | N237: 2017-08-29
A238: 84 | B238: 2017-04-06 | D238: ZEEMEDIA | E238: Accu | F238: 39-41 | I238: 60.00 | J238: Open
A239: 85 | B239: 2017-04-12 | D239: DABUR | E239: Accu | F239: 289.50 | H239: 354 | I239: 360.00 | J239: Profit of Rs.64.5/- | K239: 64.50 | L239: =K239/F239 -> 22.28% | M239: Successful | N239: 2017-11-01
A240: 86 | B240: 2017-04-20 | D240: KPRMILL | E240: Accu | F240: 700.00 | H240: 840 | I240: 840.00 | J240: Profit of Rs.140/- | K240: 140.00 | L240: =K240/F240 -> 20.00% | M240: Successful | N240: 2017-06-07
A241: 87 | B241: 2017-05-22 | D241: GREAVESCOT | E241: Accu | F241: 153-158 | I241: 190.00 | J241: Open
A242: 88 | B242: 2017-06-01 | D242: ESSELPACK | E242: Accu | F242: 260 | H242: 311.00 | I242: 340.00 | J242: Part profit of Rs.51/- | K242: =H242-F242 -> 51.00 | L242: =K242/F242 -> 20% | M242: Successful | N242: 2017-11-17
A243: 89 | B243: 2017-06-15 | D243: KEI | E243: Accu | F243: 214.50 | H243: 262 | I243: 262.00 | J243: Profit of Rs.47.5/- | K243: =H243-F243 -> 47.50 | L243: 22.14% | M243: Successful | N243: 2017-08-30
A244: 90 | B244: 2017-07-17 | D244: MAYURUNIQ | E244: Accu | F244: 370.00 | H244: 447.5 | I244: 450.00 | J244: Target Achieved | K244: 77.50 | L244: 20.95% | M244: Successful | N244: 2017-10-27
A245: 91 | B245: 2017-07-27 | D245: RAMCOCEM | E245: Accu | F245: 657.50 | H245: 825 | I245: 820.00 | J245: Target Achieved | K245: 167.50 | L245: 25.48% | M245: Successful | N245: 2017-12-21
A246: 92 | B246: 2017-08-17 | D246: FINPIPE | E246: Accu | F246: 605.00 | H246: 750 | I246: 750.00 | J246: Profit of Rs.145/- | K246: 145.00 | L246: 23.97% | M246: Successful | N246: 2017-10-19
A247: 93 | B247: 2017-09-01 | D247: SHK | E247: Accu | F247: 255 | H247: 307.50 | I247: 320.00 | J247: Part profit of Rs.52.5/- | K247: 52.50 | L247: 21% | M247: Successful | N247: 2017-12-29
A248: 94 | B248: 2017-09-19 | D248: SKIPPER | E248: Accu | F248: 215.00 | H248: 258 | I248: 258.00 | J248: Target Achieved | K248: 43.00 | L248: 20.00% | M248: Successful | N248: 2017-11-01
A249: 95 | B249: 2017-09-20 | D249: CAMLINFINE | E249: Accu | F249: 75.00 | H249: 90 | I249: 90.00 | J249: Profit of Rs.15.00/- | K249: 15.00 | L249: 20.00% | M249: Successful | N249: 2017-10-11
A250: 96 | B250: 2017-10-03 | D250: GNA | E250: Accu | F250: 315.00 | H250: 392 | I250: 384.00 | J250: Profit of Rs.77/- | K250: 77.00 | L250: 24.44% | M250: Successful | N250: 2017-10-09
A251: 97 | B251: 2017-10-05 | D251: NOCIL | E251: Accu | F251: 145.00 | H251: 179 | I251: 180.00 | J251: Profit of Rs.34/- | K251: 34.00 | L251: 23.45% | M251: Successful | N251: 2017-10-17
A252: 98 | B252: 2017-10-06 | D252: CENTURYPLY | E252: Accu | F252: 256.00 | H252: 323 | I252: 320.00 | J252: Target Achieved | K252: 67.00 | L252: 26.17% | M252: Successful | N252: 2017-11-28
A253: 99 | B253: 2017-10-09 | D253: RECLTD | E253: Accu | F253: 152.5 | H253: 183.50 | I253: 210.00 | J253: Part Profit of Rs.31/- | K253: 31.00 | L253: 20% | M253: Successful | N253: 2017-11-03
A254: 100 | B254: 2017-10-09 | D254: EIHOTEL | E254: Accu | F254: 137.50 | H254: 184 | I254: 183.00 | J254: Profit of Rs.46.5/- | K254: 46.50 | L254: 33.82% | M254: Successful | N254: 2018-01-08
A255: 101 | B255: 2017-10-10 | D255: BOROSIL | E255: Accu | F255: 895.00 | H255: 1122.5 | I255: 1078.00 | J255: Profit of Rs.227.5/- | K255: 227.50 | L255: 25.42% | M255: Successful | N255: 2018-01-17
A256: 102 | B256: 2017-10-10 | D256: NRBBEARING | E256: Accu | F256: 125.50 | H256: 158 | I256: 155.00 | J256: Profit of Rs.32.5/- | K256: 32.50 | L256: 25.90% | M256: Successful | N256: 2017-11-28
A257: 103 | B257: 2017-10-12 | D257: CYIENT | E257: Accu | F257: 525.00 | H257: 629 | I257: 629.00 | J257: Target Achieved | K257: 104.00 | L257: 19.81% | M257: Successful | N257: 2018-01-19
A258: 104 | B258: 2017-11-07 | D258: HATSUN | E258: Accu | F258: 740.00 | H258: 892.5 | I258: 900.00 | J258: Profit of Rs.152.5/- | K258: 152.50 | L258: 20.61% | M258: Successful | N258: 2017-11-13
A259: 105 | B259: 2017-12-04 | D259: SANGHIIND | E259: Accu | F259: 118.50 | H259: 143.5 | I259: 145.00 | J259: Profit of Rs.25/- | K259: 25.00 | L259: 21.10% | M259: Successful | N259: 2017-12-28
A260: 106 | B260: 2017-12-05 | D260: ALLCARGO | E260: Accu | F260: 177.5 | H260: 215.00 | I260: 230.00 | J260: Part Profit of Rs.37.5/- | K260: 37.50 | L260: 21% | M260: Successful | N260: 2017-12-27
A261: 107 | B261: 2017-12-21 | D261: KAJARIACER | E261: Accu | F261: 710-720 | I261: 872.00 | J261: Open
A262: 108 | B262: 2017-12-29 | D262: GNA | E262: Accu | F262: 435.00 | H262: 542.5 | I262: 539.00 | J262: Target Achieved | K262: =H262-F262 -> 107.50 | L262: =K262/F262 -> 24.71% | M262: Successful | N262: 2018-04-16
A263: 109 | B263: 2017-12-29 | D263: ZENSARTECH | E263: Accu | F263: 885.00 | H263: 1090 | I263: 1084.00 | J263: Target Achieved | K263: 205.00 | L263: =K263/F263 -> 23.16% | M263: Successful | N263: 2018-04-23
A264: 110 | B264: 2018-02-07 | D264: GREAVESCOT | E264: Accu | F264: 130-132 | I264: 190.00 | J264: Open
A265: 111 | B265: 2018-02-27 | D265: MOLDTKPAC | E265: Accu | F265: 320-330 | I265: 398.00 | J265: Open
A266: 112 | B266: 2018-03-05 | D266: LICHSGFIN | E266: Accu | F266: 505-515 | I266: 672.00 | J266: Open
A267: 113 | B267: 2018-04-02 | D267: EVERESTIND | E267: Accu | F267: 485-500 | I267: 613.00 | J267: Open
A268: 114 | B268: 2018-04-04 | D268: GPPL | E268: Accu | F268: 140-143 | I268: 180.00 | J268: Open
A269: 115 | B269: 2018-04-19 | D269: MANPASAND | E269: Accu | F269: 430 | H269: 220.00 | I269: 537.00 | J269: Loss of Rs.210/- | K269: =H269-F269 -> -210.00 | L269: =K269/F269 -> -48.84% | M269: Unsuccessful | N269: 2018-06-01
A270: 116 | B270: 2018-04-30 | D270: HEIDELBERG | E270: Accu | F270: 154-158 | I270: 196.00 | J270: Open
A271: 117 | B271: 2018-05-17 | D271: PHILIPCARB | E271: Accu | F271: 230-240 | I271: 348.00 | J271: Open
A272: 118 | B272: 2018-06-07 | D272: KEC | E272: Accu | F272: 340-345 | I272: 439.00 | J272: Open
A273: 119 | B273: 2018-07-04 | D273: ASHOKLEY | E273: Accu | F273: 125-130 | I273: 170.00 | J273: Open
A274: 120 | B274: 2018-07-13 | D274: FCONSUMER | E274: Accu | F274: 46-47 | I274: 59.00 | J274: Open
A275: 121 | B275: 2018-07-25 | D275: ZEEMEDIA | E275: Accu | F275: 27-28 | I275: 44.00 | J275: Open
A276: 122 | B276: 2018-08-06 | D276: GABRIEL | E276: Accu | F276: 148-152 | I276: 182.00 | J276: Open
F279: Reinitiated $
A281: Disclaimer:
A282: This document has been prepared by the Retail Research Desk of Asit C Mehta
A283: Investment Intermediates Ltd. and is meant for use of the recipient only
A284: and is not for circulation. This document is not to be reported or
... 6 more rows

Sheet Sheet2 (hidden)
A1: SYMBOL | B1: SERIES | C1: OPEN | D1: HIGH | E1: LOW | F1: CLOSE | G1: LAST | H1: PREVCLOSE | I1: TOTTRDQTY | J1: TOTTRDVAL | K1: TIMESTAMP | L1: TOTALTRADES | M1: ISIN | N1: ISIN
A2: 20MICRONS | B2: EQ | C2: 50.3 | D2: 50.5 | E2: 46.3 | F2: 47.3 | G2: 47.25 | H2: 49.3 | I2: 376068 | J2: 18253539.75 | K2: 2018-08-09 | L2: 3064 | M2: INE144J01027
A3: 21STCENMGM | B3: EQ | C3: 40 | D3: 40.95 | E3: 39.4 | F3: 39.4 | G3: 39.4 | H3: 40.2 | I3: 5102 | J3: 201574.9 | K3: 2018-08-09 | L3: 66 | M3: INE253B01015
A4: 3IINFOTECH | B4: EQ | C4: 3.7 | D4: 3.7 | E4: 3.6 | F4: 3.7 | G4: 3.7 | H4: 3.65 | I4: 2114402 | J4: 7732371.1 | K4: 2018-08-09 | L4: 673 | M4: INE748C01020
A5: 3MINDIA | B5: EQ | C5: 23880 | D5: 24520 | E5: 23723.15 | F5: 24147.8 | G5: 23999.95 | H5: 23898.35 | I5: 8561 | J5: 206743326.2 | K5: 2018-08-09 | L5: 1020 | M5: INE470A01017
A6: 3PLAND | B6: BE | C6: 12.8 | D6: 14.05 | E6: 12.8 | F6: 14.05 | G6: 14.05 | H6: 13.4 | I6: 924 | J6: 12098.45 | K6: 2018-08-09 | L6: 6 | M6: INE105C01023
A7: 5PAISA | B7: EQ | C7: 415 | D7: 415 | E7: 354.15 | F7: 377.65 | G7: 378 | H7: 393.45 | I7: 6388 | J7: 2473160.3 | K7: 2018-08-09 | L7: 333 | M7: INE618L01018
A8: 63MOONS | B8: EQ | C8: 74.7 | D8: 76.9 | E8: 73.6 | F8: 74.65 | G8: 74.35 | H8: 74 | I8: 234268 | J8: 17662482.1 | K8: 2018-08-09 | L8: 3020 | M8: INE111B01023
A9: 8KMILES | B9: EQ | C9: 392.5 | D9: 392.5 | E9: 365.55 | F9: 372.5 | G9: 372.5 | H9: 374.05 | I9: 482264 | J9: 184134484.3 | K9: 2018-08-09 | L9: 12852 | M9: INE650K01021
A10: A2ZINFRA | B10: EQ | C10: 22.65 | D10: 23.4 | E10: 22.65 | F10: 23.05 | G10: 23.2 | H10: 22.65 | I10: 309914 | J10: 7138222.15 | K10: 2018-08-09 | L10: 1096 | M10: INE619I01012
A11: AARTIDRUGS | B11: EQ | C11: 554.8 | D11: 563 | E11: 551.1 | F11: 555.2 | G11: 556 | H11: 553.6 | I11: 41632 | J11: 23218769.5 | K11: 2018-08-09 | L11: 810 | M11: INE767A01016
A12: AARTIIND | B12: EQ | C12: 1395 | D12: 1445 | E12: 1395 | F12: 1437.55 | G12: 1433 | H12: 1397.85 | I12: 93893 | J12: 134391463.6 | K12: 2018-08-09 | L12: 5346 | M12: INE769A01020
A13: AARVEEDEN | B13: EQ | C13: 34.4 | D13: 34.85 | E13: 33.75 | F13: 34.35 | G13: 34.5 | H13: 34.6 | I13: 2127 | J13: 72943.2 | K13: 2018-08-09 | L13: 69 | M13: INE273D01019
A14: ABAN | B14: EQ | C14: 117.5 | D14: 119.85 | E14: 116.3 | F14: 117.15 | G14: 117.05 | H14: 117.55 | I14: 892775 | J14: 105220156.5 | K14: 2018-08-09 | L14: 9371 | M14: INE421A01028
A15: ABB | B15: EQ | C15: 1221.9 | D15: 1221.9 | E15: 1192 | F15: 1200.3 | G15: 1204.8 | H15: 1212.7 | I15: 26813 | J15: 32372595.85 | K15: 2018-08-09 | L15: 1897 | M15: INE117A01022
A16: ABBOTINDIA | B16: EQ | C16: 8000 | D16: 8088 | E16: 7825.1 | F16: 7919.3 | G16: 7841.05 | H16: 8042.35 | I16: 8591 | J16: 68666485.85 | K16: 2018-08-09 | L16: 1524 | M16: INE358A01014
A17: ABCAPITAL | B17: EQ | C17: 149.35 | D17: 152.4 | E17: 149.05 | F17: 150.1 | G17: 149.9 | H17: 149.3 | I17: 1779312 | J17: 268148671.3 | K17: 2018-08-09 | L17: 14888 | M17: INE674K01013
A18: ABFRL | B18: EQ | C18: 179.2 | D18: 184 | E18: 175.1 | F18: 181.9 | G18: 183.25 | H18: 179.15 | I18: 1670435 | J18: 300143000.1 | K18: 2018-08-09 | L18: 13785 | M18: INE647O01011
A19: ABMINTLTD | B19: BE | C19: 20.55 | D19: 20.6 | E19: 19.6 | F19: 19.6 | G19: 19.6 | H19: 20.6 | I19: 160 | J19: 3233.5 | K19: 2018-08-09 | L19: 4 | M19: INE251C01017
A20: ACC | B20: EQ | C20: 1538.1 | D20: 1577 | E20: 1538.1 | F20: 1570.75 | G20: 1575.3 | H20: 1536.3 | I20: 691430 | J20: 1082512850 | K20: 2018-08-09 | L20: 20794 | M20: INE012A01025
A21: ACCELYA | B21: EQ | C21: 1074 | D21: 1084.45 | E21: 1064 | F21: 1072.65 | G21: 1064 | H21: 1071.85 | I21: 2825 | J21: 3042773.7 | K21: 2018-08-09 | L21: 445 | M21: INE793A01012
A22: ACE | B22: EQ | C22: 153.65 | D22: 154.7 | E22: 149 | F22: 150.9 | G22: 151.3 | H22: 153.65 | I22: 197026 | J22: 29803218.8 | K22: 2018-08-09 | L22: 2040 | M22: INE731H01025
A23: ADANIENT | B23: EQ | C23: 204 | D23: 206.9 | E23: 198.2 | F23: 200.35 | G23: 199.95 | H23: 199.65 | I23: 15237502 | J23: 3085065670 | K23: 2018-08-09 | L23: 82743 | M23: INE423A01024
A24: ADANIGREEN | B24: EQ | C24: 62.9 | D24: 62.9 | E24: 62.9 | F24: 62.9 | G24: 62.9 | H24: 66.2 | I24: 130477 | J24: 8207003.3 | K24: 2018-08-09 | L24: 594 | M24: INE364U01010
A25: ADANIPORTS | B25: EQ | C25: 376 | D25: 381 | E25: 371.55 | F25: 378 | G25: 377.3 | H25: 374.6 | I25: 1992284 | J25: 753086507.5 | K25: 2018-08-09 | L25: 33089 | M25: INE742F01042
A26: ADANIPOWER | B26: EQ | C26: 32.8 | D26: 33.5 | E26: 31.85 | F26: 32.4 | G26: 32.15 | H26: 31.25 | I26: 49741068 | J26: 1625392113 | K26: 2018-08-09 | L26: 52015 | M26: INE814H01011
A27: ADANITRANS | B27: EQ | C27: 170.2 | D27: 175.05 | E27: 167.3 | F27: 168.45 | G27: 168 | H27: 172.1 | I27: 482376 | J27: 82442783.25 | K27: 2018-08-09 | L27: 6199 | M27: INE931S01010
A28: ADFFOODS | B28: EQ | C28: 246.6 | D28: 248 | E28: 244.15 | F28: 245.4 | G28: 245.25 | H28: 245.05 | I28: 30720 | J28: 7550744.55 | K28: 2018-08-09 | L28: 1153 | M28: INE982B01019
A29: ADHUNIK | B29: BE | C29: 4.05 | D29: 4.05 | E29: 3.75 | F29: 3.75 | G29: 3.75 | H29: 3.9 | I29: 131524 | J29: 504586.85 | K29: 2018-08-09 | L29: 84 | M29: INE400H01019
A30: ADHUNIKIND | B30: EQ | C30: 71.95 | D30: 74.6 | E30: 69.8 | F30: 72.05 | G30: 72.5 | H30: 71.2 | I30: 111005 | J30: 7911344.55 | K30: 2018-08-09 | L30: 301 | M30: INE452L01012
A31: ADLABS | B31: EQ | C31: 33 | D31: 34 | E31: 32.45 | F31: 33.05 | G31: 33 | H31: 32.9 | I31: 71885 | J31: 2394398.05 | K31: 2018-08-09 | L31: 920 | M31: INE172N01012
A32: ADORWELD | B32: EQ | C32: 351.8 | D32: 361.85 | E32: 345.35 | F32: 351.15 | G32: 353 | H32: 348.25 | I32: 35215 | J32: 12489139.45 | K32: 2018-08-09 | L32: 1496 | M32: INE045A01017
A33: ADROITINFO | B33: BE | C33: 28 | D33: 28 | E33: 27.8 | F33: 27.8 | G33: 27.8 | H33: 28.7 | I33: 129 | J33: 3606 | K33: 2018-08-09 | L33: 2 | M33: INE737B01033
A34: ADSL | B34: EQ | C34: 15.15 | D34: 15.5 | E34: 15.1 | F34: 15.1 | G34: 15.1 | H34: 15.2 | I34: 9847 | J34: 150136.2 | K34: 2018-08-09 | L34: 50 | M34: INE102I01027
A35: ADVANIHOTR | B35: EQ | C35: 50.75 | D35: 54.65 | E35: 49.35 | F35: 51.75 | G35: 50.5 | H35: 50.05 | I35: 60204 | J35: 3103439.85 | K35: 2018-08-09 | L35: 469 | M35: INE199C01026
A36: ADVENZYMES | B36: EQ | C36: 218 | D36: 219.6 | E36: 216 | F36: 217.7 | G36: 218.95 | H36: 216.4 | I36: 67670 | J36: 14717332.65 | K36: 2018-08-09 | L36: 1506 | M36: INE837H01020
A37: AEGISCHEM | B37: EQ | C37: 248.8 | D37: 249.9 | E37: 225.75 | F37: 232.3 | G37: 234 | H37: 247.65 | I37: 285808 | J37: 68863572.6 | K37: 2018-08-09 | L37: 6766 | M37: INE208C01025
A38: AFL | B38: EQ | C38: 68 | D38: 68 | E38: 61 | F38: 63.15 | G38: 62.8 | H38: 65.3 | I38: 95805 | J38: 6143536.35 | K38: 2018-08-09 | L38: 1121 | M38: INE020G01017
A39: AGARIND | B39: EQ | C39: 351.9 | D39: 355 | E39: 342.1 | F39: 349.15 | G39: 353.7 | H39: 346.25 | I39: 2914 | J39: 1019832 | K39: 2018-08-09 | L39: 154 | M39: INE204E01012
A40: AGCNET | B40: EQ | C40: 110 | D40: 112 | E40: 107.2 | F40: 107.9 | G40: 107.2 | H40: 108.45 | I40: 11749 | J40: 1275177.95 | K40: 2018-08-09 | L40: 98 | M40: INE676A01019
A41: AGLSL | B41: EQ | C41: 84 | D41: 84 | E41: 82.25 | F41: 82.25 | G41: 82.25 | H41: 82.5 | I41: 2439 | J41: 201215.2 | K41: 2018-08-09 | L41: 47 | M41: INE517U01013
A42: AGRITECH | B42: EQ | C42: 80.6 | D42: 80.6 | E42: 78 | F42: 78.3 | G42: 78.5 | H42: 80.6 | I42: 20608 | J42: 1623928.85 | K42: 2018-08-09 | L42: 474 | M42: INE449G01018
A43: AHLEAST | B43: EQ | C43: 262.95 | D43: 274 | E43: 257.1 | F43: 265.25 | G43: 265 | H43: 266.95 | I43: 1825 | J43: 481758.6 | K43: 2018-08-09 | L43: 133 | M43: INE926K01017
A44: AHLUCONT | B44: EQ | C44: 324 | D44: 328.75 | E44: 320 | F44: 322.25 | G44: 320.1 | H44: 322.95 | I44: 2879 | J44: 931431.95 | K44: 2018-08-09 | L44: 132 | M44: INE758C01029
A45: AHLWEST | B45: EQ | C45: 290 | D45: 290 | E45: 280 | F45: 283.15 | G45: 287.95 | H45: 297.2 | I45: 1026 | J45: 288998.9 | K45: 2018-08-09 | L45: 65 | M45: INE915K01010
A46: AIAENG | B46: EQ | C46: 1800 | D46: 1800 | E46: 1735 | F46: 1758.55 | G46: 1762 | H46: 1788 | I46: 12930 | J46: 22844009.35 | K46: 2018-08-09 | L46: 1984 | M46: INE212H01026
A47: AICHAMP | B47: BE | C47: 23.9 | D47: 23.95 | E47: 22.8 | F47: 22.85 | G47: 22.85 | H47: 24 | I47: 1924 | J47: 44392.2 | K47: 2018-08-09 | L47: 9 | M47: INE768E01024
A48: AIFL | B48: EQ | C48: 465.8 | D48: 465.8 | E48: 449 | F48: 452.15 | G48: 450 | H48: 463.15 | I48: 88969 | J48: 40724032.2 | K48: 2018-08-09 | L48: 1374 | M48: INE428O01016
A49: AJANTPHARM | B49: EQ | C49: 1196 | D49: 1203 | E49: 1148 | F49: 1155.3 | G49: 1155.25 | H49: 1187.75 | I49: 655412 | J49: 770783193.6 | K49: 2018-08-09 | L49: 20811 | M49: INE031B01049
A50: AJMERA | B50: EQ | C50: 206.6 | D50: 207.8 | E50: 203.6 | F50: 204.75 | G50: 204.3 | H50: 205.05 | I50: 42228 | J50: 8699046.55 | K50: 2018-08-09 | L50: 880 | M50: INE298G01027
A51: AKSHARCHEM | B51: EQ | C51: 550 | D51: 550 | E51: 513.95 | F51: 520.15 | G51: 518.55 | H51: 558.6 | I51: 13062 | J51: 6871717.65 | K51: 2018-08-09 | L51: 818 | M51: INE542B01011
A52: AKSHOPTFBR | B52: EQ | C52: 32.4 | D52: 34.2 | E52: 31.6 | F52: 32.35 | G52: 32.5 | H52: 32.25 | I52: 3656352 | J52: 120032687 | K52: 2018-08-09 | L52: 8502 | M52: INE523B01011
A53: AKZOINDIA | B53: EQ | C53: 1800 | D53: 1800 | E53: 1750.1 | F53: 1757.1 | G53: 1760 | H53: 1771.9 | I53: 7453 | J53: 13189761.15 | K53: 2018-08-09 | L53: 1107 | M53: INE133A01011
A54: ALANKIT | B54: EQ | C54: 28.55 | D54: 29.5 | E54: 27.8 | F54: 28.8 | G54: 28.85 | H54: 28.25 | I54: 836344 | J54: 24121587.6 | K54: 2018-08-09 | L54: 4484 | M54: INE914E01040
A55: ALBERTDAVD | B55: EQ | C55: 406.05 | D55: 420 | E55: 406.05 | F55: 418.1 | G55: 419 | H55: 414.85 | I55: 1187 | J55: 495785.45 | K55: 2018-08-09 | L55: 32 | M55: INE155C01010
A56: ALBK | B56: EQ | C56: 44.3 | D56: 46.25 | E56: 44.2 | F56: 45.8 | G56: 45.8 | H56: 44 | I56: 6487035 | J56: 294879297.9 | K56: 2018-08-09 | L56: 11565 | M56: INE428A01015
A57: ALCHEM | B57: BE | C57: 5.9 | D57: 6.1 | E57: 5.6 | F57: 5.75 | G57: 5.85 | H57: 5.85 | I57: 29581 | J57: 174813.55 | K57: 2018-08-09 | L57: 74 | M57: INE964B01033
A58: ALEMBICLTD | B58: EQ | C58: 44.65 | D58: 45.5 | E58: 44.05 | F58: 44.3 | G58: 44.45 | H58: 44.65 | I58: 287267 | J58: 12812292.45 | K58: 2018-08-09 | L58: 1725 | M58: INE426A01027
A59: ALICON | B59: EQ | C59: 623.75 | D59: 623.75 | E59: 586.25 | F59: 598.85 | G59: 610 | H59: 612.85 | I59: 4644 | J59: 2799037.5 | K59: 2018-08-09 | L59: 219 | M59: INE062D01024
A60: ALKALI | B60: EQ | C60: 73.9 | D60: 73.9 | E60: 66.1 | F60: 67.6 | G60: 66.1 | H60: 70.15 | I60: 9463 | J60: 657007.15 | K60: 2018-08-09 | L60: 333 | M60: INE773I01017
A61: ALKEM | B61: EQ | C61: 2135 | D61: 2175 | E61: 2088 | F61: 2110 | G61: 2105.4 | H61: 2134.6 | I61: 9468 | J61: 20195816.85 | K61: 2018-08-09 | L61: 2192 | M61: INE540L01014
A62: ALKYLAMINE | B62: EQ | C62: 660.55 | D62: 669 | E62: 648 | F62: 655.45 | G62: 660 | H62: 660.55 | I62: 7864 | J62: 5158207.75 | K62: 2018-08-09 | L62: 292 | M62: INE150B01021
A63: ALLCARGO | B63: EQ | C63: 123.1 | D63: 123.75 | E63: 121.05 | F63: 121.4 | G63: 121.5 | H63: 122.25 | I63: 98244 | J63: 11999967.7 | K63: 2018-08-09 | L63: 1325 | M63: INE418H01029
A64: ALLSEC | B64: EQ | C64: 283.95 | D64: 283.95 | E64: 262.1 | F64: 265 | G64: 262.9 | H64: 275.9 | I64: 13395 | J64: 3594563.25 | K64: 2018-08-09 | L64: 361 | M64: INE835G01018
A65: ALMONDZ | B65: EQ | C65: 36.8 | D65: 37 | E65: 34.5 | F65: 36.5 | G65: 36.8 | H65: 34.3 | I65: 58631 | J65: 2087130.15 | K65: 2018-08-09 | L65: 134 | M65: INE326B01027
A66: ALOKTEXT | B66: BE | C66: 4.8 | D66: 4.8 | E66: 4.45 | F66: 4.45 | G66: 4.45 | H66: 4.65 | I66: 3378767 | J66: 15222811.35 | K66: 2018-08-09 | L66: 2159 | M66: INE270A01011
A67: ALPA | B67: EQ | C67: 26.95 | D67: 27.45 | E67: 26.2 | F67: 27.25 | G67: 27.05 | H67: 26.4 | I67: 15188 | J67: 407677.4 | K67: 2018-08-09 | L67: 74 | M67: INE385I01010
A68: ALPHAGEO | B68: EQ | C68: 656.15 | D68: 672 | E68: 653.65 | F68: 668.2 | G68: 668 | H68: 656.15 | I68: 7425 | J68: 4937044.65 | K68: 2018-08-09 | L68: 696 | M68: INE137C01018
A69: ALPSINDUS | B69: BE | C69: 3.45 | D69: 3.45 | E69: 3.3 | F69: 3.45 | G69: 3.45 | H69: 3.3 | I69: 19184 | J69: 65867 | K69: 2018-08-09 | L69: 38 | M69: INE093B01015
A70: AMARAJABAT | B70: EQ | C70: 820 | D70: 825.05 | E70: 813.95 | F70: 822.1 | G70: 822 | H70: 820.8 | I70: 213252 | J70: 175018307.3 | K70: 2018-08-09 | L70: 8444 | M70: INE885A01032
A71: AMBER | B71: EQ | C71: 943.25 | D71: 950 | E71: 915 | F71: 918.5 | G71: 917 | H71: 943.25 | I71: 12982 | J71: 12030636.45 | K71: 2018-08-09 | L71: 1049 | M71: INE371P01015
A72: AMBIKCO | B72: EQ | C72: 1299 | D72: 1300 | E72: 1243 | F72: 1247.4 | G72: 1250 | H72: 1294.55 | I72: 16890 | J72: 21230469.95 | K72: 2018-08-09 | L72: 847 | M72: INE540G01014
A73: AMBUJACEM | B73: EQ | C73: 231.9 | D73: 233.15 | E73: 229.9 | F73: 232.4 | G73: 232.5 | H73: 230.95 | I73: 1211459 | J73: 281325911.9 | K73: 2018-08-09 | L73: 11159 | M73: INE079A01024
A74: AMDIND | B74: EQ | C74: 24.4 | D74: 24.4 | E74: 23.6 | F74: 24 | G74: 24 | H74: 23.85 | I74: 4278 | J74: 102516.85 | K74: 2018-08-09 | L74: 30 | M74: INE005I01014
A75: AMJLAND | B75: EQ | C75: 26.95 | D75: 26.95 | E75: 25.6 | F75: 25.9 | G75: 25.8 | H75: 26.95 | I75: 32932 | J75: 864293.75 | K75: 2018-08-09 | L75: 212 | M75: INE606A01024
A76: AMRUTANJAN | B76: EQ | C76: 254.6 | D76: 258 | E76: 252 | F76: 254.65 | G76: 255.9 | H76: 252.25 | I76: 12746 | J76: 3256881.85 | K76: 2018-08-09 | L76: 514 | M76: INE098F01031
A77: ANANTRAJ | B77: EQ | C77: 42.4 | D77: 43.1 | E77: 41.5 | F77: 42.4 | G77: 42.35 | H77: 41.95 | I77: 466520 | J77: 19842422.65 | K77: 2018-08-09 | L77: 2729 | M77: INE242C01024
A78: ANDHRABANK | B78: EQ | C78: 33.85 | D78: 35.1 | E78: 33.75 | F78: 34.55 | G78: 34.5 | H78: 33.6 | I78: 4329960 | J78: 149614965.8 | K78: 2018-08-09 | L78: 7765 | M78: INE434A01013
A79: ANDHRACEMT | B79: EQ | C79: 8.95 | D79: 9.05 | E79: 8.9 | F79: 8.95 | G79: 9 | H79: 8.95 | I79: 51797 | J79: 465128.6 | K79: 2018-08-09 | L79: 141 | M79: INE666E01012
A80: ANDHRSUGAR | B80: EQ | C80: 397.5 | D80: 398.5 | E80: 383.25 | F80: 388.4 | G80: 386.2 | H80: 393.55 | I80: 43980 | J80: 17132979.8 | K80: 2018-08-09 | L80: 1134 | M80: INE715B01013
A81: ANGIND | B81: BE | C81: 2.8 | D81: 3 | E81: 2.8 | F81: 2.8 | G81: 2.8 | H81: 2.9 | I81: 15646 | J81: 44800.65 | K81: 2018-08-09 | L81: 26 | M81: INE017D01010
A82: ANIKINDS | B82: EQ | C82: 35.6 | D82: 36.45 | E82: 34.05 | F82: 34.1 | G82: 34.1 | H82: 35.65 | I82: 7724 | J82: 266403.7 | K82: 2018-08-09 | L82: 95 | M82: INE087B01017
A83: ANKITMETAL | B83: BE | C83: 0.6 | D83: 0.6 | E83: 0.5 | F83: 0.6 | G83: 0.55 | H83: 0.55 | I83: 24781 | J83: 14466.1 | K83: 2018-08-09 | L83: 44 | M83: INE106I01010
A84: ANSALAPI | B84: EQ | C84: 15.6 | D84: 16.3 | E84: 15.6 | F84: 16.1 | G84: 16.1 | H84: 15.55 | I84: 114874 | J84: 1846815.55 | K84: 2018-08-09 | L84: 261 | M84: INE436A01026
A85: ANSALHSG | B85: EQ | C85: 15.5 | D85: 15.85 | E85: 15.45 | F85: 15.5 | G85: 15.45 | H85: 15.2 | I85: 31762 | J85: 495414.35 | K85: 2018-08-09 | L85: 135 | M85: INE880B01015
A86: ANTGRAPHIC | B86: BE | C86: 0.55 | D86: 0.55 | E86: 0.5 | F86: 0.55 | G86: 0.55 | H86: 0.55 | I86: 99074 | J86: 50919.5 | K86: 2018-08-09 | L86: 47 | M86: INE414B01021
A87: APARINDS | B87: EQ | C87: 618.4 | D87: 618.4 | E87: 572.6 | F87: 587.5 | G87: 588.5 | H87: 604.5 | I87: 159072 | J87: 93643493.95 | K87: 2018-08-09 | L87: 6173 | M87: INE372A01015
A88: APCL | B88: EQ | C88: 151 | D88: 153 | E88: 140 | F88: 147.75 | G88: 148 | H88: 150.6 | I88: 3173 | J88: 465766.95 | K88: 2018-08-09 | L88: 113 | M88: INE071F01012
A89: APCOTEXIND | B89: EQ | C89: 558 | D89: 565 | E89: 555.05 | F89: 564.15 | G89: 564.05 | H89: 560.2 | I89: 3145 | J89: 1762950.85 | K89: 2018-08-09 | L89: 326 | M89: INE116A01024
A90: APEX | B90: EQ | C90: 457.5 | D90: 492.2 | E90: 451.1 | F90: 484.9 | G90: 480.2 | H90: 468.8 | I90: 429455 | J90: 205454258.3 | K90: 2018-08-09 | L90: 7994 | M90: INE346W01013
A91: APLAPOLLO | B91: EQ | C91: 1745.65 | D91: 1794.75 | E91: 1740 | F91: 1776.6 | G91: 1784 | H91: 1731.75 | I91: 11592 | J91: 20523429.4 | K91: 2018-08-09 | L91: 1789 | M91: INE702C01019
A92: APLLTD | B92: EQ | C92: 598.95 | D92: 608.5 | E92: 592.55 | F92: 595.5 | G92: 596 | H92: 608.2 | I92: 34896 | J92: 20933822.05 | K92: 2018-08-09 | L92: 1311 | M92: INE901L01018
A93: APOLLO | B93: EQ | C93: 166.5 | D93: 172 | E93: 165.15 | F93: 170.35 | G93: 169.1 | H93: 166.55 | I93: 50450 | J93: 8536108.5 | K93: 2018-08-09 | L93: 1418 | M93: INE713T01010
A94: APOLLOHOSP | B94: EQ | C94: 968.95 | D94: 983 | E94: 960 | F94: 963.55 | G94: 963.6 | H94: 971.75 | I94: 211012 | J94: 205385020.7 | K94: 2018-08-09 | L94: 5718 | M94: INE437A01024
A95: APOLLOTYRE | B95: EQ | C95: 273 | D95: 276 | E95: 270.1 | F95: 271.3 | G95: 270.8 | H95: 272.55 | I95: 2781246 | J95: 758063280.1 | K95: 2018-08-09 | L95: 27308 | M95: INE438A01022
A96: APOLSINHOT | B96: EQ | C96: 1393.4 | D96: 1450 | E96: 1375 | F96: 1382.65 | G96: 1375.2 | H96: 1407.45 | I96: 219 | J96: 308629.1 | K96: 2018-08-09 | L96: 50 | M96: INE451F01016
A97: APTECHT | B97: EQ | C97: 241.95 | D97: 246.9 | E97: 238.9 | F97: 241 | G97: 240.7 | H97: 241.25 | I97: 270319 | J97: 65530802 | K97: 2018-08-09 | L97: 4700 | M97: INE266F01018
A98: ARCHIDPLY | B98: EQ | C98: 64 | D98: 65.4 | E98: 62.5 | F98: 62.95 | G98: 63.45 | H98: 64.1 | I98: 18625 | J98: 1185340.95 | K98: 2018-08-09 | L98: 270 | M98: INE877I01016
A99: ARCHIES | B99: EQ | C99: 31.4 | D99: 32.5 | E99: 30.25 | F99: 32.1 | G99: 32.2 | H99: 30.55 | I99: 121744 | J99: 3884738.55 | K99: 2018-08-09 | L99: 697 | M99: INE731A01020
A100: ARCOTECH | B100: BE | C100: 17.85 | D100: 17.85 | E100: 17.85 | F100: 17.85 | G100: 17.85 | H100: 17 | I100: 43222 | J100: 771512.7 | K100: 2018-08-09 | L100: 111 | M100: INE574I01035
A101: ARIES | B101: EQ | C101: 116.55 | D101: 118.6 | E101: 109.8 | F101: 110.95 | G101: 110.8 | H101: 116.9 | I101: 57950 | J101: 6578598.8 | K101: 2018-08-09 | L101: 1067 | M101: INE298I01015
A102: ARIHANT | B102: EQ | C102: 37.35 | D102: 37.35 | E102: 36 | F102: 37.35 | G102: 37.35 | H102: 36.2 | I102: 151 | J102: 5498.1 | K102: 2018-08-09 | L102: 7 | M102: INE413D01011
A103: ARIHANTSUP | B103: EQ | C103: 71.8 | D103: 77.4 | E103: 66.2 | F103: 71.55 | G103: 71 | H103: 68.8 | I103: 239736 | J103: 17235958.35 | K103: 2018-08-09 | L103: 15418 | M103: INE643K01018
A104: ARMANFIN | B104: EQ | C104: 394 | D104: 427.75 | E104: 384 | F104: 418.75 | G104: 414.8 | H104: 388.9 | I104: 19467 | J104: 7918468.75 | K104: 2018-08-09 | L104: 487 | M104: INE109C01017
A105: AROGRANITE | B105: EQ | C105: 59.75 | D105: 59.75 | E105: 58.35 | F105: 58.65 | G105: 59 | H105: 59.8 | I105: 7602 | J105: 448149.5 | K105: 2018-08-09 | L105: 81 | M105: INE210C01013
A106: ARROWGREEN | B106: EQ | C106: 164.9 | D106: 164.9 | E106: 164.9 | F106: 164.9 | G106: 164.9 | H106: 173.55 | I106: 2033 | J106: 335241.7 | K106: 2018-08-09 | L106: 44 | M106: INE570D01018
A107: ARROWTEX | B107: EQ | C107: 31.1 | D107: 31.35 | E107: 30.6 | F107: 30.8 | G107: 30.6 | H107: 31.1 | I107: 6704 | J107: 207417.1 | K107: 2018-08-09 | L107: 66 | M107: INE933J01015
A108: ARSHIYA | B108: EQ | C108: 57.25 | D108: 58.85 | E108: 57.05 | F108: 57.85 | G108: 58 | H108: 57 | I108: 4115 | J108: 236917.25 | K108: 2018-08-09 | L108: 64 | M108: INE968D01022
A109: ARSSINFRA | B109: BE | C109: 26.25 | D109: 26.3 | E109: 25.05 | F109: 25.8 | G109: 25.9 | H109: 26.3 | I109: 10091 | J109: 254985.75 | K109: 2018-08-09 | L109: 110 | M109: INE267I01010
A110: ARVIND | B110: EQ | C110: 394 | D110: 400.9 | E110: 392.05 | F110: 395.8 | G110: 395.45 | H110: 393.85 | I110: 2595191 | J110: 1026853621 | K110: 2018-08-09 | L110: 43516 | M110: INE034A01011
A111: ARVSMART | B111: EQ | C111: 179.85 | D111: 179.85 | E111: 161.75 | F111: 164.65 | G111: 165 | H111: 173.85 | I111: 49279 | J111: 8447354.9 | K111: 2018-08-09 | L111: 919 | M111: INE034S01021
A112: ASAHIINDIA | B112: EQ | C112: 334.6 | D112: 335.95 | E112: 330.6 | F112: 331.2 | G112: 330.6 | H112: 331.95 | I112: 7129 | J112: 2373263.45 | K112: 2018-08-09 | L112: 376 | M112: INE439A01020
A113: ASAHISONG | B113: EQ | C113: 290 | D113: 293 | E113: 283.1 | F113: 285.8 | G113: 288 | H113: 277.65 | I113: 24602 | J113: 7046399.55 | K113: 2018-08-09 | L113: 587 | M113: INE228I01012
A114: ASAL | B114: EQ | C114: 63.65 | D114: 63.65 | E114: 60.7 | F114: 60.9 | G114: 61.15 | H114: 61.75 | I114: 19280 | J114: 1186332.85 | K114: 2018-08-09 | L114: 188 | M114: INE900C01027
A115: ASHAPURMIN | B115: EQ | C115: 48.45 | D115: 51.35 | E115: 48 | F115: 50.75 | G115: 51.1 | H115: 48.15 | I115: 183765 | J115: 9231223.35 | K115: 2018-08-09 | L115: 1427 | M115: INE348A01023
A116: ASHIANA | B116: EQ | C116: 145.05 | D116: 147.25 | E116: 144 | F116: 145.05 | G116: 145 | H116: 145 | I116: 85876 | J116: 12491698.35 | K116: 2018-08-09 | L116: 1381 | M116: INE365D01021
A117: ASHIMASYN | B117: EQ | C117: 22.7 | D117: 23.6 | E117: 22.4 | F117: 22.6 | G117: 22.6 | H117: 22.6 | I117: 116979 | J117: 2688377.6 | K117: 2018-08-09 | L117: 623 | M117: INE440A01010
A118: ASHOKA | B118: EQ | C118: 145 | D118: 149.95 | E118: 143.8 | F118: 144.4 | G118: 145.45 | H118: 145.85 | I118: 72569 | J118: 10597029.95 | K118: 2018-08-09 | L118: 2190 | M118: INE442H01029
A119: ASHOKLEY | B119: EQ | C119: 126 | D119: 129.75 | E119: 124.75 | F119: 129.25 | G119: 129.1 | H119: 125.7 | I119: 27080247 | J119: 3442306276 | K119: 2018-08-09 | L119: 94360 | M119: INE208A01029
A120: ASIANHOTNR | B120: EQ | C120: 225 | D120: 232.95 | E120: 219 | F120: 227.25 | G120: 227.25 | H120: 224.9 | I120: 1221 | J120: 271793.1 | K120: 2018-08-09 | L120: 48 | M120: INE363A01022
A121: ASIANPAINT | B121: EQ | C121: 1431.9 | D121: 1433.95 | E121: 1414.1 | F121: 1417.35 | G121: 1415 | H121: 1425.75 | I121: 903734 | J121: 1285485544 | K121: 2018-08-09 | L121: 22748 | M121: INE021A01026
A122: ASIANTILES | B122: EQ | C122: 273 | D122: 279.25 | E122: 272 | F122: 272.8 | G122: 273 | H122: 275.35 | I122: 74903 | J122: 20523595.55 | K122: 2018-08-09 | L122: 1405 | M122: INE022I01019
A123: ASPINWALL | B123: EQ | C123: 223.8 | D123: 228 | E123: 219 | F123: 220.7 | G123: 220.1 | H123: 223.6 | I123: 3882 | J123: 862419.3 | K123: 2018-08-09 | L123: 69 | M123: INE991I01015
A124: ASSAMCO | B124: EQ | C124: 5.1 | D124: 5.1 | E124: 4.95 | F124: 5.1 | G124: 5.1 | H124: 4.9 | I124: 258571 | J124: 1317477.9 | K124: 2018-08-09 | L124: 261 | M124: INE442A01024
A125: ASTEC | B125: EQ | C125: 608 | D125: 619.8 | E125: 595.3 | F125: 597.7 | G125: 600 | H125: 608 | I125: 23893 | J125: 14452597.8 | K125: 2018-08-09 | L125: 1036 | M125: INE563J01010
A126: ASTERDM | B126: EQ | C126: 167 | D126: 169 | E126: 166.25 | F126: 166.95 | G126: 166.8 | H126: 167 | I126: 75330 | J126: 12645543.15 | K126: 2018-08-09 | L126: 1695 | M126: INE914M01019
A127: ASTRAL | B127: EQ | C127: 1095 | D127: 1124.5 | E127: 1090 | F127: 1101.45 | G127: 1100 | H127: 1087.25 | I127: 33788 | J127: 37334179.25 | K127: 2018-08-09 | L127: 6091 | M127: INE006I01046
A128: ASTRAMICRO | B128: EQ | C128: 98.9 | D128: 99.65 | E128: 97.4 | F128: 97.9 | G128: 97.7 | H128: 98.7 | I128: 293006 | J128: 28735385.1 | K128: 2018-08-09 | L128: 5781 | M128: INE386C01029
A129: ASTRAZEN | B129: EQ | C129: 1733.1 | D129: 1815 | E129: 1720 | F129: 1744.05 | G129: 1752 | H129: 1742.9 | I129: 48726 | J129: 85961869.35 | K129: 2018-08-09 | L129: 4177 | M129: INE203A01020
A130: ASTRON | B130: EQ | C130: 119.75 | D130: 120.8 | E130: 115.5 | F130: 116.2 | G130: 116.45 | H130: 119.5 | I130: 229314 | J130: 27158049.6 | K130: 2018-08-09 | L130: 2418 | M130: INE646X01014
A131: ATFL | B131: EQ | C131: 638.25 | D131: 638.5 | E131: 619.55 | F131: 633.4 | G131: 634 | H131: 640.4 | I131: 15629 | J131: 9833980.3 | K131: 2018-08-09 | L131: 535 | M131: INE209A01019
A132: ATLANTA | B132: EQ | C132: 39.5 | D132: 40.5 | E132: 39.5 | F132: 40.3 | G132: 40.5 | H132: 39.85 | I132: 86976 | J132: 3500958.3 | K132: 2018-08-09 | L132: 389 | M132: INE285H01022
A133: ATLASCYCLE | B133: BE | C133: 140 | D133: 141.85 | E133: 138 | F133: 141.85 | G133: 141.85 | H133: 135.1 | I133: 5754 | J133: 807971.1 | K133: 2018-08-09 | L133: 81 | M133: INE446A01025
A134: ATUL | B134: EQ | C134: 3000 | D134: 3145 | E134: 3000 | F134: 3136.15 | G134: 3134.2 | H134: 2977.75 | I134: 28355 | J134: 87650327.7 | K134: 2018-08-09 | L134: 3128 | M134: INE100A01010
A135: ATULAUTO | B135: EQ | C135: 408.45 | D135: 418.95 | E135: 405 | F135: 413.2 | G135: 412.05 | H135: 408 | I135: 33389 | J135: 13848465.6 | K135: 2018-08-09 | L135: 957 | M135: INE951D01028
A136: AUBANK | B136: EQ | C136: 658.9 | D136: 658.9 | E136: 641 | F136: 644.55 | G136: 641 | H136: 653.75 | I136: 116074 | J136: 75401649.55 | K136: 2018-08-09 | L136: 5256 | M136: INE949L01017
A137: AURIONPRO | B137: EQ | C137: 213.65 | D137: 215.95 | E137: 198.7 | F137: 203.7 | G137: 203 | H137: 213.65 | I137: 49901 | J137: 10357850.35 | K137: 2018-08-09 | L137: 781 | M137: INE132H01018
A138: AUROPHARMA | B138: EQ | C138: 613 | D138: 614.5 | E138: 592.8 | F138: 599.7 | G138: 600 | H138: 610.85 | I138: 3462964 | J138: 2089571519 | K138: 2018-08-09 | L138: 61980 | M138: INE406A01037
A139: AUSOMENT | B139: EQ | C139: 68.65 | D139: 69.65 | E139: 65 | F139: 67.3 | G139: 67.75 | H139: 71.25 | I139: 29540 | J139: 1979103.8 | K139: 2018-08-09 | L139: 449 | M139: INE218C01016
A140: AUTOAXLES | B140: EQ | C140: 1339 | D140: 1359.95 | E140: 1301.05 | F140: 1309.1 | G140: 1314 | H140: 1325.2 | I140: 24316 | J140: 32022184.75 | K140: 2018-08-09 | L140: 2331 | M140: INE449A01011
A141: AUTOIND | B141: EQ | C141: 70.65 | D141: 71 | E141: 69.05 | F141: 69.2 | G141: 69.1 | H141: 69.45 | I141: 9519 | J141: 664072.75 | K141: 2018-08-09 | L141: 318 | M141: INE718H01014
A142: AUTOLITIND | B142: EQ | C142: 60 | D142: 61.8 | E142: 58.15 | F142: 58.9 | G142: 59 | H142: 60.25 | I142: 8089 | J142: 479506.65 | K142: 2018-08-09 | L142: 147 | M142: INE448A01013
A143: AVADHSUGAR | B143: EQ | C143: 382 | D143: 382 | E143: 365.05 | F143: 370.9 | G143: 367 | H143: 382.9 | I143: 24382 | J143: 9094572.7 | K143: 2018-08-09 | L143: 1129 | M143: INE349W01017
A144: AVANTIFEED | B144: EQ | C144: 449 | D144: 478.95 | E144: 444.55 | F144: 470.7 | G144: 472.5 | H144: 452.3 | I144: 1672009 | J144: 785617163 | K144: 2018-08-09 | L144: 44854 | M144: INE871C01038
A145: AVTNPL | B145: EQ | C145: 35.7 | D145: 35.75 | E145: 34.2 | F145: 34.25 | G145: 34.35 | H145: 35.8 | I145: 49250 | J145: 1708940 | K145: 2018-08-09 | L145: 286 | M145: INE488D01021
A146: AXISBANK | B146: EQ | C146: 595 | D146: 624.4 | E146: 595 | F146: 621.05 | G146: 621.35 | H146: 596.3 | I146: 18227195 | J146: 1.117272978e+10 | K146: 2018-08-09 | L146: 208981 | M146: INE238A01034
A147: AXISCADES | B147: EQ | C147: 117.2 | D147: 117.85 | E147: 106.95 | F147: 114.5 | G147: 114.6 | H147: 116.8 | I147: 73972 | J147: 8479344.9 | K147: 2018-08-09 | L147: 1104 | M147: INE555B01013
A148: AXISGOLD | B148: EQ | C148: 2647 | D148: 2658 | E148: 2606 | F148: 2622.5 | G148: 2637 | H148: 2611.4 | I148: 95 | J148: 249212.5 | K148: 2018-08-09 | L148: 40 | M148: INF846K01347
A149: AXISNIFTY | B149: EQ | C149: 1166.53 | D149: 1166.73 | E149: 1157.22 | F149: 1157.6 | G149: 1157.6 | H149: 1159.03 | I149: 141 | J149: 163283.73 | K149: 2018-08-09 | L149: 6 | M149: INF846K01ZL0
A150: AYMSYNTEX | B150: EQ | C150: 47.4 | D150: 47.5 | E150: 45.3 | F150: 46.3 | G150: 45.55 | H150: 45.7 | I150: 5580 | J150: 259044.1 | K150: 2018-08-09 | L150: 71 | M150: INE193B01039
A151: BAFNAPHARM | B151: EQ | C151: 22.4 | D151: 22.4 | E151: 21.9 | F151: 22 | G151: 21.9 | H151: 22.05 | I151: 7206 | J151: 158440.5 | K151: 2018-08-09 | L151: 69 | M151: INE878I01014
A152: BAGFILMS | B152: EQ | C152: 4.85 | D152: 5.35 | E152: 4.85 | F152: 5.15 | G152: 5.2 | H152: 4.9 | I152: 397707 | J152: 2050834.95 | K152: 2018-08-09 | L152: 604 | M152: INE116D01028
A153: BAJAJ-AUTO | B153: EQ | C153: 2665 | D153: 2686.85 | E153: 2641.05 | F153: 2658.6 | G153: 2660 | H153: 2660.6 | I153: 448329 | J153: 1195593187 | K153: 2018-08-09 | L153: 20513 | M153: INE917I01010
A154: BAJAJCORP | B154: EQ | C154: 408.85 | D154: 410 | E154: 402.1 | F154: 405.95 | G154: 409.85 | H154: 408.85 | I154: 20193 | J154: 8203674.75 | K154: 2018-08-09 | L154: 1301 | M154: INE933K01021
A155: BAJAJELEC | B155: EQ | C155: 628.9 | D155: 648 | E155: 616.1 | F155: 627.45 | G155: 631.05 | H155: 623.95 | I155: 2155930 | J155: 1356136133 | K155: 2018-08-09 | L155: 36960 | M155: INE193E01025
A156: BAJAJFINSV | B156: EQ | C156: 7051.6 | D156: 7120 | E156: 7000 | F156: 7075.1 | G156: 7062 | H156: 7051.6 | I156: 110927 | J156: 783255791.1 | K156: 2018-08-09 | L156: 11632 | M156: INE918I01018
A157: BAJAJHIND | B157: EQ | C157: 7 | D157: 7.1 | E157: 6.75 | F157: 6.9 | G157: 6.95 | H157: 6.9 | I157: 2352551 | J157: 16351641.7 | K157: 2018-08-09 | L157: 2574 | M157: INE306A01021
A158: BAJAJHLDNG | B158: EQ | C158: 2987.3 | D158: 3024.95 | E158: 2954 | F158: 2972.3 | G158: 3000 | H158: 2981.05 | I158: 10329 | J158: 30989509.6 | K158: 2018-08-09 | L158: 1471 | M158: INE118A01012
A159: BAJFINANCE | B159: EQ | C159: 2824 | D159: 2846.05 | E159: 2800 | F159: 2830.15 | G159: 2825.45 | H159: 2813.15 | I159: 1147083 | J159: 3245810295 | K159: 2018-08-09 | L159: 41311 | M159: INE296A01024
A160: BALAJITELE | B160: EQ | C160: 117.95 | D160: 117.95 | E160: 115.85 | F160: 116.6 | G160: 117 | H160: 116.05 | I160: 14017 | J160: 1634932.85 | K160: 2018-08-09 | L160: 342 | M160: INE794B01026
A161: BALAMINES | B161: EQ | C161: 563 | D161: 574.05 | E161: 553 | F161: 570 | G161: 570.9 | H161: 566.2 | I161: 24691 | J161: 13960782.35 | K161: 2018-08-09 | L161: 1732 | M161: INE050E01027
A162: BALAXI | B162: BE | C162: 21.55 | D162: 21.55 | E162: 21.55 | F162: 21.55 | G162: 21.55 | H162: 20.55 | I162: 150 | J162: 3232.5 | K162: 2018-08-09 | L162: 2 | M162: INE618N01014
A163: BALKRISHNA | B163: EQ | C163: 71.4 | D163: 72 | E163: 70.1 | F163: 70.7 | G163: 70.3 | H163: 70.85 | I163: 24354 | J163: 1734796.4 | K163: 2018-08-09 | L163: 308 | M163: INE875R01011
A164: BALKRISIND | B164: EQ | C164: 1260 | D164: 1265 | E164: 1235.65 | F164: 1251.4 | G164: 1253.45 | H164: 1247.7 | I164: 526242 | J164: 659731165.2 | K164: 2018-08-09 | L164: 16932 | M164: INE787D01026
A165: BALLARPUR | B165: EQ | C165: 10.2 | D165: 10.3 | E165: 9.95 | F165: 10.05 | G165: 10 | H165: 10.2 | I165: 668356 | J165: 6729560.9 | K165: 2018-08-09 | L165: 797 | M165: INE294A01037
A166: BALMLAWRIE | B166: EQ | C166: 225.7 | D166: 226.5 | E166: 219.3 | F166: 221.15 | G166: 221.25 | H166: 223.7 | I166: 108083 | J166: 24037697.25 | K166: 2018-08-09 | L166: 3241 | M166: INE164A01016
A167: BALPHARMA | B167: EQ | C167: 77.5 | D167: 79.85 | E167: 76.35 | F167: 76.75 | G167: 77 | H167: 78.55 | I167: 11581 | J167: 897563.8 | K167: 2018-08-09 | L167: 161 | M167: INE083D01012
A168: BALRAMCHIN | B168: EQ | C168: 71.9 | D168: 74.35 | E168: 71.5 | F168: 73.15 | G168: 72.8 | H168: 72.55 | I168: 3792026 | J168: 278112943.3 | K168: 2018-08-09 | L168: 12736 | M168: INE119A01028
A169: BANARBEADS | B169: EQ | C169: 49.25 | D169: 51.25 | E169: 49.25 | F169: 50.05 | G169: 50.5 | H169: 49.8 | I169: 855 | J169: 43084.5 | K169: 2018-08-09 | L169: 16 | M169: INE655B01011
A170: BANARISUG | B170: EQ | C170: 1499.95 | D170: 1500 | E170: 1478 | F170: 1486.4 | G170: 1490 | H170: 1475.6 | I170: 27 | J170: 40255.55 | K170: 2018-08-09 | L170: 16 | M170: INE459A01010
A171: BANCOINDIA | B171: EQ | C171: 224.5 | D171: 225 | E171: 220.3 | F171: 221.95 | G171: 221.4 | H171: 223.25 | I171: 39441 | J171: 8806852.5 | K171: 2018-08-09 | L171: 877 | M171: INE213C01025
A172: BANDHANBNK | B172: EQ | C172: 694.1 | D172: 741.8 | E172: 694.1 | F172: 729.7 | G172: 730 | H172: 692.75 | I172: 3562003 | J172: 2578402291 | K172: 2018-08-09 | L172: 92131 | M172: INE545U01014
A173: BANG | B173: EQ | C173: 55 | D173: 57.8 | E173: 53.6 | F173: 56.15 | G173: 55.8 | H173: 53.95 | I173: 42204 | J173: 2327296.7 | K173: 2018-08-09 | L173: 184 | M173: INE863I01016
A174: BANKBARODA | B174: EQ | C174: 150.5 | D174: 157.5 | E174: 148.85 | F174: 154.75 | G174: 153.7 | H174: 148.6 | I174: 26562716 | J174: 4091280753 | K174: 2018-08-09 | L174: 96932 | M174: INE028A01039
A175: BANKBEES | B175: EQ | C175: 2860 | D175: 2890.73 | E175: 2860 | F175: 2885.93 | G175: 2887.55 | H175: 2856.08 | I175: 74696 | J175: 215779099.9 | K175: 2018-08-09 | L175: 338 | M175: INF732E01078
A176: BANKINDIA | B176: EQ | C176: 95.15 | D176: 98.8 | E176: 94.75 | F176: 98 | G176: 98.1 | H176: 94 | I176: 11522528 | J176: 1122147271 | K176: 2018-08-09 | L176: 37101 | M176: INE084A01016
A177: BANSWRAS | B177: EQ | C177: 91 | D177: 91.8 | E177: 88.5 | F177: 90.05 | G177: 91 | H177: 89.35 | I177: 3230 | J177: 290118.55 | K177: 2018-08-09 | L177: 114 | M177: INE629D01012
A178: BARTRONICS | B178: EQ | C178: 9.55 | D178: 10.1 | E178: 9.55 | F178: 9.75 | G178: 9.8 | H178: 9.65 | I178: 35020 | J178: 339942.2 | K178: 2018-08-09 | L178: 100 | M178: INE855F01034
A179: BASF | B179: EQ | C179: 2051.8 | D179: 2075.2 | E179: 2038 | F179: 2044.45 | G179: 2038.15 | H179: 2040 | I179: 7121 | J179: 14659269.7 | K179: 2018-08-09 | L179: 594 | M179: INE373A01013
A180: BASML | B180: EQ | C180: 232.1 | D180: 237.95 | E180: 232 | F180: 232 | G180: 232 | H180: 233.7 | I180: 2001 | J180: 467240.85 | K180: 2018-08-09 | L180: 35 | M180: INE186H01014
A181: BATAINDIA | B181: EQ | C181: 952.1 | D181: 961 | E181: 941.25 | F181: 954.35 | G181: 956.5 | H181: 949.7 | I181: 454577 | J181: 431311577.2 | K181: 2018-08-09 | L181: 12472 | M181: INE176A01028
A182: BAYERCROP | B182: EQ | C182: 4198.95 | D182: 4247.9 | E182: 4150 | F182: 4182.9 | G182: 4163.15 | H182: 4191.7 | I182: 13117 | J182: 55089555.35 | K182: 2018-08-09 | L182: 2367 | M182: INE462A01022
A183: BBL | B183: EQ | C183: 1194.7 | D183: 1215 | E183: 1181 | F183: 1193.6 | G183: 1198 | H183: 1178.3 | I183: 8851 | J183: 10555535.55 | K183: 2018-08-09 | L183: 542 | M183: INE464A01028
A184: BBTC | B184: EQ | C184: 1552 | D184: 1598 | E184: 1552 | F184: 1565.85 | G184: 1563 | H184: 1577.35 | I184: 93663 | J184: 147395248.1 | K184: 2018-08-09 | L184: 4006 | M184: INE050A01025
A185: BDL | B185: EQ | C185: 365.55 | D185: 381.95 | E185: 365.55 | F185: 374.85 | G185: 376 | H185: 369.45 | I185: 49230 | J185: 18426781.9 | K185: 2018-08-09 | L185: 1901 | M185: INE171Z01018
A186: BEARDSELL | B186: EQ | C186: 38.6 | D186: 38.8 | E186: 37.7 | F186: 37.9 | G186: 38.3 | H186: 39.65 | I186: 4676 | J186: 178454.4 | K186: 2018-08-09 | L186: 35 | M186: INE520H01022
A187: BEDMUTHA | B187: EQ | C187: 24.45 | D187: 24.45 | E187: 22.1 | F187: 22.55 | G187: 22.15 | H187: 22.35 | I187: 16201 | J187: 365385.2 | K187: 2018-08-09 | L187: 55 | M187: INE844K01012
A188: BEL | B188: EQ | C188: 122 | D188: 123.1 | E188: 119.15 | F188: 121.2 | G188: 120.9 | H188: 120.95 | I188: 12779367 | J188: 1551484239 | K188: 2018-08-09 | L188: 79519 | M188: INE263A01024
A189: BEML | B189: EQ | C189: 815 | D189: 834 | E189: 800.3 | F189: 810.15 | G189: 812.45 | H189: 825.15 | I189: 2315243 | J189: 1879168018 | K189: 2018-08-09 | L189: 59232 | M189: INE258A01016
A190: BEPL | B190: EQ | C190: 143.1 | D190: 147.65 | E190: 142.6 | F190: 143.55 | G190: 143.4 | H190: 143.95 | I190: 377378 | J190: 54498654.65 | K190: 2018-08-09 | L190: 4513 | M190: INE922A01025
A191: BERGEPAINT | B191: EQ | C191: 315 | D191: 317.7 | E191: 312.65 | F191: 314.25 | G191: 315.75 | H191: 312.95 | I191: 229865 | J191: 72293669.75 | K191: 2018-08-09 | L191: 4291 | M191: INE463A01038
A192: BFINVEST | B192: EQ | C192: 255.9 | D192: 261.4 | E192: 253 | F192: 254.6 | G192: 255.9 | H192: 255.6 | I192: 170531 | J192: 43871356.7 | K192: 2018-08-09 | L192: 3794 | M192: INE878K01010
A193: BFUTILITIE | B193: EQ | C193: 330 | D193: 334 | E193: 324.9 | F193: 326.2 | G193: 327 | H193: 328.25 | I193: 289554 | J193: 95293906.85 | K193: 2018-08-09 | L193: 6959 | M193: INE243D01012
A194: BGLOBAL | B194: BE | C194: 3 | D194: 3 | E194: 2.8 | F194: 2.95 | G194: 2.8 | H194: 2.9 | I194: 16237 | J194: 47684 | K194: 2018-08-09 | L194: 35 | M194: INE224M01013
A195: BGRENERGY | B195: EQ | C195: 89.25 | D195: 90.4 | E195: 88.05 | F195: 89.25 | G195: 89.25 | H195: 88.65 | I195: 91237 | J195: 8149872.55 | K195: 2018-08-09 | L195: 940 | M195: INE661I01014
A196: BHAGERIA | B196: EQ | C196: 309.25 | D196: 311.55 | E196: 306.05 | F196: 307.25 | G196: 307.5 | H196: 309.15 | I196: 7090 | J196: 2184845.35 | K196: 2018-08-09 | L196: 211 | M196: INE354C01027
A197: BHAGYANGR | B197: BE | C197: 38.1 | D197: 39 | E197: 37.85 | F197: 38.35 | G197: 39 | H197: 38.55 | I197: 16000 | J197: 614618.7 | K197: 2018-08-09 | L197: 133 | M197: INE458B01036
A198: BHAGYAPROP | B198: EQ | C198: 23.5 | D198: 25 | E198: 23.5 | F198: 24.95 | G198: 25 | H198: 24.4 | I198: 1034 | J198: 25266.8 | K198: 2018-08-09 | L198: 12 | M198: INE363W01018
A199: BHANDARI | B199: EQ | C199: 2.6 | D199: 2.6 | E199: 2.35 | F199: 2.45 | G199: 2.45 | H199: 2.5 | I199: 217386 | J199: 546521.05 | K199: 2018-08-09 | L199: 121 | M199: INE474E01029
A200: BHARATFIN | B200: EQ | C200: 1216.85 | D200: 1217.3 | E200: 1205.4 | F200: 1209.25 | G200: 1208.5 | H200: 1212.8 | I200: 498556 | J200: 603188658.3 | K200: 2018-08-09 | L200: 19292 | M200: INE180K01011
... 1453 more rows
